Workbook

Sheet Introduction
A1: Contaminant Fluxes from Hydraulic Containment
A2: Landfills Worksheet Version 1.0
A4: © Environment Agency, 2004. Prepared by ESI
A5: Produced under Science Group: Air, Land & Water Project SC0310
A7: Statement of Use
A8: This worksheet has been prepared to help assessors quantify the contaminant flux from a hydraulic containment landfill
A9: constructed to the specifications in the Landfill Regulations (2002). It has been prepared to allow Agency staff to assess third party calculations
A10: of the diffusive contaminant flux from hydraulic containment landfills.
A12: Data needs to be entered only in YELLOW cells. Assessors have to specify a preferred option from a pull-down menu
A13: in BLUE cells, interim calculation results are presented in GREY cells and final results in GREEN cells.
A14: Only data in YELLOW or BLUE cells may be changed.
A16: Site name
A17: Sabdown Quarry
A18: Assessor's name
A19: Byrne Looby
A20: Date
A21: 2023-08-01
A24: Liability: The Environment Agency does not promise that the worksheet will provide any particular facilities or functions.
A25: You must ensure that the worksheet meets your needs and you remain solely responsible for the competent use of the worksheet.
A26: You are entirely responsible for the consequences of any use of the worksheet and the Agency provides no warranty about
A27: the fitness for purpose or performance of any part of the worksheet. We do not promise that the media will always be free from
A28: defects, computer viruses, software locks or other similar code or that the operation of the worksheet will be uninterrupted or error free.
A29: You should carry out all necessary virus checks prior to installing on your computing system.

Sheet Scenarios
A1: SELECT LANDFILL CONSTRUCTION SCENARIO
A3: Scenario 1
G6: The landfill is constructed in a clay pit, underlain by a confined aquifer.
G7: Water and contaminant fluxes occur across the bottom of the landfill only.
A13: Scenario 2
G15: The landfill is lined and located in a permeable formation
G16: a finite distance above an impermeable layer. The water and
G17: contaminant fluxes can occur through the base and sides of the landfill.
A24: Scenario 3
G26: The landfill is lined and located in a permeable formation
G27: a finite distance below an impermeable layer. The water and
G28: contaminant fluxes can occur through the sides of the landfill only.

Sheet Calculations
A2: Conditional formatting 0=white, 1=normal, 2=red | C2: =Introduction!A17 -> Sabdown Quarry | E2: =Introduction!A21 -> 2023-08-01 | I2: =Cont_Nme -> Arsenic | AF2: Yes | AH2: Inorganic | AI2: Good contact | AJ2: Yes | AK2: s_per_year
AF3: No | AH3: Organic | AI3: Poor contact | AJ3: No | AK3: =365*24*60*60 -> 31536000
C4: CONCEPTUAL MODEL AND LANDFILL CONSTRUCTION | G4: =IF(Cont_Class="List I", 0, 1) -> 0 | I4: STEADY STATE DILUTION | AH4: List I | AK4: s_per_day
C5: Conceptual model of landfill construction | D5: CM | E5: 3 | F5: - | G5: =IF(Cont_Class="List I", 0, 1) -> 0 | I5: Hydraulic gradient in the aquifer | J5: aq_I | K5: 0.002 | L5: - | AH5: List II | AK5: 86400
A6: =IF(CM=1,0,1) -> 1 | C6: Is a geomembrane present? | D6: GM_opt | E6: No | F6: - | G6: 0 | I6: Hydraulic conductivity of the aquifer | J6: k_aq | K6: 1e-10 | L6: m/s | AK6: tlarge
G7: 0 | I7: Downgradient distance of compliance point from landfill | J7: dist_cp | K7: 60 | L7: m | AK7: 1e+40
C8: Basal width perpendicular to groundwater flow | D8: Width_LF | E8: 130 | F8: m | G8: 0 | I8: Mixing width | J8: Mix_W | K8: =Width_LF -> 130 | L8: m | AK8: tscale
C9: Basal length parallel to groundwater flow | D9: Length_LF | E9: 50 | F9: m | G9: 0 | I9: Mixing depth | J9: Mix_D | K9: =IF(CM=1,MIN(Aq_max,(Length_LF+dist_cp)/9.45),IF(CM=2,MIN(ABS(LFbase_elev-Aqbound_elev),(Length_LF+dist_cp)/9.45),MIN(ABS(Head_outLF-Aqbound_elev),(Length_LF+dist_cp)/9.45))) -> 11.64021164 | L9: m | AK9: =10^(LOG(tmax/tmin)/(50)) -> 1.258925412
C10: Basal area | D10: Base_Area | E10: =Width_LF*Length_LF -> 6500 | F10: m2 | G10: 0 | I10: =IF(CM=3,"Dilution flow in aquifer downstream to the landfill","Dilution flow in aquifer directly under the landfill") -> Dilution flow in aquifer downstream to the landfill | J10: aq_Q | K10: =k_aq*aq_I*Mix_W*Mix_D -> 3.026455026e-10 | L10: m3/s | R10: ="Concentration of " & I2 & " at " & IF(Cont_Class="List I", "external edge of liner", "compliance point in aquifer") -> Concentration of Arsenic at external edge of liner | S10: ="Mass of " & I2 & " leaving the landfill per second" -> Mass of Arsenic leaving the landfill per second
A11: =IF($D$157<=0,2,1) -> 1 | C11: Elevation of base of landfill | D11: LFbase_elev | E11: 75 | F11: maOD
A12: =IF(OR(D157<=0, D161<0),2,1) -> 1 | C12: =IF(CM=1,"Elevation of top of aquifer","Elevation of base of aquifer") -> Elevation of base of aquifer | D12: Aqbound_elev | E12: 75.01 | F12: maOD | I12: CONTAMINANT AND WATER FLUXES | Q12: Time years | R12: Concentration (mg/l) | S12: Mass flux (kg/s)
A13: =IF(CM>1,0,1) -> 0 | C13: Maximum thickness of underlying aquifer | D13: Aq_max | E13: 1 | F13: m | I13: Groundwater flux into landfill | K13: =( IF(Solution_type="b",MIN(Q_giroud,Q_darcy),Q)+ IF(GM_delam="Yes",Q_Delam,0)) -> 7.32816e-05 | L13: m3/s | Q13: =tmin -> 1 | R13: =IF($D$163<=0,0,IF(ISNUMBER(IF(Solution_type="a",Single_Lay_Sol,IF(GM_delam="Yes",Delam_Sol,IF(Solution_type="b",TwoLay_sol,Single_Lay_Sol)))),IF(Solution_type="a",Single_Lay_Sol,IF(GM_delam="Yes",Delam_Sol,IF(Solution_type="b",TwoLay_sol,Single_Lay_Sol))),0)) -> 0 | S13: =IF($D$163<=0,0,IF(ISNUMBER(IF(Solution_type="a",Single_Lay_Mass,IF(GM_delam="Yes",Delam_Mass_Sol,IF(Solution_type="b",Two_Lay_Mass,Single_Lay_Mass)))),IF(Solution_type="a",Single_Lay_Mass,IF(GM_delam="Yes",Delam_Mass_Sol,IF(Solution_type="b",Two_Lay_Mass,Single_Lay_Mass))),0)) / 86400 -> 0
A14: =IF(OR(D159<=0, D158<=0, D160<=0, D161<0),2,1) -> 1 | C14: Leachate head inside landfill | D14: Head_inLF | E14: 125.9 | F14: maOD | I14: Maximum contaminant concentration at compliance point at tmax | J14: C_comp | K14: =IF(Cont_Class="List I",C_bar,IF(C_bar>0.1*Conc_LF,">10% leachate",C_bar)) -> 0 | L14: mg/l | Q14: =Q13*tscale -> 1.258925412 | R14: 0 | S14: 0
A15: =IF(D160<=0,2,1) -> 1 | C15: Groundwater head outside landfill | D15: Head_outLF | E15: 126 | F15: maOD | Q15: =Q14*tscale -> 1.584893192 | R15: 0 | S15: 0
A16: 1 | C16: Area of liner below the water table | D16: Area_contact | E16: =IF(CM=1, Base_Area, IF( CM = 2, ( Base_Area +2 * ABS(Head_inLF-LFbase_elev) * (Width_LF+Length_LF)), 2 * ABS(Head_inLF-Aqbound_elev) * (Width_LF+Length_LF))) -> 18320.4 | F16: m2 | I16: CHART PARAMETERS | Q16: 1.995262315 | R16: 0 | S16: 0
I17: Minimum axis display | J17: tmin | K17: 1 | L17: years | Q17: 2.511886432 | R17: 0 | S17: 0
C18: CONTAMINANT PARAMETERS | I18: Maximum axis display | J18: tmax | K18: 100000 | L18: years | Q18: 3.16227766 | R18: 0 | S18: 0
C19: Contaminant name | D19: Cont_Nme | E19: Arsenic | F19: - | Q19: 3.981071706 | R19: 0 | S19: 0
C20: Contaminant type | D20: Cont_Type | E20: Inorganic | F20: - | I20: =IF(test_expire(),IF(Area_delam_check*Area_defect_check>0,C152,C174),C154) ->  | Q20: 5.011872336 | R20: 0 | S20: 0
C21: Contaminant classification | D21: Cont_Class | E21: List I | F21: - | Q21: 6.309573445 | R21: 0 | S21: 0
C22: Concentration in landfill leachate | D22: Conc_LF | E22: 0.013 | F22: mg/l | Q22: 7.943282347 | R22: 0 | S22: 0
C23: Free water diffusion coefficient | D23: Dw_cl | E23: 7.17e-10 | F23: m2/s | Q23: 10 | R23: 0 | S23: 0
Q24: 12.58925412 | R24: 0 | S24: 0
C25: Partition coefficient in clay | D25: Kd_cl | E25: 500 | F25: l/kg | Q25: 15.84893192 | R25: 0 | S25: 0
C26: Retardation factor in clay | D26: R_cl | E26: =1+(0.001*rho*Kd_cl/n) -> 7001 | F26: - | Q26: 19.95262315 | R26: 0 | S26: 0
C27: Half life in clay (0 for no decay) | D27: thalf_cl | E27: 0 | F27: days | Q27: 25.11886432 | R27: 0 | S27: 0
C28: Decay in sorbed phase? | D28: Decay_sorb | E28: No | F28: - | Q28: =Q27*tscale -> 31.6227766 | R28: 0 | S28: 0
C29: Decay constant in clay | D29: Decay_cl | E29: =IF(thalf_cl<=0,0,LN(2)/(thalf_cl*s_per_day)/IF(Decay_sorb="Yes",1,R_cl)) -> 0 | F29: 1/s | Q29: 39.81071706 | R29: 0 | S29: 0
Q30: 50.11872336 | R30: 0 | S30: 0
A31: =IF(Solution_type="a",0,IF(Cont_Type="Inorganic",0,1)) -> 0 | C31: Partition coefficient to geomembrane | D31: Kd_gm | E31: 0.2 | F31: - | Q31: 63.09573445 | R31: 0 | S31: 0
A32: =IF(Solution_type="a",0,IF(Cont_Type="Inorganic",0,1)) -> 0 | C32: Diffusion coefficient in geomembrane | D32: Dw_gm | E32: 2.9e-14 | F32: m2/s | Q32: 79.43282347 | R32: 0 | S32: 0
Q33: 100 | R33: 0 | S33: 0
C34: MINERAL BARRIER / LINER | Q34: 125.8925412 | R34: 0 | S34: 0
C35: =IF(CM=1,"Thickness of mineral barrier is calculated as " & thick_cl & "m","Thickness of mineral liner") -> Thickness of mineral liner | D35: thick_clbr | E35: 0.5 | F35: m | Q35: 158.4893192 | R35: 0 | S35: 0
C36: Hydraulic conductivity | D36: k_cl | E36: 1e-08 | F36: m/s | Q36: 199.5262315 | R36: 0 | S36: 0
C37: Average pore radius | D37: pore_radius | E37: 1e-05 | F37: m | Q37: 251.1886432 | R37: 0 | S37: 0
C38: Effective porosity | D38: n | E38: 0.15 | F38: - | Q38: 316.227766 | R38: 0 | S38: 0
C39: Dry bulk density | D39: rho | E39: 2100 | F39: kg/m3 | Q39: 398.1071706 | R39: 0 | S39: 0
C40: Tortuosity | D40: tau_cl | E40: 10 | F40: - | Q40: 501.1872336 | R40: 0 | S40: 0
Q41: 630.9573445 | R41: 0 | S41: 0
A42: =IF(Solution_type="a", 0,1) -> 0 | C42: GEOMEMBRANE BARRIER | Q42: 794.3282347 | R42: 0 | S42: 0
A43: 0 | C43: Thickness of geomembrane | D43: thick_gm | E43: 0.003 | F43: m | Q43: 1000 | R43: 0 | S43: 0
A44: 0 | C44: Quality of geomembrane/clay contact | D44: GM_contact | E44: Good contact | F44: - | Q44: 1258.925412 | R44: 0 | S44: 0
A45: 0 | C45: Has part of the geomembrane delaminated? | D45: GM_delam | E45: Yes | F45: - | Q45: 1584.893192 | R45: =IF($D$163<=0,0,IF(ISNUMBER(IF(Solution_type="a",Single_Lay_Sol,IF(GM_delam="Yes",Delam_Sol,IF(Solution_type="b",TwoLay_sol,Single_Lay_Sol)))),IF(Solution_type="a",Single_Lay_Sol,IF(GM_delam="Yes",Delam_Sol,IF(Solution_type="b",TwoLay_sol,Single_Lay_Sol))),0)) -> 0 | S45: =IF($D$163<=0,0,IF(ISNUMBER(IF(Solution_type="a",Single_Lay_Mass,IF(GM_delam="Yes",Delam_Mass_Sol,IF(Solution_type="b",Two_Lay_Mass,Single_Lay_Mass)))),IF(Solution_type="a",Single_Lay_Mass,IF(GM_delam="Yes",Delam_Mass_Sol,IF(Solution_type="b",Two_Lay_Mass,Single_Lay_Mass))),0)) / 86400 -> 0
A46: =IF( OR(GM_delam="No", Solution_type="a"), 0,1) -> 0 | C46: Area of geomembrane delaminated | D46: Area_Delam | E46: =Area_contact -> 18320.4 | F46: m2 | Q46: 1995.262315 | R46: 0 | S46: 0
Q47: 2511.886432 | R47: 0 | S47: 0
A48: 0 | C48: MEMBRANE DEFECTS | Q48: 3162.27766 | R48: 0 | S48: 0
A49: 0 | C49: Density of pin holes n_pin | D49: 2 | E49: /ha | F49: =D49/10000 -> 0.0002 | H49: /m2 | Q49: 3981.071706 | R49: 0 | S49: 0
A50: 0 | C50: Area of pin holes A_pin | D50: 2.5 | E50: mm2 | F50: =D50/10^6 -> 2.5e-06 | H50: m2 | Q50: 5011.872336 | R50: 0 | S50: 0
A51: 0 | C51: Density of holes n_hole | D51: 2 | E51: /ha | F51: =D51/10000 -> 0.0002 | H51: /m2 | Q51: 6309.573445 | R51: 0 | S51: 0
A52: 0 | C52: Area of holes A_hole | D52: 2 | E52: mm2 | F52: =D52/10^6 -> 2e-06 | H52: m2 | Q52: 7943.282347 | R52: 0 | S52: 0
A53: 0 | C53: Density of tears n_tear | D53: 1 | E53: /ha | F53: =D53/10000 -> 0.0001 | H53: /m2 | Q53: 10000 | R53: 0 | S53: 0
A54: 0 | C54: Length of tears l_tear | D54: 1000 | E54: mm | F54: =D54/1000 -> 1 | H54: m | Q54: 12589.25412 | R54: 0 | S54: 0
A55: 0 | C55: Width of tears w_tear | D55: 1 | E55: mm | F55: =D55/1000 -> 0.001 | H55: m | Q55: 15848.93192 | R55: 0 | S55: 0
Q56: =Q55*tscale -> 19952.62315 | R56: 0 | S56: 0
Q57: 25118.86432 | R57: 0 | S57: 0
Q58: 31622.7766 | R58: 0 | S58: 0
Q59: 39810.71706 | R59: 0 | S59: 0
Q60: 50118.72336 | R60: 0 | S60: 0
Q61: 63095.73445 | R61: 0 | S61: 0
Q62: 79432.82347 | R62: 0 | S62: 0
Q63: =Q62*tscale -> 100000 | R63: 0 | S63: 0
C64: CALCULATIONS START HERE…
C65: Type of solution to use (determines flows and areas to use) | E65: Solution_type | F65: =IF(OR(CM=1,AND(OR(CM=2,CM=3),GM_opt="No")),"a",IF(AND(CM>1,AND(GM_opt="Yes",Cont_Type="Organic")),"b","c")) -> a
A67: =IF(Solution_type="a", 0,1) -> 0 | C67: Giroud constants
A68: =IF(Solution_type="a", 0,1) -> 0 | D68: Good | E68: Poor | F68: CqBase
A69: =IF(Solution_type="a", 0,1) -> 0 | C69: Cq0 | D69: 0.21 | E69: 1.15 | F69: =IF(GM_contact="Good contact",Cq0 Good, IF(GM_contact="Poor contact",Cq0 Poor,0)) -> 0.21
A70: =IF(Solution_type="a", 0,1) -> 0 | C70: Cq8 | D70: 0.52 | E70: 1.22 | F70: =IF(GM_contact="Good contact",Cq8_ Good, IF(GM_contact="Poor contact",Cq8_ Poor,0)) -> 0.52
A72: =IF(Solution_type="a", 0,1) -> 0 | E72: i_avg_0_base | F72: =(ABS(Head_outLF-Head_inLF)/ (thick_cl+IF(GM_opt="Yes",thick_gm,0))) -> 0.2
A73: =IF(Solution_type="a", 0,1) -> 0 | E73: i_avg_8_base | F73: =(ABS(Head_outLF-Head_inLF)/ (thick_cl+IF(GM_opt="Yes",thick_gm,0))) -> 0.2
C75: Calculated dispersion values
C76: Coefficient of mechanical dispersion | D76: D_mech | E76: 0 | F76: -
A77: =IF(Solution_type="a", 0,1) -> 0 | C77: Diffusion coefficient for transport of organic through intact geomembrane | D77: D_org | E77: =Dw_gm -> 2.9e-14 | F77: m2/s
A78: =IF(Solution_type="a", 0,1) -> 0 | C78: Diffusion coefficient for transport through a defect | D78: D_def | E78: =((Dw_cl+Dt_def)) -> 0.01300000072 | F78: m2/s
A79: =IF(Solution_type="a", 0,1) -> 0 | C79: Diffusion coefficient for clay | D79: D_cl | E79: =D_mech*ABS(vel_cl)+((1/tau_cl)*(Dw_cl+Dt_cl)) -> 7.17e-11 | F79: m2/s
A82: =IF(Solution_type="a", 0,1) -> 0 | C82: Enhanced diffusion against advective flow in clay | D82: Dt_cl | E82: =n*pore_radius^2*umax^2/(192*Dw_cl) -> 9.806485356e-22 | F82: m2/s
A83: =IF(Solution_type="a", 0,1) -> 0 | C83: Enhanced diffusion against advective flow in defect | D83: Dt_def | E83: =IF(Solution_type="a",Conc_LF,IF(OR(Defect_Choice=1,Defect_Choice=4),Dt_def_arr Pin,IF(OR(Defect_Choice=2,Defect_Choice=5),Dt_def_arr Hole,Dt_def_arr Tear))) -> 0.013 | F83: m2/s
C84: Longitudinal mechanical dispersion in the clay | D84: Dl_cl | E84: =ABS(D_mech*vel_cl) -> 0 | F84: m2/s
C86: Calculated concentrations and hydraulic conductivities
A87: =IF(Solution_type="b", 0,1) -> 1 | C87: Concentration at top of clay barrier | D87: Conc_def | E87: =IF(Solution_type="a",Conc_LF,IF(OR(Defect_Choice=1,Defect_Choice=4),Conc_def_arr Pin,IF(OR(Defect_Choice=2,Defect_Choice=5),Conc_def_arr Hole,Conc_def_arr Tear))) -> 0.013 | F87: mg/l
A88: =IF(Solution_type<>"b", 0,1) -> 0 | C88: Concentration of solvent at top of membrane | D88: Conc_gm | E88: =Conc_LF*Kd_gm -> 0.0026 | F88: mg/l
A91: =IF(Solution_type="a", 0,1) -> 0 | C91: Flow areas and capture zones
A92: 0 | C92: Wetted radius | D92: WR_pin | E92: =SQRT((Cq0 CqBase)/PI())*(A_pin ^0.05)*(ABS(Head_outLF-Head_inLF)^0.45)*(k_cl^(-0.13)) -> 0.5277542161 | F92: m
A93: 0 | D93: WR_hole | E93: =SQRT((Cq0 CqBase)/PI())*(A_hole ^0.05)*(ABS(Head_outLF-Head_inLF)^0.45)*(k_cl^(-0.13)) -> 0.5218986949 | F93: m
A94: 0 | D94: WR_tear | E94: =SQRT((Cq0 CqBase)/PI())*(w_tear ^0.1)*(ABS(Head_outLF-Head_inLF)^0.45)*(k_cl^(-0.13)) -> 0.5041209094 | F94: m
A96: 0 | C96: Area of Capture zones | D96: CZ_Pin | E96: =PI()*WR_pin^2 -> 0.8750105626 | F96: m2
A97: 0 | D97: CZ_hole | E97: =PI()*WR_hole^2 -> 0.855701502 | F97: m2
A98: 0 | D98: CZ_tear | E98: =PI()*WR_tear^2+(WR_tear*2*(l_tear-w_tear)) -> 1.805631309 | F98: m2
A100: 0 | C100: Total area of capture zones | D100: Area_CZ | E100: =MIN((1-IF(CM=1,0,IF(GM_delam="Yes",Frac_Delam,0)))*Area_contact*(n_pin*CZ_Pin+n_hole*CZ_hole+n_tear*CZ_tear),(1-IF(CM=1,0,IF(GM_delam="Yes",Frac_Delam,0)))*Area_contact) -> 0 | F100: m2
A101: 0 | C101: Total area of geomembrane defects | D101: Area_gm_defs | E101: =(1-IF(CM=1,0,IF(GM_delam="Yes",Frac_Delam,0)))*Area_contact*(A_pin*n_pin+A_hole*n_hole+l_tear*w_tear*n_tear) -> 0 | F101: m2
A103: 0 | C103: Thickness of clay underlying the landfill | D103: thick_cl | E103: =IF(CM=1,LFbase_elev-Aqbound_elev,thick_clbr) -> 0.5 | F103: m
A105: 0 | C105: Fluxes into the landfill through geomembrane defects
C106: Upper K threshold for Giroud equation for a pinhole | D106: K_Giroud_pin | E106: =((0.4836*(A_pin^0.9))/(Cq0 CqBase*(1+0.1*((ABS(Head_outLF-Head_inLF)/thick_cl)^0.95 ))*(ABS(Head_outLF-Head_inLF)^0.4)))^(1/0.74) -> 1.600254127e-06 | F106: m/s
C107: Potential flux through a pinhole using Giroud | D107: Q_pin_Giroud | E107: =i_avg_0_base *ABS(Head_outLF-Head_inLF)^0.9 * (k_cl^0.74)*(A_pin ^0.1)*Cq0 CqBase -> 1.750021125e-09 | F107: m3/s
D108: nparam_pin | E108: =5.554-0.4324*LOG(1.128*(A_pin^0.5))+0.5405*LOG(ABS(Head_outLF-Head_inLF))+1.3514*LOG(Cq0 CqBase)+1.3514*LOG(1+0.1*(ABS(Head_outLF-Head_inLF)/thick_cl)^0.95) -> 5.298679899
C109: Potential flux through a pinhole using interpolation | D109: Q_pin_Interp | E109: =10^( 0.3195 + 2 * LOG( 1.128*(A_pin^0.5) ) + 0.5 * LOG( ABS(Head_outLF-Head_inLF) ) - 0.74 * (( 5 + 2 * LOG( 1.128*(A_pin^0.5) ) - LOG( k_cl )) / nparam_pin )^nparam_pin ) -> 4.461854959e-11 | F109: m3/s
C111: Upper K threshold for Giroud equation for a hole | D111: K_Giroud_hole | E111: =(0.4836*(A_hole^0.9)/(Cq0 CqBase*(1+0.1*((ABS(Head_outLF-Head_inLF)/thick_cl)^0.95 ))*(ABS(Head_outLF-Head_inLF)^0.4)))^(1/0.74) -> 1.219903358e-06 | F111: m/s
C112: Potential flux through a hole using Giroud | D112: Q_hole_Giroud | E112: =i_avg_0_base *ABS(Head_outLF-Head_inLF)^0.9 * (k_cl^0.74)*(A_hole ^0.1)*Cq0 CqBase -> 1.711403004e-09 | F112: m3/s
D113: nparam_hole | E113: =5.554-0.4324*LOG(1.128*(A_hole^0.5))+0.5405*LOG(ABS(Head_outLF-Head_inLF))+1.3514*LOG(Cq0 CqBase)+1.3514*LOG(1+0.1*(ABS(Head_outLF-Head_inLF)/thick_cl)^0.95) -> 5.319631844
C114: Potential flux through a pinhole using interpolation | D114: Q_hole_Interp | E114: =10^( 0.3195 + 2 * LOG( 1.128*(A_hole^0.5) ) + 0.5 * LOG( ABS(Head_outLF-Head_inLF) ) - 0.74 * (( 5 + 2 * LOG( 1.128*(A_hole^0.5) ) - LOG( k_cl )) / nparam_hole)^nparam_hole ) -> 8.398430049e-11 | F114: m3/s
A116: 0 | C116: Inward flux through a pinhole in the geomembrane | D116: Q_pin | E116: =IF(k_cl<K_Giroud_pin,Q_pin_Giroud,Q_pin_Interp) -> 1.750021125e-09 | F116: m3/s
A117: 0 | C117: Inward flux through a hole in the geomembrane | D117: Q_hole | E117: =IF(k_cl<K_Giroud_hole,Q_hole_Giroud,Q_hole_Interp) -> 1.711403004e-09 | F117: m3/s
A118: 0 | C118: Inward flux through a tear in the geomembrane | D118: Q_tear | E118: =i_avg_0_base *ABS(Head_outLF-Head_inLF)^0.9 * ( Cq0 CqBase ) * ( w_tear )^0.2 * ( k_cl)^0.74 + i_avg_8_base* ABS(Head_outLF-Head_inLF)^0.45 * ( Cq8_ CqBase ) * ( l_tear - w_tear ) * ( w_tear )^0.1 * ( k_cl )^0.87 -> 3.62260601e-09 | F118: m3/s
C120: Fluxes into the landfill
A121: =IF(Solution_type="a", 0,1) -> 0 | C121: Inward flux through the defects calculated by Giroud equation | D121: Q_giroud | E121: =Area_flow*(Q_pin*n_pin+Q_hole*n_hole+Q_tear*n_tear) -> 1.931969404e-08 | F121: m3/s
C122: Inward Darcy flow in absence of geomembrane | D122: Q_darcy | E122: =k_cl*(Head_outLF-Head_inLF)*Area_contact/(thick_cl) -> 3.66408e-05 | F122: m3/s
A123: =IF((Solution_type<>"b"),0,1) -> 0 | C123: Inward flux through intact membrane | D123: Q_org | E123: 0 | F123: m3/s
C124: Inward flux into the landfill | D124: Q | E124: =IF(Solution_type="a",Q_darcy,IF(Solution_type="b",Q_org,MIN(Q_giroud,Q_darcy))) -> 3.66408e-05 | F124: m3/s
C126: Velocities
C127: ="Velocity through the clay "& IF(Solution_type="b","(underlying intact geomembrane)", "") -> Velocity through the clay | D127: vel_cl | E127: =IF(Solution_type="a",IF(Area_flow=0,0,(Head_inLF-Head_outLF)/ABS(Head_inLF-Head_outLF)*Q/(Area_flow*n)),vel_cl_used) -> -1.333333333e-08 | F127: m/s
A128: =IF(Solution_type<>"c",0,1) -> 0 | C128: Average velocity through a defect in the membrane | D128: vel_def | E128: =IF(Solution_type="a",Conc_LF,IF(OR(Defect_Choice=1,Defect_Choice=4),vel_def_arr Pin,IF(OR(Defect_Choice=2,Defect_Choice=5),vel_def_arr Hole,vel_def_arr Tear))) -> 0.013 | F128: m/s
C129: Maximum velocity through centre of a pore in mineral liner | D129: umax | E129: =1.5*vel_cl*n -> -3e-09 | F129: m/s
A130: =IF(Solution_type<>"c",0,1) -> 0 | C130: Maximum velocity through centre of a pore in defect | D130: umax_def | E130: =IF(Solution_type="a",Conc_LF,IF(OR(Defect_Choice=1,Defect_Choice=4),umax_def_arr Pin,IF(OR(Defect_Choice=2,Defect_Choice=5),umax_def_arr Hole,umax_def_arr Tear))) -> 0.013 | F130: m/s
A132: =IF(OR(Solution_type="a", GM_delam="No"),0,1) -> 0 | C132: Delaminated Parameters
A133: =IF(OR(Solution_type="a", GM_delam="No"),0,1) -> 0 | C133: Inward flux into the landfill over delaminated region | D133: Q_Delam | E133: =k_cl*(Head_outLF-Head_inLF)*Area_Delam/(thick_cl) -> 3.66408e-05 | F133: m3/s
A134: 0 | C134: Velocity through the clay through the delaminated region | D134: vel_delam | E134: =(Head_inLF-Head_outLF)/ABS(Head_inLF-Head_outLF)*Q_Delam/(Area_Delam*n) -> -1.333333333e-08 | F134: m/s
A135: 0 | C135: Maximum velocity through centre of a pore in mineral liner through delaminated region | D135: umax_delam | E135: =1.5*vel_delam*n -> -3e-09 | F135: m/s
A136: 0 | C136: Enhanced diffusion against advective flow in clay for delaminated region | D136: Dt_Delam | E136: =n*pore_radius^2*umax_delam^2/(192*Dw_cl) -> 9.806485356e-22 | F136: m2/s
A137: 0 | C137: Diffusion coefficient for clay through delaminated region | D137: Dcl_Delam | E137: =D_mech*ABS(vel_delam)+((1/tau_cl)*(Dw_cl+Dt_Delam)) -> 7.17e-11 | F137: m2/s
A138: 0 | C138: Concentration at top of clay barrier for delaminated region | D138: Conc_delam | E138: =Conc_LF -> 0.013 | F138: mg/l
C140: Summary of parameters for mass calculations
C141: Leachate concentration | D141: C_LF | E141: =IF(Solution_type="a",Conc_LF,IF(Solution_type="b",Conc_gm,Conc_def)) -> 0.013 | F141: mg/l
C142: Concentration at edge of barrier | D142: C_bar | E142: =MAX(R13:R63) -> 0 | F142: mg/l
C143: Diffusion coefficient | D143: D_used | E143: =IF(Solution_type="b",D_org,D_cl) -> 7.17e-11 | F143: m2/s
C144: Distance | D144: x_used | E144: =IF(Solution_type="b",thick_cl+thick_gm,thick_cl) -> 0.5 | F144: m
C145: Outward flux area | D145: Area_flux | E145: =IF(Solution_type="c",Area_CZ,Area_contact*(1-IF(OR(Solution_type="a",CM=1),0,IF(GM_delam="Yes",Frac_Delam,0)))) -> 18320.4 | F145: m2
C146: Inward flow area | D146: Area_flow | E146: =IF(OR(Solution_type="c",Solution_type="b"),Area_CZ,(1-IF(OR(Solution_type="a",CM=1),0,IF(GM_delam="Yes",Frac_Delam,0)))*Area_contact) -> 18320.4 | F146: m2
C152: =IF(D162<0,C164,IF(D157<=0,IF(CM=3,C169,C165),IF(D161<0,C170,IF(D158<=0,C166,IF(D159<=0,C167,IF(D160<=0,C168,IF(Cont_Class="List II",IF(K14>0.1*Conc_LF,C153,""),""))))))) -> 
C153: WARNING: Concentrations at the compliance point are predicted to exceed 10% of the leachate concentration. The boundary conditions used are only valid for low concentrations, and results may be unreliable above 10% of the leachate concentration.
C154: WARNING: This spreadsheet has expired! Please contact the Environment Agency for an updated version.
C155: Area_delam_check | D155: =IF(Area_Delam=0,0,1) -> 1
C156: Area_defect_check | D156: =IF(D50*D52*D54*D55=0,0,1) -> 1
C157: Aquifer base check | D157: =IF(LEN(LFbase_elev)*LEN(Aqbound_elev)=0,1,IF(CM=3,Aqbound_elev-LFbase_elev,(LFbase_elev-Aqbound_elev))) -> 0.01
C158: Head base check | D158: =IF(LEN(Head_inLF)*LEN(LFbase_elev)=0,1,(Head_inLF-LFbase_elev)) -> 50.9
C159: Head out base check | D159: =IF(LEN(Head_outLF)*LEN(LFbase_elev)=0,1,(Head_outLF-LFbase_elev)) -> 51
C160: Head check | D160: =IF(LEN(Head_inLF)*LEN(Head_outLF)=0,1,(Head_outLF-Head_inLF)) -> 0.1
C161: CM3 check | D161: =IF(CM=3,IF(Head_inLF<Aqbound_elev,-1,1),1) -> 1
C162: Area check | D162: =IF(GM_delam="Yes",IF(Area_contact<Area_Delam,-1,1),1) -> 1
C163: elev check | D163: =LEN(LFbase_elev)*LEN(Aqbound_elev)*LEN(Head_inLF)*LEN(Head_outLF)*MIN(D157:D162) -> 1.5
C164: WARNING: The delaminated area should be less than or equal to the area of the landfill!
C165: ="WARNING: The base of the landfill should be higher than the " & IF(CM=1,"top", "base") & " of the aquifer!" -> WARNING: The base of the landfill should be higher than the base of the aquifer!
C166: WARNING: The leachate head should be higher than the base of the landfill!
C167: WARNING: The groundwater head should be higher than the base of the landfill!
C168: WARNING: The leachate head should be lower than the groundwater head!
C169: WARNING: The base of the landfill should be lower than the top of the aquifer!
C170: WARNING: The leachate head should be greater than the elevation of the base of the aquifer
C171: WARNING: The area over which the geomembrane is delaminated must be greater than zero and not greater than the area of the liner below the water table.
C172: WARNING: The dimensions of the defects should not be set to zero! Set the density of the required defect to zero to indicate the defect is not present.
C173: =IF(Area_delam_check=0,C171,IF(Area_defect_check=0,C172,"")) -> 
C174: =IF(Area_delam_check=0,C173,IF(Area_defect_check=0,C172,"")) -> 

Sheet Justifications
C2: =Introduction!$A$17 -> Sabdown Quarry | D2: =Introduction!$A$21 -> 2023-08-01
C3: =Introduction!$A$19 -> Byrne Looby
C5: CONCEPTUAL MODEL AND LANDFILL CONSTRUCTION | G5: Justification / Reference / Notes
C6: Scenario | E6: =CM -> 3 | G6: Conceptual Model
A7: =Calculations!A6 -> 1 | C7: Is a geomembrane present? | E7: =Calculations!$E$6 -> No | G7: Geological Barrier Only
C9: =Calculations!C8 -> Basal width perpendicular to groundwater flow | D9: =Calculations!D8 -> Width_LF | E9: =Calculations!E8 -> 130 | F9: =Calculations!F8 -> m | G9: Approximate site dimensions
C10: =Calculations!C9 -> Basal length parallel to groundwater flow | D10: =Calculations!D9 -> Length_LF | E10: =Calculations!E9 -> 50 | F10: =Calculations!F9 -> m | G10: Approximate site dimensions
A11: =Calculations!A11 -> 1 | C11: =Calculations!C11 -> Elevation of base of landfill | D11: =Calculations!D11 -> LFbase_elev | E11: =Calculations!E11 -> 75 | F11: =Calculations!F11 -> maOD | G11: Known Base
A12: =Calculations!A12 -> 1 | C12: =Calculations!C12 -> Elevation of base of aquifer | D12: =Calculations!D12 -> Aqbound_elev | E12: =Calculations!E12 -> 75.01 | F12: =Calculations!F12 -> maOD | G12: Nominal value
A13: =Calculations!A13 -> 0 | C13: =Calculations!C13 -> Maximum thickness of underlying aquifer | D13: =Calculations!D13 -> Aq_max | E13: =Calculations!E13 -> 1 | F13: =Calculations!F13 -> m
A14: =Calculations!A14 -> 1 | C14: =Calculations!C14 -> Leachate head inside landfill | D14: =Calculations!D14 -> Head_inLF | E14: =Calculations!E14 -> 125.9 | F14: =Calculations!F14 -> maOD | G14: Hypothetical level based on site design
A15: =Calculations!A15 -> 1 | C15: =Calculations!C15 -> Groundwater head outside landfill | D15: =Calculations!D15 -> Head_outLF | E15: =Calculations!E15 -> 126 | F15: =Calculations!F15 -> maOD | G15: Watertable nominally 1m higher than leachate level
C17: CONTAMINANT PARAMETERS
C18: =Calculations!C19 -> Contaminant name | D18: =Calculations!D19 -> Cont_Nme | E18: =Calculations!E19 -> Arsenic | F18: =Calculations!F19 -> - | G18: Hazardous Species prevalent in leachate
C19: =Calculations!C20 -> Contaminant type | D19: =Calculations!D20 -> Cont_Type | E19: =Calculations!E20 -> Inorganic | F19: =Calculations!F20 -> - | G19: -
C20: =Calculations!C21 -> Contaminant classification | D20: =Calculations!D21 -> Cont_Class | E20: =Calculations!E21 -> List I | F20: =Calculations!F21 -> - | G20: -
C21: =Calculations!C22 -> Concentration in landfill leachate | D21: =Calculations!D22 -> Conc_LF | E21: =Calculations!E22 -> 0.013 | F21: =Calculations!F22 -> mg/l | G21: Maximum predicted concentration increased by a factor of 10
C22: =Calculations!C23 -> Free water diffusion coefficient | D22: =Calculations!D23 -> Dw_cl | E22: =Calculations!E23 -> 7.17e-10 | F22: =Calculations!$F$23 -> m2/s | G22: Buss et al (2004)
C23: =Calculations!C25 -> Partition coefficient in clay | D23: =Calculations!D25 -> Kd_cl | E23: =Calculations!E25 -> 500 | F23: =Calculations!$F$25 -> l/kg | G23: Nominal value based on range of Kd for cadmium
C24: =Calculations!C27 -> Half life in clay (0 for no decay) | D24: =Calculations!D27 -> thalf_cl | E24: =Calculations!E27 -> 0 | F24: =Calculations!F27 -> days | G24: Conservative assumption (no decay) as per EA SC0310/SR
C25: =Calculations!C28 -> Decay in sorbed phase? | D25: =Calculations!D28 -> Decay_sorb | E25: =Calculations!E28 -> No | F25: =Calculations!F28 -> - | G25: -
A26: =Calculations!A31 -> 0 | C26: =Calculations!C31 -> Partition coefficient to geomembrane | D26: =Calculations!D31 -> Kd_gm | E26: =Calculations!E31 -> 0.2 | F26: =Calculations!F31 -> -
A27: =Calculations!A32 -> 0 | C27: =Calculations!C32 -> Diffusion coefficient in geomembrane | D27: =Calculations!D32 -> Dw_gm | E27: =Calculations!E32 -> 2.9e-14 | F27: =Calculations!F32 -> m2/s
C29: MINERAL BARRIER / LINER
C30: =Calculations!C35 -> Thickness of mineral liner | D30: =Calculations!D35 -> thick_clbr | E30: =Calculations!E35 -> 0.5 | F30: =Calculations!F35 -> m | G30: Minimum AGB thickness (underestimate for side wall barrier)
C31: =Calculations!C36 -> Hydraulic conductivity | D31: =Calculations!D36 -> k_cl | E31: =Calculations!E36 -> 1e-08 | F31: =Calculations!F36 -> m/s | G31: Nominal maximum permeability
C32: =Calculations!C37 -> Average pore radius | D32: =Calculations!D37 -> pore_radius | E32: =Calculations!E37 -> 1e-05 | F32: =Calculations!F37 -> m | G32: Fetter (2001)
C33: =Calculations!C38 -> Effective porosity | D33: =Calculations!D38 -> n | E33: =Calculations!E38 -> 0.15 | F33: =Calculations!F38 -> - | G33: HRA modelling value used (significant overestimate)
C34: =Calculations!C39 -> Dry bulk density | D34: =Calculations!D39 -> rho | E34: =Calculations!E39 -> 2100 | F34: =Calculations!F39 -> kg/m3 | G34: HRA modelling value used Mean Figure
C35: =Calculations!C40 -> Tortuosity | D35: =Calculations!D40 -> tau_cl | E35: =Calculations!E40 -> 10 | F35: =Calculations!F40 -> - | G35: Buss et al (2004, after De Marsily (1986)
A37: =Calculations!A42 -> 0 | C37: GEOMEMBRANE BARRIER
A38: =Calculations!A43 -> 0 | C38: =Calculations!C43 -> Thickness of geomembrane | D38: =Calculations!D43 -> thick_gm | E38: =Calculations!E43 -> 0.003 | F38: =Calculations!F43 -> m
A39: =Calculations!A44 -> 0 | C39: =Calculations!C44 -> Quality of geomembrane/clay contact | D39: =Calculations!D44 -> GM_contact | E39: =Calculations!E44 -> Good contact | F39: =Calculations!F44 -> -
A40: =Calculations!A45 -> 0 | C40: =Calculations!C45 -> Has part of the geomembrane delaminated? | D40: =Calculations!D45 -> GM_delam | E40: =Calculations!E45 -> Yes | F40: =Calculations!F45 -> -
A41: =Calculations!A46 -> 0 | C41: =Calculations!C46 -> Area of geomembrane delaminated | D41: =Calculations!D46 -> Area_Delam | E41: =Calculations!E46 -> 18320.4 | F41: =Calculations!F46 -> m2
A43: =Calculations!A49 -> 0 | C43: =TRIM(LEFT(Calculations!C49,25)) -> Density of pin holes | D43: =TRIM(RIGHT(Calculations!C49,10)) -> n_pin | E43: =Calculations!D49 -> 2 | F43: =Calculations!E49 -> /ha
A44: =Calculations!A50 -> 0 | C44: =TRIM(LEFT(Calculations!C50,25)) -> Area of pin holes | D44: =TRIM(RIGHT(Calculations!C50,10)) -> A_pin | E44: =Calculations!D50 -> 2.5 | F44: =Calculations!E50 -> mm2
A45: =Calculations!A51 -> 0 | C45: =TRIM(LEFT(Calculations!C51,25)) -> Density of holes | D45: =TRIM(RIGHT(Calculations!C51,10)) -> n_hole | E45: =Calculations!D51 -> 2 | F45: =Calculations!E51 -> /ha
A46: =Calculations!A52 -> 0 | C46: =TRIM(LEFT(Calculations!C52,25)) -> Area of holes | D46: =TRIM(RIGHT(Calculations!C52,10)) -> A_hole | E46: =Calculations!D52 -> 2 | F46: =Calculations!E52 -> mm2
A47: =Calculations!A53 -> 0 | C47: =TRIM(LEFT(Calculations!C53,25)) -> Density of tears | D47: =TRIM(RIGHT(Calculations!C53,10)) -> n_tear | E47: =Calculations!D53 -> 1 | F47: =Calculations!E53 -> /ha
A48: =Calculations!A54 -> 0 | C48: =TRIM(LEFT(Calculations!C54,25)) -> Length of tears | D48: =TRIM(RIGHT(Calculations!C54,10)) -> l_tear | E48: =Calculations!D54 -> 1000 | F48: =Calculations!E54 -> mm
A49: =Calculations!A55 -> 0 | C49: =TRIM(LEFT(Calculations!C55,25)) -> Width of tears | D49: =TRIM(RIGHT(Calculations!C55,10)) -> w_tear | E49: =Calculations!D55 -> 1 | F49: =Calculations!E55 -> mm
A51: =Calculations!G4 -> 0 | C51: STEADY STATE DILUTION
A52: =Calculations!G5 -> 0 | C52: =Calculations!I5 -> Hydraulic gradient in the aquifer | D52: =Calculations!J5 -> aq_I | E52: =Calculations!K5 -> 0.002 | F52: =Calculations!L5 -> - | G52: Taken from SLR 2009 HRA, based on EA feedback
A53: =Calculations!G6 -> 0 | C53: =Calculations!I6 -> Hydraulic conductivity of the aquifer | D53: =Calculations!J6 -> k_aq | E53: =Calculations!K6 -> 1e-10 | F53: =Calculations!L6 -> m/s | G53: BH specific data from CL Associates 2003
A54: =Calculations!G7 -> 0 | C54: =Calculations!I7 -> Downgradient distance of compliance point from landfill | D54: =Calculations!J7 -> dist_cp | E54: =Calculations!K7 -> 60 | F54: =Calculations!L7 -> m | G54: Edged of liner (assume 1m thickness as a minimum)
A55: =Calculations!G8 -> 0 | C55: =Calculations!I10 -> Dilution flow in aquifer downstream to the landfill | D55: =Calculations!J10 -> aq_Q | E55: =Calculations!K10 -> 3.026455026e-10 | F55: =Calculations!L10 -> m3/s

Sheet C and J Calc Summary (hidden)
A2: All data reported at the latest time
A3: =Cont_Class -> List I | B3: =Cont_Type -> Inorganic | C3: Delam | D3: =GM_delam -> Yes
A4: List I Concentration solution
A5: Single Layer
A6: Pin | B6: Hole | C6: Tear | D6: Two layer | E6: Delam
A7: ='Single layer solutions'!M63 -> 0 | B7: ='Single layer solutions'!Q63 -> 0 | C7: ='Single layer solutions'!U63 -> 0 | D7: ='Two Layer Solutions Layer Two'!L63 -> 0 | E7: =Delamination!K63 -> 0
A9: List II Concentration solution
A10: Single Layer
A11: Pin | B11: Hole | C11: Tear | D11: Two layer | E11: Single and two | F11: Delam | G11: Delam and single and two
A12: ='Single layer solutions'!L63*Area_CZ_arr Pin*1000/aq_Q -> 0 | B12: ='Single layer solutions'!P63*Area_CZ_arr Hole*1000/aq_Q -> 0 | C12: ='Single layer solutions'!T63*Area_CZ_arr Tear*1000/aq_Q -> 0 | D12: ='Two Layer Solutions Layer Two'!K63*Area_two*1000/aq_Q -> 0 | E12: =D12+B12+A12+C12 -> 0 | F12: =Delamination!J63*Area_delam*1000/aq_Q -> 0 | G12: =F12+E12 -> 0
A14: List I Mass flux kg/s
A15: Single Layer
A16: Pin | B16: Hole | C16: Tear | D16: Total single | E16: Two layer | F16: Single and two | G16: Delam | H16: Delam and single and two
A17: ='Single layer solutions'!N63*Area_CZ_arr Pin -> 0 | B17: ='Single layer solutions'!R63*Area_CZ_arr Hole -> 0 | C17: ='Single layer solutions'!V63*Area_CZ_arr Tear -> 0 | D17: =A17+B17+C17 -> 0 | E17: ='Two Layer Solutions Layer Two'!M63*Area_two -> 0 | F17: =E17+D17 -> 0 | G17: =Delamination!L63*Area_delam -> 0 | H17: =G17+F17 -> 0
A19: List II Mass flux kg/s
A20: Single Layer
A21: Pin | B21: Hole | C21: Tear | D21: Total | E21: Two layer | F21: Single and two | G21: Delam | H21: Delam and single and two
A22: ='Single layer solutions'!L63*Area_CZ_arr Pin -> 0 | B22: ='Single layer solutions'!P63*Area_CZ_arr Hole -> 0 | C22: ='Single layer solutions'!T63*Area_CZ_arr Tear -> 0 | D22: =A22+B22+C22 -> 0 | E22: ='Two Layer Solutions Layer Two'!K63*Area_two -> 0 | F22: =E22+D22 -> 0 | G22: =Delamination!J63*Area_delam -> 0 | H22: =F22+G22 -> 0

Sheet Single layer solutions (hidden)
A1: CM1 | B1: Inorg and Org | C1: List I | D1: List II | G1: vel_def_arr | H1: umax_def_arr | I1: Dt_def_arr | J1: D_def_arr | K1: vel_cl_arr | L1: umax_cl_arr | M1: Dt_cl_arr | N1: D_cl_arr | O1: number | P1: Area_CZ_arr | Q1: area_def_arr | R1: pore_rad_def_arr | S1: Conc_def_arr | T1: Multiplying factor at large times | X1: vel_cl_used | Y1: =IF(Solution_type="a",Conc_LF,IF(OR(Defect_Choice=1,Defect_Choice=4),vel_cl_arr Pin,IF(OR(Defect_Choice=2,Defect_Choice=5),vel_cl_arr Hole,vel_cl_arr Tear))) -> 0.013
A2: CM2 | B2: Inorg | C2: ListI | D2: ListII | E2: no gm | F2: Pin | G2: =(Head_inLF-Head_outLF)/ABS(Head_inLF-Head_outLF)*Q_pin/(A_Pin) -> -0.0007000084501 | H2: =1.5*vel_def_arr Pin*1 -> -0.001050012675 | I2: =1*pore_rad_def_arr Pin^2*umax_def_arr Pin^2/(192*Dw_cl) -> 6.373218893e-06 | J2: =((Dw_cl+Dt_def_arr Pin)) -> 6.373935893e-06 | K2: =(Head_inLF-Head_outLF)/ABS(Head_inLF-Head_outLF)*Q_pin/CZ_Pin -> -2e-09 | L2: =1.5*vel_cl_arr Pin*n -> -4.5e-10 | M2: =n*pore_radius^2*umax_cl_arr Pin^2/(192*Dw_cl) -> 2.206459205e-23 | N2: =D_mech*ABS(vel_cl_arr Pin)+((1/tau_cl)*(Dw_cl+Dt_cl_arr Pin)) -> 7.17e-11 | O2: =n_pin -> 0.0002 | P2: =MIN(MIN((1-IF(CM=1,0,IF(GM_delam="Yes",Frac_Delam,0))))*Area_contact*(n_pin*CZ_Pin), MIN((1-IF(CM=1,0,IF(GM_delam="Yes",Frac_Delam,0))))*Area_contact*n_pin*CZ_Pin/P6) -> 0 | Q2: =A_Pin*n_pin*Area_contact*(1-IF(CM=1,0,IF(GM_delam="Yes",Frac_Delam,0))) -> 0 | R2: =SQRT((A_Pin/PI())) -> 0.0008920620581 | S2: =IF(O2=0,0,IF(Solution_type="a",Conc_LF,(Conc_LF/2)*(ERFC_esi((thick_gm-(vel_def_arr Pin*tlarge))/(2*SQRT(D_def_arr Pin*tlarge)))+(EXP(vel_def_arr Pin*thick_gm/D_def_arr Pin)*ERFC_esi((thick_gm+(vel_def_arr Pin*tlarge))/(2*SQRT(D_def_arr Pin*tlarge))))))) -> 0.013 | T2: =(EXP(MIN(700,(vel_cl_arr Pin*x/(2*D_cl_arr Pin))*(1-SQRT(vel_cl_arr Pin^2+(4*Decay_cl*R_cl*D_cl_arr Pin))/vel_cl_arr Pin)))*ERFC_esi((1/(2*SQRT(D_cl_arr Pin*tlarge/R_cl)))*(x-(vel_cl_arr Pin*tlarge*SQRT(vel_cl_arr Pin^2+(4*Decay_cl*R_cl*D_cl_arr Pin))/vel_cl_arr Pin/R_cl)))+EXP(MIN(700,(vel_cl_arr Pin*x/(2*D_cl_arr Pin))*(1+SQRT(vel_cl_arr Pin^2+(4*Decay_cl*R_cl*D_cl_arr Pin))/vel_cl_arr Pin)))*ERFC_esi((1/(2*SQRT(D_cl_arr Pin*tlarge/R_cl)))*(x+(vel_cl_arr Pin*tlarge*SQRT(vel_cl_arr Pin^2+(4*Decay_cl*R_cl*D_cl_arr Pin))/vel_cl_arr Pin/R_cl)))) ->  | U2: =S2*T2 ->  | X2: umax_cl_used | Y2: =IF(Solution_type="a",Conc_LF,IF(OR(Defect_Choice=1,Defect_Choice=4),umax_cl_arr Pin,IF(OR(Defect_Choice=2,Defect_Choice=5),umax_cl_arr Hole,umax_cl_arr Tear))) -> 0.013
A3: CM3 | B3: Inorg | C3: List I | D3: ListII | E3: no gm | F3: Hole | G3: =(Head_inLF-Head_outLF)/ABS(Head_inLF-Head_outLF)*Q_hole/(A_hole) -> -0.000855701502 | H3: =1.5*vel_def_arr Hole*1 -> -0.001283552253 | I3: =1*pore_rad_def_arr Hole^2*umax_def_arr Hole^2/(192*Dw_cl) -> 7.618804775e-06 | J3: =((Dw_cl+Dt_def_arr Hole)) -> 7.619521775e-06 | K3: =(Head_inLF-Head_outLF)/ABS(Head_inLF-Head_outLF)*Q_hole/CZ_hole -> -2e-09 | L3: =1.5*vel_cl_arr Hole*n -> -4.5e-10 | M3: =n*pore_radius^2*umax_cl_arr Hole^2/(192*Dw_cl) -> 2.206459205e-23 | N3: =D_mech*ABS(vel_cl_arr Hole)+((1/tau_cl)*(Dw_cl+Dt_cl_arr Hole)) -> 7.17e-11 | O3: =n_hole -> 0.0002 | P3: =MIN(MIN((1-IF(CM=1,0,IF(GM_delam="Yes",Frac_Delam,0))))*Area_contact*(n_hole*CZ_hole), MIN((1-IF(CM=1,0,IF(GM_delam="Yes",Frac_Delam,0))))*Area_contact*(n_hole*CZ_hole)/P6) -> 0 | Q3: =A_hole*n_hole*Area_contact*(1-IF(CM=1,0,IF(GM_delam="Yes",Frac_Delam,0))) -> 0 | R3: =SQRT((A_hole/PI())) -> 0.0007978845608 | S3: =IF(O3=0,0,IF(Solution_type="a",Conc_LF,(Conc_LF/2)*(ERFC_esi((thick_gm-(vel_def_arr Hole*tlarge))/(2*SQRT(D_def_arr Hole*tlarge)))+(EXP(vel_def_arr Hole*thick_gm/D_def_arr Hole)*ERFC_esi((thick_gm+(vel_def_arr Hole*tlarge))/(2*SQRT(D_def_arr Hole*tlarge))))))) -> 0.013 | T3: =(EXP(MIN(700,(vel_cl_arr Hole*x/(2*D_cl_arr Hole))*(1-SQRT(vel_cl_arr Hole^2+(4*Decay_cl*R_cl*D_cl_arr Hole))/vel_cl_arr Hole)))*ERFC_esi((1/(2*SQRT(D_cl_arr Hole*tlarge/R_cl)))*(x-(vel_cl_arr Hole*tlarge*SQRT(vel_cl_arr Hole^2+(4*Decay_cl*R_cl*D_cl_arr Hole))/vel_cl_arr Hole/R_cl)))+EXP(MIN(700,(vel_cl_arr Hole*x/(2*D_cl_arr Hole))*(1+SQRT(vel_cl_arr Hole^2+(4*Decay_cl*R_cl*D_cl_arr Hole))/vel_cl_arr Hole)))*ERFC_esi((1/(2*SQRT(D_cl_arr Hole*tlarge/R_cl)))*(x+(vel_cl_arr Hole*tlarge*SQRT(vel_cl_arr Hole^2+(4*Decay_cl*R_cl*D_cl_arr Hole))/vel_cl_arr Hole/R_cl)))) ->  | U3: =S3*T3 ->  | X3: Dt_cl_used | Y3: =IF(Solution_type="a",Conc_LF,IF(OR(Defect_Choice=1,Defect_Choice=4),Dt_cl_arr Pin,IF(OR(Defect_Choice=2,Defect_Choice=5),Dt_cl_arr Hole,Dt_cl_arr Tear))) -> 0.013
A4: 1,2,3 | B4: List I for defect | F4: Tear | G4: =(Head_inLF-Head_outLF)/ABS(Head_inLF-Head_outLF)*Q_tear/(w_tear*l_tear) -> -3.62260601e-06 | H4: =1.5*vel_def_arr Tear*1 -> -5.433909015e-06 | I4: =1*pore_rad_def_arr Tear^2*umax_def_arr Tear^2/(192*Dw_cl) -> 5.362216553e-11 | J4: =((Dw_cl+Dt_def_arr Tear)) -> 7.706221655e-10 | K4: =(Head_inLF-Head_outLF)/ABS(Head_inLF-Head_outLF)*Q_tear/CZ_tear -> -2.00628223e-09 | L4: =1.5*vel_cl_arr Tear*n -> -4.514135018e-10 | M4: =n*pore_radius^2*umax_cl_arr Tear^2/(192*Dw_cl) -> 2.22034246e-23 | N4: =D_mech*ABS(vel_cl_arr Tear)+((1/tau_cl)*(Dw_cl+Dt_cl_arr Tear)) -> 7.17e-11 | O4: =n_tear -> 0.0001 | P4: =MIN(MIN((1-IF(CM=1,0,IF(GM_delam="Yes",Frac_Delam,0))))*Area_contact*(n_tear*CZ_tear), MIN((1-IF(CM=1,0,IF(GM_delam="Yes",Frac_Delam,0))))*Area_contact*(n_tear*CZ_tear)/P6) -> 0 | Q4: =w_tear*l_tear*n_tear*Area_contact*(1-IF(CM=1,0,IF(GM_delam="Yes",Frac_Delam,0))) -> 0 | R4: =MIN(w_tear/2,l_tear/2) -> 0.0005 | S4: =IF(O4=0,0,IF(Solution_type="a",Conc_LF,(Conc_LF/2)*(ERFC_esi((thick_gm-(vel_def_arr Tear*tlarge))/(2*SQRT(D_def_arr Tear*tlarge)))+(EXP(vel_def_arr Tear*thick_gm/D_def_arr Tear)*ERFC_esi((thick_gm+(vel_def_arr Tear*tlarge))/(2*SQRT(D_def_arr Tear*tlarge))))))) -> 0.013 | T4: =(EXP(MIN(700,(vel_cl_arr Tear*x/(2*D_cl_arr Tear))*(1-SQRT(vel_cl_arr Tear^2+(4*Decay_cl*R_cl*D_cl_arr Tear))/vel_cl_arr Tear)))*ERFC_esi((1/(2*SQRT(D_cl_arr Tear*tlarge/R_cl)))*(x-(vel_cl_arr Tear*tlarge*SQRT(vel_cl_arr Tear^2+(4*Decay_cl*R_cl*D_cl_arr Tear))/vel_cl_arr Tear/R_cl)))+EXP(MIN(700,(vel_cl_arr Tear*x/(2*D_cl_arr Tear))*(1+SQRT(vel_cl_arr Tear^2+(4*Decay_cl*R_cl*D_cl_arr Tear))/vel_cl_arr Tear)))*ERFC_esi((1/(2*SQRT(D_cl_arr Tear*tlarge/R_cl)))*(x+(vel_cl_arr Tear*tlarge*SQRT(vel_cl_arr Tear^2+(4*Decay_cl*R_cl*D_cl_arr Tear))/vel_cl_arr Tear/R_cl)))) ->  | U4: =S4*T4 ->  | V4: =MAX(U2:U4) ->  | X4: D_cl_used | Y4: =IF(Solution_type="a",Conc_LF,IF(OR(Defect_Choice=1,Defect_Choice=4),D_cl_arr Pin,IF(OR(Defect_Choice=2,Defect_Choice=5),D_cl_arr Hole,D_cl_arr Tear))) -> 0.013
A5: 4,5,6 | B5: List II for defects | D5: List II | P5: =SUM(Area_CZ_arr) -> 0 | Q5: total defect area | R5: Conc by area ave | S5: =(S4*Q2+S3*Q3+S2*Q4)/Q6 ->  | T5: Defect Choice | U5: =IF(V4=U4,3,IF(V4=U3,2,1))+IF(Cont_Class="List I",0,3) -> 
N6: D_cl | P6: =IF((n_pin*CZ_Pin)+(n_hole*CZ_hole)+(n_tear*CZ_tear)=0,1,(n_pin*CZ_Pin)+(n_hole*CZ_hole)+(n_tear*CZ_tear)) -> 0.0005267055438 | Q6: =SUM(area_def_arr) -> 0 | S6: Conc_def | T6: Mult Fact
N7: =D_cl -> 7.17e-11 | S7: =Conc_def -> 0.013 | T7: =(EXP(MIN(700,(vel_cl*x/(2*D_cl))*(1-SQRT(vel_cl^2+(4*Decay_cl*R_cl*D_cl))/vel_cl)))*ERFC_esi((1/(2*SQRT(D_cl*tlarge/R_cl)))*(x-(vel_cl*tlarge*SQRT(vel_cl^2+(4*Decay_cl*R_cl*D_cl))/vel_cl/R_cl)))+EXP(MIN(700,(vel_cl*x/(2*D_cl))*(1+SQRT(vel_cl^2+(4*Decay_cl*R_cl*D_cl))/vel_cl)))*ERFC_esi((1/(2*SQRT(D_cl*tlarge/R_cl)))*(x+(vel_cl*tlarge*SQRT(vel_cl^2+(4*Decay_cl*R_cl*D_cl))/vel_cl/R_cl)))) -> 
A8: Cont_class | B8: =Cont_Class -> List I | C8: nsum | D8: 12
A9: Cont_type | B9: =Cont_Type -> Inorganic | C9: x | D9: =thick_cl -> 0.5 | H9: Using average values - This is for Darcy | L9: Using Pin Defect Values | P9: Using Hole Defect Values | T9: Using Tear Defect Values
A10: Con Mod | B10: =CM -> 3
A11: Area_Single | B11: =IF(Solution_type="b",Area_CZ,Area_Flux) -> 18320.4 | C11: =Solution_type -> a | H11: kg/(m2 s) | I11: mg/l | J11: kg/(m2 s) | L11: kg/(m2 s) | M11: mg/l | N11: kg/(m2 s) | P11: kg/(m2 s) | Q11: mg/l | R11: kg/(m2 s) | T11: kg/(m2 s) | U11: mg/l | V11: kg/(m2 s)
A12: Concentration mg/l | B12: Flux Kg/day | F12: Time years | G12: Time seconds | H12: flux boundary at l+L | I12: conc boundary at infininity | J12: flux boundary at infinity | L12: flux boundary at l+L | M12: conc boundary at infininity | N12: flux boundary at infinity | P12: flux boundary at l+L | Q12: conc boundary at infininity | R12: flux boundary at infinity | T12: flux boundary at l+L | U12: conc boundary at infininity | V12: flux boundary at infinity
A13: =IF(OR(CM=1,AND(CM>1,GM_opt="No")),IF(Cont_Class="List I",List_I_C_Darcy,List_II_J_Darcy*Area_Single),IF(Area_Single=0,0,IF(Defect_Choice=1,List_I_C_Pin,IF(Defect_Choice=2,List_I_C_Hole,IF(Defect_Choice=3,List_I_C_Tear,(List_II_J_Pin*Area_CZ_arr Pin+List_II_J_Hole*Area_CZ_arr Hole+List_II_J_Tear*Area_CZ_arr Tear))))))*IF(Cont_Class="List II",1000/aq_Q,1) ->  | B13: =IF(Cont_Class="List II",IF(OR(CM=1,AND(CM>1,GM_opt="No")),List_II_J_Darcy*Area_Single*s_per_day,(List_II_J_Pin*Area_CZ_arr Pin+List_II_J_Hole*Area_CZ_arr Hole+List_II_J_Tear*Area_CZ_arr Tear)*s_per_day),IF(OR(CM=1,AND(CM>1,GM_opt="No")),List_I_J_Darcy_In*Area_Single*s_per_day,(List_I_J_Pin_In*Area_CZ_arr Pin+List_I_J_Hole_In*Area_CZ_arr Hole+List_I_J_Tear_In*Area_CZ_arr Tear)*s_per_day)) ->  | F13: =tmin -> 1 | G13: =F13*365*24*60*60 -> 31536000 | H13: =IF(Solution_type="a",n*GetJ_1laysol_L(Conc_def/1000,thick_cl,$G13,x,R_cl,D_cl,Decay_cl,vel_cl,nsum),0) ->  | I13: =IF(Solution_type="a",Get_1laysol_inf(Conc_def,thick_cl,$G13,x,R_cl,D_cl,Decay_cl,vel_cl,nsum),0) ->  | J13: =IF(Solution_type="a",(n)*GetJ_1laysol_inf(Conc_def/1000,thick_cl,$G13,x,R_cl,D_cl,Decay_cl,vel_cl,nsum),0) ->  | L13: =IF(NOT(Solution_type="a"),n*GetJ_1laysol_L(Conc_def_arr Pin/1000,thick_cl,$G13,x,R_cl,D_cl_arr Pin,Decay_cl,vel_cl_arr Pin,nsum),0) -> 0 | M13: =IF(NOT(Solution_type="a"),Get_1laysol_inf(Conc_def_arr Pin,thick_cl,$G13,x,R_cl,D_cl_arr Pin,Decay_cl,vel_cl_arr Pin,nsum),0) -> 0 | N13: =IF(NOT(Solution_type="a"),(n)*GetJ_1laysol_inf(Conc_def_arr Pin/1000,thick_cl,$G13,x,R_cl,D_cl_arr Pin,Decay_cl,vel_cl_arr Pin,nsum),0) -> 0 | P13: =IF(NOT(Solution_type="a"),n*GetJ_1laysol_L(Conc_def_arr Hole/1000,thick_cl,$G13,x,R_cl,D_cl_arr Hole,Decay_cl,vel_cl_arr Hole,nsum),0) -> 0 | Q13: =IF(NOT(Solution_type="a"),Get_1laysol_inf(Conc_def_arr Hole,thick_cl,$G13,x,R_cl,D_cl_arr Hole,Decay_cl,vel_cl_arr Hole,nsum),0) -> 0 | R13: =IF(NOT(Solution_type="a"),(n)*GetJ_1laysol_inf(Conc_def_arr Hole/1000,thick_cl,$G13,x,R_cl,D_cl_arr Hole,Decay_cl,vel_cl_arr Hole,nsum),0) -> 0 | T13: =IF(NOT(Solution_type="a"),n*GetJ_1laysol_L(Conc_def_arr Tear/1000,thick_cl,$G13,x,R_cl,D_cl_arr Tear,Decay_cl,vel_cl_arr Tear,nsum),0) -> 0 | U13: =IF(NOT(Solution_type="a"),Get_1laysol_inf(Conc_def_arr Tear,thick_cl,$G13,x,R_cl,D_cl_arr Tear,Decay_cl,vel_cl_arr Tear,nsum),0) -> 0 | V13: =IF(NOT(Solution_type="a"),(n)*GetJ_1laysol_inf(Conc_def_arr Tear/1000,thick_cl,$G13,x,R_cl,D_cl_arr Tear,Decay_cl,vel_cl_arr Tear,nsum),0) -> 0
A14: =IF(OR(CM=1,AND(CM>1,GM_opt="No")),IF(Cont_Class="List I",List_I_C_Darcy,List_II_J_Darcy*Area_Single),IF(Area_Single=0,0,IF(Defect_Choice=1,List_I_C_Pin,IF(Defect_Choice=2,List_I_C_Hole,IF(Defect_Choice=3,List_I_C_Tear,(List_II_J_Pin*Area_CZ_arr Pin+List_II_J_Hole*Area_CZ_arr Hole+List_II_J_Tear*Area_CZ_arr Tear))))))*IF(Cont_Class="List II",1000/aq_Q,1) ->  | B14: =IF(Cont_Class="List II",IF(OR(CM=1,AND(CM>1,GM_opt="No")),List_II_J_Darcy*Area_Single*s_per_day,(List_II_J_Pin*Area_CZ_arr Pin+List_II_J_Hole*Area_CZ_arr Hole+List_II_J_Tear*Area_CZ_arr Tear)*s_per_day),IF(OR(CM=1,AND(CM>1,GM_opt="No")),List_I_J_Darcy_In*Area_Single*s_per_day,(List_I_J_Pin_In*Area_CZ_arr Pin+List_I_J_Hole_In*Area_CZ_arr Hole+List_I_J_Tear_In*Area_CZ_arr Tear)*s_per_day)) ->  | F14: =F13*tscale -> 1.258925412 | G14: 39701471.79 | H14: =IF(Solution_type="a",n*GetJ_1laysol_L(Conc_def/1000,thick_cl,$G14,x,R_cl,D_cl,Decay_cl,vel_cl,nsum),0) ->  | I14: =IF(Solution_type="a",Get_1laysol_inf(Conc_def,thick_cl,$G14,x,R_cl,D_cl,Decay_cl,vel_cl,nsum),0) ->  | J14: =IF(Solution_type="a",(n)*GetJ_1laysol_inf(Conc_def/1000,thick_cl,$G14,x,R_cl,D_cl,Decay_cl,vel_cl,nsum),0) ->  | L14: =IF(NOT(Solution_type="a"),n*GetJ_1laysol_L(Conc_def_arr Pin/1000,thick_cl,$G14,x,R_cl,D_cl_arr Pin,Decay_cl,vel_cl_arr Pin,nsum),0) -> 0 | M14: =IF(NOT(Solution_type="a"),Get_1laysol_inf(Conc_def_arr Pin,thick_cl,$G14,x,R_cl,D_cl_arr Pin,Decay_cl,vel_cl_arr Pin,nsum),0) -> 0 | N14: =IF(NOT(Solution_type="a"),(n)*GetJ_1laysol_inf(Conc_def_arr Pin/1000,thick_cl,$G14,x,R_cl,D_cl_arr Pin,Decay_cl,vel_cl_arr Pin,nsum),0) -> 0 | P14: =IF(NOT(Solution_type="a"),n*GetJ_1laysol_L(Conc_def_arr Hole/1000,thick_cl,$G14,x,R_cl,D_cl_arr Hole,Decay_cl,vel_cl_arr Hole,nsum),0) -> 0 | Q14: =IF(NOT(Solution_type="a"),Get_1laysol_inf(Conc_def_arr Hole,thick_cl,$G14,x,R_cl,D_cl_arr Hole,Decay_cl,vel_cl_arr Hole,nsum),0) -> 0 | R14: =IF(NOT(Solution_type="a"),(n)*GetJ_1laysol_inf(Conc_def_arr Hole/1000,thick_cl,$G14,x,R_cl,D_cl_arr Hole,Decay_cl,vel_cl_arr Hole,nsum),0) -> 0 | T14: =IF(NOT(Solution_type="a"),n*GetJ_1laysol_L(Conc_def_arr Tear/1000,thick_cl,$G14,x,R_cl,D_cl_arr Tear,Decay_cl,vel_cl_arr Tear,nsum),0) -> 0 | U14: =IF(NOT(Solution_type="a"),Get_1laysol_inf(Conc_def_arr Tear,thick_cl,$G14,x,R_cl,D_cl_arr Tear,Decay_cl,vel_cl_arr Tear,nsum),0) -> 0 | V14: =IF(NOT(Solution_type="a"),(n)*GetJ_1laysol_inf(Conc_def_arr Tear/1000,thick_cl,$G14,x,R_cl,D_cl_arr Tear,Decay_cl,vel_cl_arr Tear,nsum),0) -> 0
A15: =IF(OR(CM=1,AND(CM>1,GM_opt="No")),IF(Cont_Class="List I",List_I_C_Darcy,List_II_J_Darcy*Area_Single),IF(Area_Single=0,0,IF(Defect_Choice=1,List_I_C_Pin,IF(Defect_Choice=2,List_I_C_Hole,IF(Defect_Choice=3,List_I_C_Tear,(List_II_J_Pin*Area_CZ_arr Pin+List_II_J_Hole*Area_CZ_arr Hole+List_II_J_Tear*Area_CZ_arr Tear))))))*IF(Cont_Class="List II",1000/aq_Q,1) ->  | B15: =IF(Cont_Class="List II",IF(OR(CM=1,AND(CM>1,GM_opt="No")),List_II_J_Darcy*Area_Single*s_per_day,(List_II_J_Pin*Area_CZ_arr Pin+List_II_J_Hole*Area_CZ_arr Hole+List_II_J_Tear*Area_CZ_arr Tear)*s_per_day),IF(OR(CM=1,AND(CM>1,GM_opt="No")),List_I_J_Darcy_In*Area_Single*s_per_day,(List_I_J_Pin_In*Area_CZ_arr Pin+List_I_J_Hole_In*Area_CZ_arr Hole+List_I_J_Tear_In*Area_CZ_arr Tear)*s_per_day)) ->  | F15: =F14*tscale -> 1.584893192 | G15: 49981191.72 | H15: =IF(Solution_type="a",n*GetJ_1laysol_L(Conc_def/1000,thick_cl,$G15,x,R_cl,D_cl,Decay_cl,vel_cl,nsum),0) ->  | I15: =IF(Solution_type="a",Get_1laysol_inf(Conc_def,thick_cl,$G15,x,R_cl,D_cl,Decay_cl,vel_cl,nsum),0) ->  | L15: =IF(NOT(Solution_type="a"),n*GetJ_1laysol_L(Conc_def_arr Pin/1000,thick_cl,$G15,x,R_cl,D_cl_arr Pin,Decay_cl,vel_cl_arr Pin,nsum),0) -> 0 | M15: =IF(NOT(Solution_type="a"),Get_1laysol_inf(Conc_def_arr Pin,thick_cl,$G15,x,R_cl,D_cl_arr Pin,Decay_cl,vel_cl_arr Pin,nsum),0) -> 0 | N15: =IF(NOT(Solution_type="a"),(n)*GetJ_1laysol_inf(Conc_def_arr Pin/1000,thick_cl,$G15,x,R_cl,D_cl_arr Pin,Decay_cl,vel_cl_arr Pin,nsum),0) -> 0 | P15: =IF(NOT(Solution_type="a"),n*GetJ_1laysol_L(Conc_def_arr Hole/1000,thick_cl,$G15,x,R_cl,D_cl_arr Hole,Decay_cl,vel_cl_arr Hole,nsum),0) -> 0 | Q15: =IF(NOT(Solution_type="a"),Get_1laysol_inf(Conc_def_arr Hole,thick_cl,$G15,x,R_cl,D_cl_arr Hole,Decay_cl,vel_cl_arr Hole,nsum),0) -> 0 | R15: =IF(NOT(Solution_type="a"),(n)*GetJ_1laysol_inf(Conc_def_arr Hole/1000,thick_cl,$G15,x,R_cl,D_cl_arr Hole,Decay_cl,vel_cl_arr Hole,nsum),0) -> 0 | T15: =IF(NOT(Solution_type="a"),n*GetJ_1laysol_L(Conc_def_arr Tear/1000,thick_cl,$G15,x,R_cl,D_cl_arr Tear,Decay_cl,vel_cl_arr Tear,nsum),0) -> 0 | U15: =IF(NOT(Solution_type="a"),Get_1laysol_inf(Conc_def_arr Tear,thick_cl,$G15,x,R_cl,D_cl_arr Tear,Decay_cl,vel_cl_arr Tear,nsum),0) -> 0 | V15: =IF(NOT(Solution_type="a"),(n)*GetJ_1laysol_inf(Conc_def_arr Tear/1000,thick_cl,$G15,x,R_cl,D_cl_arr Tear,Decay_cl,vel_cl_arr Tear,nsum),0) -> 0
A16: =IF(OR(CM=1,AND(CM>1,GM_opt="No")),IF(Cont_Class="List I",List_I_C_Darcy,List_II_J_Darcy*Area_Single),IF(Area_Single=0,0,IF(Defect_Choice=1,List_I_C_Pin,IF(Defect_Choice=2,List_I_C_Hole,IF(Defect_Choice=3,List_I_C_Tear,(List_II_J_Pin*Area_CZ_arr Pin+List_II_J_Hole*Area_CZ_arr Hole+List_II_J_Tear*Area_CZ_arr Tear))))))*IF(Cont_Class="List II",1000/aq_Q,1) ->  | B16: =IF(Cont_Class="List II",IF(OR(CM=1,AND(CM>1,GM_opt="No")),List_II_J_Darcy*Area_Single*s_per_day,(List_II_J_Pin*Area_CZ_arr Pin+List_II_J_Hole*Area_CZ_arr Hole+List_II_J_Tear*Area_CZ_arr Tear)*s_per_day),IF(OR(CM=1,AND(CM>1,GM_opt="No")),List_I_J_Darcy_In*Area_Single*s_per_day,(List_I_J_Pin_In*Area_CZ_arr Pin+List_I_J_Hole_In*Area_CZ_arr Hole+List_I_J_Tear_In*Area_CZ_arr Tear)*s_per_day)) ->  | F16: 1.995262315 | G16: 62922592.36 | L16: =IF(NOT(Solution_type="a"),n*GetJ_1laysol_L(Conc_def_arr Pin/1000,thick_cl,$G16,x,R_cl,D_cl_arr Pin,Decay_cl,vel_cl_arr Pin,nsum),0) -> 0 | M16: =IF(NOT(Solution_type="a"),Get_1laysol_inf(Conc_def_arr Pin,thick_cl,$G16,x,R_cl,D_cl_arr Pin,Decay_cl,vel_cl_arr Pin,nsum),0) -> 0 | N16: =IF(NOT(Solution_type="a"),(n)*GetJ_1laysol_inf(Conc_def_arr Pin/1000,thick_cl,$G16,x,R_cl,D_cl_arr Pin,Decay_cl,vel_cl_arr Pin,nsum),0) -> 0 | P16: =IF(NOT(Solution_type="a"),n*GetJ_1laysol_L(Conc_def_arr Hole/1000,thick_cl,$G16,x,R_cl,D_cl_arr Hole,Decay_cl,vel_cl_arr Hole,nsum),0) -> 0 | Q16: =IF(NOT(Solution_type="a"),Get_1laysol_inf(Conc_def_arr Hole,thick_cl,$G16,x,R_cl,D_cl_arr Hole,Decay_cl,vel_cl_arr Hole,nsum),0) -> 0 | R16: =IF(NOT(Solution_type="a"),(n)*GetJ_1laysol_inf(Conc_def_arr Hole/1000,thick_cl,$G16,x,R_cl,D_cl_arr Hole,Decay_cl,vel_cl_arr Hole,nsum),0) -> 0 | T16: =IF(NOT(Solution_type="a"),n*GetJ_1laysol_L(Conc_def_arr Tear/1000,thick_cl,$G16,x,R_cl,D_cl_arr Tear,Decay_cl,vel_cl_arr Tear,nsum),0) -> 0 | U16: =IF(NOT(Solution_type="a"),Get_1laysol_inf(Conc_def_arr Tear,thick_cl,$G16,x,R_cl,D_cl_arr Tear,Decay_cl,vel_cl_arr Tear,nsum),0) -> 0 | V16: =IF(NOT(Solution_type="a"),(n)*GetJ_1laysol_inf(Conc_def_arr Tear/1000,thick_cl,$G16,x,R_cl,D_cl_arr Tear,Decay_cl,vel_cl_arr Tear,nsum),0) -> 0
A17: =IF(OR(CM=1,AND(CM>1,GM_opt="No")),IF(Cont_Class="List I",List_I_C_Darcy,List_II_J_Darcy*Area_Single),IF(Area_Single=0,0,IF(Defect_Choice=1,List_I_C_Pin,IF(Defect_Choice=2,List_I_C_Hole,IF(Defect_Choice=3,List_I_C_Tear,(List_II_J_Pin*Area_CZ_arr Pin+List_II_J_Hole*Area_CZ_arr Hole+List_II_J_Tear*Area_CZ_arr Tear))))))*IF(Cont_Class="List II",1000/aq_Q,1) ->  | B17: =IF(Cont_Class="List II",IF(OR(CM=1,AND(CM>1,GM_opt="No")),List_II_J_Darcy*Area_Single*s_per_day,(List_II_J_Pin*Area_CZ_arr Pin+List_II_J_Hole*Area_CZ_arr Hole+List_II_J_Tear*Area_CZ_arr Tear)*s_per_day),IF(OR(CM=1,AND(CM>1,GM_opt="No")),List_I_J_Darcy_In*Area_Single*s_per_day,(List_I_J_Pin_In*Area_CZ_arr Pin+List_I_J_Hole_In*Area_CZ_arr Hole+List_I_J_Tear_In*Area_CZ_arr Tear)*s_per_day)) ->  | F17: 2.511886432 | G17: 79214850.5 | L17: =IF(NOT(Solution_type="a"),n*GetJ_1laysol_L(Conc_def_arr Pin/1000,thick_cl,$G17,x,R_cl,D_cl_arr Pin,Decay_cl,vel_cl_arr Pin,nsum),0) -> 0 | M17: =IF(NOT(Solution_type="a"),Get_1laysol_inf(Conc_def_arr Pin,thick_cl,$G17,x,R_cl,D_cl_arr Pin,Decay_cl,vel_cl_arr Pin,nsum),0) -> 0 | N17: =IF(NOT(Solution_type="a"),(n)*GetJ_1laysol_inf(Conc_def_arr Pin/1000,thick_cl,$G17,x,R_cl,D_cl_arr Pin,Decay_cl,vel_cl_arr Pin,nsum),0) -> 0 | P17: =IF(NOT(Solution_type="a"),n*GetJ_1laysol_L(Conc_def_arr Hole/1000,thick_cl,$G17,x,R_cl,D_cl_arr Hole,Decay_cl,vel_cl_arr Hole,nsum),0) -> 0 | Q17: =IF(NOT(Solution_type="a"),Get_1laysol_inf(Conc_def_arr Hole,thick_cl,$G17,x,R_cl,D_cl_arr Hole,Decay_cl,vel_cl_arr Hole,nsum),0) -> 0 | R17: =IF(NOT(Solution_type="a"),(n)*GetJ_1laysol_inf(Conc_def_arr Hole/1000,thick_cl,$G17,x,R_cl,D_cl_arr Hole,Decay_cl,vel_cl_arr Hole,nsum),0) -> 0 | T17: =IF(NOT(Solution_type="a"),n*GetJ_1laysol_L(Conc_def_arr Tear/1000,thick_cl,$G17,x,R_cl,D_cl_arr Tear,Decay_cl,vel_cl_arr Tear,nsum),0) -> 0 | U17: =IF(NOT(Solution_type="a"),Get_1laysol_inf(Conc_def_arr Tear,thick_cl,$G17,x,R_cl,D_cl_arr Tear,Decay_cl,vel_cl_arr Tear,nsum),0) -> 0 | V17: =IF(NOT(Solution_type="a"),(n)*GetJ_1laysol_inf(Conc_def_arr Tear/1000,thick_cl,$G17,x,R_cl,D_cl_arr Tear,Decay_cl,vel_cl_arr Tear,nsum),0) -> 0
A18: =IF(OR(CM=1,AND(CM>1,GM_opt="No")),IF(Cont_Class="List I",List_I_C_Darcy,List_II_J_Darcy*Area_Single),IF(Area_Single=0,0,IF(Defect_Choice=1,List_I_C_Pin,IF(Defect_Choice=2,List_I_C_Hole,IF(Defect_Choice=3,List_I_C_Tear,(List_II_J_Pin*Area_CZ_arr Pin+List_II_J_Hole*Area_CZ_arr Hole+List_II_J_Tear*Area_CZ_arr Tear))))))*IF(Cont_Class="List II",1000/aq_Q,1) ->  | B18: =IF(Cont_Class="List II",IF(OR(CM=1,AND(CM>1,GM_opt="No")),List_II_J_Darcy*Area_Single*s_per_day,(List_II_J_Pin*Area_CZ_arr Pin+List_II_J_Hole*Area_CZ_arr Hole+List_II_J_Tear*Area_CZ_arr Tear)*s_per_day),IF(OR(CM=1,AND(CM>1,GM_opt="No")),List_I_J_Darcy_In*Area_Single*s_per_day,(List_I_J_Pin_In*Area_CZ_arr Pin+List_I_J_Hole_In*Area_CZ_arr Hole+List_I_J_Tear_In*Area_CZ_arr Tear)*s_per_day)) ->  | F18: 3.16227766 | G18: 99725588.29 | L18: =IF(NOT(Solution_type="a"),n*GetJ_1laysol_L(Conc_def_arr Pin/1000,thick_cl,$G18,x,R_cl,D_cl_arr Pin,Decay_cl,vel_cl_arr Pin,nsum),0) -> 0 | M18: =IF(NOT(Solution_type="a"),Get_1laysol_inf(Conc_def_arr Pin,thick_cl,$G18,x,R_cl,D_cl_arr Pin,Decay_cl,vel_cl_arr Pin,nsum),0) -> 0 | N18: =IF(NOT(Solution_type="a"),(n)*GetJ_1laysol_inf(Conc_def_arr Pin/1000,thick_cl,$G18,x,R_cl,D_cl_arr Pin,Decay_cl,vel_cl_arr Pin,nsum),0) -> 0 | P18: =IF(NOT(Solution_type="a"),n*GetJ_1laysol_L(Conc_def_arr Hole/1000,thick_cl,$G18,x,R_cl,D_cl_arr Hole,Decay_cl,vel_cl_arr Hole,nsum),0) -> 0 | Q18: =IF(NOT(Solution_type="a"),Get_1laysol_inf(Conc_def_arr Hole,thick_cl,$G18,x,R_cl,D_cl_arr Hole,Decay_cl,vel_cl_arr Hole,nsum),0) -> 0 | R18: =IF(NOT(Solution_type="a"),(n)*GetJ_1laysol_inf(Conc_def_arr Hole/1000,thick_cl,$G18,x,R_cl,D_cl_arr Hole,Decay_cl,vel_cl_arr Hole,nsum),0) -> 0 | T18: =IF(NOT(Solution_type="a"),n*GetJ_1laysol_L(Conc_def_arr Tear/1000,thick_cl,$G18,x,R_cl,D_cl_arr Tear,Decay_cl,vel_cl_arr Tear,nsum),0) -> 0 | U18: =IF(NOT(Solution_type="a"),Get_1laysol_inf(Conc_def_arr Tear,thick_cl,$G18,x,R_cl,D_cl_arr Tear,Decay_cl,vel_cl_arr Tear,nsum),0) -> 0 | V18: =IF(NOT(Solution_type="a"),(n)*GetJ_1laysol_inf(Conc_def_arr Tear/1000,thick_cl,$G18,x,R_cl,D_cl_arr Tear,Decay_cl,vel_cl_arr Tear,nsum),0) -> 0
A19: =IF(OR(CM=1,AND(CM>1,GM_opt="No")),IF(Cont_Class="List I",List_I_C_Darcy,List_II_J_Darcy*Area_Single),IF(Area_Single=0,0,IF(Defect_Choice=1,List_I_C_Pin,IF(Defect_Choice=2,List_I_C_Hole,IF(Defect_Choice=3,List_I_C_Tear,(List_II_J_Pin*Area_CZ_arr Pin+List_II_J_Hole*Area_CZ_arr Hole+List_II_J_Tear*Area_CZ_arr Tear))))))*IF(Cont_Class="List II",1000/aq_Q,1) ->  | B19: =IF(Cont_Class="List II",IF(OR(CM=1,AND(CM>1,GM_opt="No")),List_II_J_Darcy*Area_Single*s_per_day,(List_II_J_Pin*Area_CZ_arr Pin+List_II_J_Hole*Area_CZ_arr Hole+List_II_J_Tear*Area_CZ_arr Tear)*s_per_day),IF(OR(CM=1,AND(CM>1,GM_opt="No")),List_I_J_Darcy_In*Area_Single*s_per_day,(List_I_J_Pin_In*Area_CZ_arr Pin+List_I_J_Hole_In*Area_CZ_arr Hole+List_I_J_Tear_In*Area_CZ_arr Tear)*s_per_day)) ->  | F19: 3.981071706 | G19: 125547077.3 | L19: =IF(NOT(Solution_type="a"),n*GetJ_1laysol_L(Conc_def_arr Pin/1000,thick_cl,$G19,x,R_cl,D_cl_arr Pin,Decay_cl,vel_cl_arr Pin,nsum),0) -> 0 | M19: =IF(NOT(Solution_type="a"),Get_1laysol_inf(Conc_def_arr Pin,thick_cl,$G19,x,R_cl,D_cl_arr Pin,Decay_cl,vel_cl_arr Pin,nsum),0) -> 0 | N19: =IF(NOT(Solution_type="a"),(n)*GetJ_1laysol_inf(Conc_def_arr Pin/1000,thick_cl,$G19,x,R_cl,D_cl_arr Pin,Decay_cl,vel_cl_arr Pin,nsum),0) -> 0 | P19: =IF(NOT(Solution_type="a"),n*GetJ_1laysol_L(Conc_def_arr Hole/1000,thick_cl,$G19,x,R_cl,D_cl_arr Hole,Decay_cl,vel_cl_arr Hole,nsum),0) -> 0 | Q19: =IF(NOT(Solution_type="a"),Get_1laysol_inf(Conc_def_arr Hole,thick_cl,$G19,x,R_cl,D_cl_arr Hole,Decay_cl,vel_cl_arr Hole,nsum),0) -> 0 | R19: =IF(NOT(Solution_type="a"),(n)*GetJ_1laysol_inf(Conc_def_arr Hole/1000,thick_cl,$G19,x,R_cl,D_cl_arr Hole,Decay_cl,vel_cl_arr Hole,nsum),0) -> 0 | T19: =IF(NOT(Solution_type="a"),n*GetJ_1laysol_L(Conc_def_arr Tear/1000,thick_cl,$G19,x,R_cl,D_cl_arr Tear,Decay_cl,vel_cl_arr Tear,nsum),0) -> 0 | U19: =IF(NOT(Solution_type="a"),Get_1laysol_inf(Conc_def_arr Tear,thick_cl,$G19,x,R_cl,D_cl_arr Tear,Decay_cl,vel_cl_arr Tear,nsum),0) -> 0 | V19: =IF(NOT(Solution_type="a"),(n)*GetJ_1laysol_inf(Conc_def_arr Tear/1000,thick_cl,$G19,x,R_cl,D_cl_arr Tear,Decay_cl,vel_cl_arr Tear,nsum),0) -> 0
A20: =IF(OR(CM=1,AND(CM>1,GM_opt="No")),IF(Cont_Class="List I",List_I_C_Darcy,List_II_J_Darcy*Area_Single),IF(Area_Single=0,0,IF(Defect_Choice=1,List_I_C_Pin,IF(Defect_Choice=2,List_I_C_Hole,IF(Defect_Choice=3,List_I_C_Tear,(List_II_J_Pin*Area_CZ_arr Pin+List_II_J_Hole*Area_CZ_arr Hole+List_II_J_Tear*Area_CZ_arr Tear))))))*IF(Cont_Class="List II",1000/aq_Q,1) ->  | B20: =IF(Cont_Class="List II",IF(OR(CM=1,AND(CM>1,GM_opt="No")),List_II_J_Darcy*Area_Single*s_per_day,(List_II_J_Pin*Area_CZ_arr Pin+List_II_J_Hole*Area_CZ_arr Hole+List_II_J_Tear*Area_CZ_arr Tear)*s_per_day),IF(OR(CM=1,AND(CM>1,GM_opt="No")),List_I_J_Darcy_In*Area_Single*s_per_day,(List_I_J_Pin_In*Area_CZ_arr Pin+List_I_J_Hole_In*Area_CZ_arr Hole+List_I_J_Tear_In*Area_CZ_arr Tear)*s_per_day)) ->  | F20: 5.011872336 | G20: 158054406 | L20: =IF(NOT(Solution_type="a"),n*GetJ_1laysol_L(Conc_def_arr Pin/1000,thick_cl,$G20,x,R_cl,D_cl_arr Pin,Decay_cl,vel_cl_arr Pin,nsum),0) -> 0 | M20: =IF(NOT(Solution_type="a"),Get_1laysol_inf(Conc_def_arr Pin,thick_cl,$G20,x,R_cl,D_cl_arr Pin,Decay_cl,vel_cl_arr Pin,nsum),0) -> 0 | N20: =IF(NOT(Solution_type="a"),(n)*GetJ_1laysol_inf(Conc_def_arr Pin/1000,thick_cl,$G20,x,R_cl,D_cl_arr Pin,Decay_cl,vel_cl_arr Pin,nsum),0) -> 0 | P20: =IF(NOT(Solution_type="a"),n*GetJ_1laysol_L(Conc_def_arr Hole/1000,thick_cl,$G20,x,R_cl,D_cl_arr Hole,Decay_cl,vel_cl_arr Hole,nsum),0) -> 0 | Q20: =IF(NOT(Solution_type="a"),Get_1laysol_inf(Conc_def_arr Hole,thick_cl,$G20,x,R_cl,D_cl_arr Hole,Decay_cl,vel_cl_arr Hole,nsum),0) -> 0 | R20: =IF(NOT(Solution_type="a"),(n)*GetJ_1laysol_inf(Conc_def_arr Hole/1000,thick_cl,$G20,x,R_cl,D_cl_arr Hole,Decay_cl,vel_cl_arr Hole,nsum),0) -> 0 | T20: =IF(NOT(Solution_type="a"),n*GetJ_1laysol_L(Conc_def_arr Tear/1000,thick_cl,$G20,x,R_cl,D_cl_arr Tear,Decay_cl,vel_cl_arr Tear,nsum),0) -> 0 | U20: =IF(NOT(Solution_type="a"),Get_1laysol_inf(Conc_def_arr Tear,thick_cl,$G20,x,R_cl,D_cl_arr Tear,Decay_cl,vel_cl_arr Tear,nsum),0) -> 0 | V20: =IF(NOT(Solution_type="a"),(n)*GetJ_1laysol_inf(Conc_def_arr Tear/1000,thick_cl,$G20,x,R_cl,D_cl_arr Tear,Decay_cl,vel_cl_arr Tear,nsum),0) -> 0
A21: =IF(OR(CM=1,AND(CM>1,GM_opt="No")),IF(Cont_Class="List I",List_I_C_Darcy,List_II_J_Darcy*Area_Single),IF(Area_Single=0,0,IF(Defect_Choice=1,List_I_C_Pin,IF(Defect_Choice=2,List_I_C_Hole,IF(Defect_Choice=3,List_I_C_Tear,(List_II_J_Pin*Area_CZ_arr Pin+List_II_J_Hole*Area_CZ_arr Hole+List_II_J_Tear*Area_CZ_arr Tear))))))*IF(Cont_Class="List II",1000/aq_Q,1) ->  | B21: =IF(Cont_Class="List II",IF(OR(CM=1,AND(CM>1,GM_opt="No")),List_II_J_Darcy*Area_Single*s_per_day,(List_II_J_Pin*Area_CZ_arr Pin+List_II_J_Hole*Area_CZ_arr Hole+List_II_J_Tear*Area_CZ_arr Tear)*s_per_day),IF(OR(CM=1,AND(CM>1,GM_opt="No")),List_I_J_Darcy_In*Area_Single*s_per_day,(List_I_J_Pin_In*Area_CZ_arr Pin+List_I_J_Hole_In*Area_CZ_arr Hole+List_I_J_Tear_In*Area_CZ_arr Tear)*s_per_day)) ->  | F21: 6.309573445 | G21: 198978708.2 | L21: =IF(NOT(Solution_type="a"),n*GetJ_1laysol_L(Conc_def_arr Pin/1000,thick_cl,$G21,x,R_cl,D_cl_arr Pin,Decay_cl,vel_cl_arr Pin,nsum),0) -> 0 | M21: =IF(NOT(Solution_type="a"),Get_1laysol_inf(Conc_def_arr Pin,thick_cl,$G21,x,R_cl,D_cl_arr Pin,Decay_cl,vel_cl_arr Pin,nsum),0) -> 0 | N21: =IF(NOT(Solution_type="a"),(n)*GetJ_1laysol_inf(Conc_def_arr Pin/1000,thick_cl,$G21,x,R_cl,D_cl_arr Pin,Decay_cl,vel_cl_arr Pin,nsum),0) -> 0 | P21: =IF(NOT(Solution_type="a"),n*GetJ_1laysol_L(Conc_def_arr Hole/1000,thick_cl,$G21,x,R_cl,D_cl_arr Hole,Decay_cl,vel_cl_arr Hole,nsum),0) -> 0 | Q21: =IF(NOT(Solution_type="a"),Get_1laysol_inf(Conc_def_arr Hole,thick_cl,$G21,x,R_cl,D_cl_arr Hole,Decay_cl,vel_cl_arr Hole,nsum),0) -> 0 | R21: =IF(NOT(Solution_type="a"),(n)*GetJ_1laysol_inf(Conc_def_arr Hole/1000,thick_cl,$G21,x,R_cl,D_cl_arr Hole,Decay_cl,vel_cl_arr Hole,nsum),0) -> 0 | T21: =IF(NOT(Solution_type="a"),n*GetJ_1laysol_L(Conc_def_arr Tear/1000,thick_cl,$G21,x,R_cl,D_cl_arr Tear,Decay_cl,vel_cl_arr Tear,nsum),0) -> 0 | U21: =IF(NOT(Solution_type="a"),Get_1laysol_inf(Conc_def_arr Tear,thick_cl,$G21,x,R_cl,D_cl_arr Tear,Decay_cl,vel_cl_arr Tear,nsum),0) -> 0 | V21: =IF(NOT(Solution_type="a"),(n)*GetJ_1laysol_inf(Conc_def_arr Tear/1000,thick_cl,$G21,x,R_cl,D_cl_arr Tear,Decay_cl,vel_cl_arr Tear,nsum),0) -> 0
A22: =IF(OR(CM=1,AND(CM>1,GM_opt="No")),IF(Cont_Class="List I",List_I_C_Darcy,List_II_J_Darcy*Area_Single),IF(Area_Single=0,0,IF(Defect_Choice=1,List_I_C_Pin,IF(Defect_Choice=2,List_I_C_Hole,IF(Defect_Choice=3,List_I_C_Tear,(List_II_J_Pin*Area_CZ_arr Pin+List_II_J_Hole*Area_CZ_arr Hole+List_II_J_Tear*Area_CZ_arr Tear))))))*IF(Cont_Class="List II",1000/aq_Q,1) ->  | B22: =IF(Cont_Class="List II",IF(OR(CM=1,AND(CM>1,GM_opt="No")),List_II_J_Darcy*Area_Single*s_per_day,(List_II_J_Pin*Area_CZ_arr Pin+List_II_J_Hole*Area_CZ_arr Hole+List_II_J_Tear*Area_CZ_arr Tear)*s_per_day),IF(OR(CM=1,AND(CM>1,GM_opt="No")),List_I_J_Darcy_In*Area_Single*s_per_day,(List_I_J_Pin_In*Area_CZ_arr Pin+List_I_J_Hole_In*Area_CZ_arr Hole+List_I_J_Tear_In*Area_CZ_arr Tear)*s_per_day)) ->  | F22: 7.943282347 | G22: 250499352.1 | L22: =IF(NOT(Solution_type="a"),n*GetJ_1laysol_L(Conc_def_arr Pin/1000,thick_cl,$G22,x,R_cl,D_cl_arr Pin,Decay_cl,vel_cl_arr Pin,nsum),0) -> 0 | M22: =IF(NOT(Solution_type="a"),Get_1laysol_inf(Conc_def_arr Pin,thick_cl,$G22,x,R_cl,D_cl_arr Pin,Decay_cl,vel_cl_arr Pin,nsum),0) -> 0 | N22: =IF(NOT(Solution_type="a"),(n)*GetJ_1laysol_inf(Conc_def_arr Pin/1000,thick_cl,$G22,x,R_cl,D_cl_arr Pin,Decay_cl,vel_cl_arr Pin,nsum),0) -> 0 | P22: =IF(NOT(Solution_type="a"),n*GetJ_1laysol_L(Conc_def_arr Hole/1000,thick_cl,$G22,x,R_cl,D_cl_arr Hole,Decay_cl,vel_cl_arr Hole,nsum),0) -> 0 | Q22: =IF(NOT(Solution_type="a"),Get_1laysol_inf(Conc_def_arr Hole,thick_cl,$G22,x,R_cl,D_cl_arr Hole,Decay_cl,vel_cl_arr Hole,nsum),0) -> 0 | R22: =IF(NOT(Solution_type="a"),(n)*GetJ_1laysol_inf(Conc_def_arr Hole/1000,thick_cl,$G22,x,R_cl,D_cl_arr Hole,Decay_cl,vel_cl_arr Hole,nsum),0) -> 0 | T22: =IF(NOT(Solution_type="a"),n*GetJ_1laysol_L(Conc_def_arr Tear/1000,thick_cl,$G22,x,R_cl,D_cl_arr Tear,Decay_cl,vel_cl_arr Tear,nsum),0) -> 0 | U22: =IF(NOT(Solution_type="a"),Get_1laysol_inf(Conc_def_arr Tear,thick_cl,$G22,x,R_cl,D_cl_arr Tear,Decay_cl,vel_cl_arr Tear,nsum),0) -> 0 | V22: =IF(NOT(Solution_type="a"),(n)*GetJ_1laysol_inf(Conc_def_arr Tear/1000,thick_cl,$G22,x,R_cl,D_cl_arr Tear,Decay_cl,vel_cl_arr Tear,nsum),0) -> 0
A23: =IF(OR(CM=1,AND(CM>1,GM_opt="No")),IF(Cont_Class="List I",List_I_C_Darcy,List_II_J_Darcy*Area_Single),IF(Area_Single=0,0,IF(Defect_Choice=1,List_I_C_Pin,IF(Defect_Choice=2,List_I_C_Hole,IF(Defect_Choice=3,List_I_C_Tear,(List_II_J_Pin*Area_CZ_arr Pin+List_II_J_Hole*Area_CZ_arr Hole+List_II_J_Tear*Area_CZ_arr Tear))))))*IF(Cont_Class="List II",1000/aq_Q,1) ->  | B23: =IF(Cont_Class="List II",IF(OR(CM=1,AND(CM>1,GM_opt="No")),List_II_J_Darcy*Area_Single*s_per_day,(List_II_J_Pin*Area_CZ_arr Pin+List_II_J_Hole*Area_CZ_arr Hole+List_II_J_Tear*Area_CZ_arr Tear)*s_per_day),IF(OR(CM=1,AND(CM>1,GM_opt="No")),List_I_J_Darcy_In*Area_Single*s_per_day,(List_I_J_Pin_In*Area_CZ_arr Pin+List_I_J_Hole_In*Area_CZ_arr Hole+List_I_J_Tear_In*Area_CZ_arr Tear)*s_per_day)) ->  | F23: 10 | G23: 315360000 | L23: =IF(NOT(Solution_type="a"),n*GetJ_1laysol_L(Conc_def_arr Pin/1000,thick_cl,$G23,x,R_cl,D_cl_arr Pin,Decay_cl,vel_cl_arr Pin,nsum),0) -> 0 | M23: =IF(NOT(Solution_type="a"),Get_1laysol_inf(Conc_def_arr Pin,thick_cl,$G23,x,R_cl,D_cl_arr Pin,Decay_cl,vel_cl_arr Pin,nsum),0) -> 0 | N23: =IF(NOT(Solution_type="a"),(n)*GetJ_1laysol_inf(Conc_def_arr Pin/1000,thick_cl,$G23,x,R_cl,D_cl_arr Pin,Decay_cl,vel_cl_arr Pin,nsum),0) -> 0 | P23: =IF(NOT(Solution_type="a"),n*GetJ_1laysol_L(Conc_def_arr Hole/1000,thick_cl,$G23,x,R_cl,D_cl_arr Hole,Decay_cl,vel_cl_arr Hole,nsum),0) -> 0 | Q23: =IF(NOT(Solution_type="a"),Get_1laysol_inf(Conc_def_arr Hole,thick_cl,$G23,x,R_cl,D_cl_arr Hole,Decay_cl,vel_cl_arr Hole,nsum),0) -> 0 | R23: =IF(NOT(Solution_type="a"),(n)*GetJ_1laysol_inf(Conc_def_arr Hole/1000,thick_cl,$G23,x,R_cl,D_cl_arr Hole,Decay_cl,vel_cl_arr Hole,nsum),0) -> 0 | T23: =IF(NOT(Solution_type="a"),n*GetJ_1laysol_L(Conc_def_arr Tear/1000,thick_cl,$G23,x,R_cl,D_cl_arr Tear,Decay_cl,vel_cl_arr Tear,nsum),0) -> 0 | U23: =IF(NOT(Solution_type="a"),Get_1laysol_inf(Conc_def_arr Tear,thick_cl,$G23,x,R_cl,D_cl_arr Tear,Decay_cl,vel_cl_arr Tear,nsum),0) -> 0 | V23: =IF(NOT(Solution_type="a"),(n)*GetJ_1laysol_inf(Conc_def_arr Tear/1000,thick_cl,$G23,x,R_cl,D_cl_arr Tear,Decay_cl,vel_cl_arr Tear,nsum),0) -> 0
A24: =IF(OR(CM=1,AND(CM>1,GM_opt="No")),IF(Cont_Class="List I",List_I_C_Darcy,List_II_J_Darcy*Area_Single),IF(Area_Single=0,0,IF(Defect_Choice=1,List_I_C_Pin,IF(Defect_Choice=2,List_I_C_Hole,IF(Defect_Choice=3,List_I_C_Tear,(List_II_J_Pin*Area_CZ_arr Pin+List_II_J_Hole*Area_CZ_arr Hole+List_II_J_Tear*Area_CZ_arr Tear))))))*IF(Cont_Class="List II",1000/aq_Q,1) ->  | B24: =IF(Cont_Class="List II",IF(OR(CM=1,AND(CM>1,GM_opt="No")),List_II_J_Darcy*Area_Single*s_per_day,(List_II_J_Pin*Area_CZ_arr Pin+List_II_J_Hole*Area_CZ_arr Hole+List_II_J_Tear*Area_CZ_arr Tear)*s_per_day),IF(OR(CM=1,AND(CM>1,GM_opt="No")),List_I_J_Darcy_In*Area_Single*s_per_day,(List_I_J_Pin_In*Area_CZ_arr Pin+List_I_J_Hole_In*Area_CZ_arr Hole+List_I_J_Tear_In*Area_CZ_arr Tear)*s_per_day)) ->  | F24: 12.58925412 | G24: 397014717.9 | L24: =IF(NOT(Solution_type="a"),n*GetJ_1laysol_L(Conc_def_arr Pin/1000,thick_cl,$G24,x,R_cl,D_cl_arr Pin,Decay_cl,vel_cl_arr Pin,nsum),0) -> 0 | M24: =IF(NOT(Solution_type="a"),Get_1laysol_inf(Conc_def_arr Pin,thick_cl,$G24,x,R_cl,D_cl_arr Pin,Decay_cl,vel_cl_arr Pin,nsum),0) -> 0 | N24: =IF(NOT(Solution_type="a"),(n)*GetJ_1laysol_inf(Conc_def_arr Pin/1000,thick_cl,$G24,x,R_cl,D_cl_arr Pin,Decay_cl,vel_cl_arr Pin,nsum),0) -> 0 | P24: =IF(NOT(Solution_type="a"),n*GetJ_1laysol_L(Conc_def_arr Hole/1000,thick_cl,$G24,x,R_cl,D_cl_arr Hole,Decay_cl,vel_cl_arr Hole,nsum),0) -> 0 | Q24: =IF(NOT(Solution_type="a"),Get_1laysol_inf(Conc_def_arr Hole,thick_cl,$G24,x,R_cl,D_cl_arr Hole,Decay_cl,vel_cl_arr Hole,nsum),0) -> 0 | R24: =IF(NOT(Solution_type="a"),(n)*GetJ_1laysol_inf(Conc_def_arr Hole/1000,thick_cl,$G24,x,R_cl,D_cl_arr Hole,Decay_cl,vel_cl_arr Hole,nsum),0) -> 0 | T24: =IF(NOT(Solution_type="a"),n*GetJ_1laysol_L(Conc_def_arr Tear/1000,thick_cl,$G24,x,R_cl,D_cl_arr Tear,Decay_cl,vel_cl_arr Tear,nsum),0) -> 0 | U24: =IF(NOT(Solution_type="a"),Get_1laysol_inf(Conc_def_arr Tear,thick_cl,$G24,x,R_cl,D_cl_arr Tear,Decay_cl,vel_cl_arr Tear,nsum),0) -> 0 | V24: =IF(NOT(Solution_type="a"),(n)*GetJ_1laysol_inf(Conc_def_arr Tear/1000,thick_cl,$G24,x,R_cl,D_cl_arr Tear,Decay_cl,vel_cl_arr Tear,nsum),0) -> 0
A25: =IF(OR(CM=1,AND(CM>1,GM_opt="No")),IF(Cont_Class="List I",List_I_C_Darcy,List_II_J_Darcy*Area_Single),IF(Area_Single=0,0,IF(Defect_Choice=1,List_I_C_Pin,IF(Defect_Choice=2,List_I_C_Hole,IF(Defect_Choice=3,List_I_C_Tear,(List_II_J_Pin*Area_CZ_arr Pin+List_II_J_Hole*Area_CZ_arr Hole+List_II_J_Tear*Area_CZ_arr Tear))))))*IF(Cont_Class="List II",1000/aq_Q,1) ->  | B25: =IF(Cont_Class="List II",IF(OR(CM=1,AND(CM>1,GM_opt="No")),List_II_J_Darcy*Area_Single*s_per_day,(List_II_J_Pin*Area_CZ_arr Pin+List_II_J_Hole*Area_CZ_arr Hole+List_II_J_Tear*Area_CZ_arr Tear)*s_per_day),IF(OR(CM=1,AND(CM>1,GM_opt="No")),List_I_J_Darcy_In*Area_Single*s_per_day,(List_I_J_Pin_In*Area_CZ_arr Pin+List_I_J_Hole_In*Area_CZ_arr Hole+List_I_J_Tear_In*Area_CZ_arr Tear)*s_per_day)) ->  | F25: 15.84893192 | G25: 499811917.2 | L25: =IF(NOT(Solution_type="a"),n*GetJ_1laysol_L(Conc_def_arr Pin/1000,thick_cl,$G25,x,R_cl,D_cl_arr Pin,Decay_cl,vel_cl_arr Pin,nsum),0) -> 0 | M25: =IF(NOT(Solution_type="a"),Get_1laysol_inf(Conc_def_arr Pin,thick_cl,$G25,x,R_cl,D_cl_arr Pin,Decay_cl,vel_cl_arr Pin,nsum),0) -> 0 | N25: =IF(NOT(Solution_type="a"),(n)*GetJ_1laysol_inf(Conc_def_arr Pin/1000,thick_cl,$G25,x,R_cl,D_cl_arr Pin,Decay_cl,vel_cl_arr Pin,nsum),0) -> 0 | P25: =IF(NOT(Solution_type="a"),n*GetJ_1laysol_L(Conc_def_arr Hole/1000,thick_cl,$G25,x,R_cl,D_cl_arr Hole,Decay_cl,vel_cl_arr Hole,nsum),0) -> 0 | Q25: =IF(NOT(Solution_type="a"),Get_1laysol_inf(Conc_def_arr Hole,thick_cl,$G25,x,R_cl,D_cl_arr Hole,Decay_cl,vel_cl_arr Hole,nsum),0) -> 0 | R25: =IF(NOT(Solution_type="a"),(n)*GetJ_1laysol_inf(Conc_def_arr Hole/1000,thick_cl,$G25,x,R_cl,D_cl_arr Hole,Decay_cl,vel_cl_arr Hole,nsum),0) -> 0 | T25: =IF(NOT(Solution_type="a"),n*GetJ_1laysol_L(Conc_def_arr Tear/1000,thick_cl,$G25,x,R_cl,D_cl_arr Tear,Decay_cl,vel_cl_arr Tear,nsum),0) -> 0 | U25: =IF(NOT(Solution_type="a"),Get_1laysol_inf(Conc_def_arr Tear,thick_cl,$G25,x,R_cl,D_cl_arr Tear,Decay_cl,vel_cl_arr Tear,nsum),0) -> 0 | V25: =IF(NOT(Solution_type="a"),(n)*GetJ_1laysol_inf(Conc_def_arr Tear/1000,thick_cl,$G25,x,R_cl,D_cl_arr Tear,Decay_cl,vel_cl_arr Tear,nsum),0) -> 0
A26: =IF(OR(CM=1,AND(CM>1,GM_opt="No")),IF(Cont_Class="List I",List_I_C_Darcy,List_II_J_Darcy*Area_Single),IF(Area_Single=0,0,IF(Defect_Choice=1,List_I_C_Pin,IF(Defect_Choice=2,List_I_C_Hole,IF(Defect_Choice=3,List_I_C_Tear,(List_II_J_Pin*Area_CZ_arr Pin+List_II_J_Hole*Area_CZ_arr Hole+List_II_J_Tear*Area_CZ_arr Tear))))))*IF(Cont_Class="List II",1000/aq_Q,1) ->  | B26: =IF(Cont_Class="List II",IF(OR(CM=1,AND(CM>1,GM_opt="No")),List_II_J_Darcy*Area_Single*s_per_day,(List_II_J_Pin*Area_CZ_arr Pin+List_II_J_Hole*Area_CZ_arr Hole+List_II_J_Tear*Area_CZ_arr Tear)*s_per_day),IF(OR(CM=1,AND(CM>1,GM_opt="No")),List_I_J_Darcy_In*Area_Single*s_per_day,(List_I_J_Pin_In*Area_CZ_arr Pin+List_I_J_Hole_In*Area_CZ_arr Hole+List_I_J_Tear_In*Area_CZ_arr Tear)*s_per_day)) ->  | F26: 19.95262315 | G26: 629225923.6 | L26: =IF(NOT(Solution_type="a"),n*GetJ_1laysol_L(Conc_def_arr Pin/1000,thick_cl,$G26,x,R_cl,D_cl_arr Pin,Decay_cl,vel_cl_arr Pin,nsum),0) -> 0 | M26: =IF(NOT(Solution_type="a"),Get_1laysol_inf(Conc_def_arr Pin,thick_cl,$G26,x,R_cl,D_cl_arr Pin,Decay_cl,vel_cl_arr Pin,nsum),0) -> 0 | N26: =IF(NOT(Solution_type="a"),(n)*GetJ_1laysol_inf(Conc_def_arr Pin/1000,thick_cl,$G26,x,R_cl,D_cl_arr Pin,Decay_cl,vel_cl_arr Pin,nsum),0) -> 0 | P26: =IF(NOT(Solution_type="a"),n*GetJ_1laysol_L(Conc_def_arr Hole/1000,thick_cl,$G26,x,R_cl,D_cl_arr Hole,Decay_cl,vel_cl_arr Hole,nsum),0) -> 0 | Q26: =IF(NOT(Solution_type="a"),Get_1laysol_inf(Conc_def_arr Hole,thick_cl,$G26,x,R_cl,D_cl_arr Hole,Decay_cl,vel_cl_arr Hole,nsum),0) -> 0 | R26: =IF(NOT(Solution_type="a"),(n)*GetJ_1laysol_inf(Conc_def_arr Hole/1000,thick_cl,$G26,x,R_cl,D_cl_arr Hole,Decay_cl,vel_cl_arr Hole,nsum),0) -> 0 | T26: =IF(NOT(Solution_type="a"),n*GetJ_1laysol_L(Conc_def_arr Tear/1000,thick_cl,$G26,x,R_cl,D_cl_arr Tear,Decay_cl,vel_cl_arr Tear,nsum),0) -> 0 | U26: =IF(NOT(Solution_type="a"),Get_1laysol_inf(Conc_def_arr Tear,thick_cl,$G26,x,R_cl,D_cl_arr Tear,Decay_cl,vel_cl_arr Tear,nsum),0) -> 0 | V26: =IF(NOT(Solution_type="a"),(n)*GetJ_1laysol_inf(Conc_def_arr Tear/1000,thick_cl,$G26,x,R_cl,D_cl_arr Tear,Decay_cl,vel_cl_arr Tear,nsum),0) -> 0
A27: =IF(OR(CM=1,AND(CM>1,GM_opt="No")),IF(Cont_Class="List I",List_I_C_Darcy,List_II_J_Darcy*Area_Single),IF(Area_Single=0,0,IF(Defect_Choice=1,List_I_C_Pin,IF(Defect_Choice=2,List_I_C_Hole,IF(Defect_Choice=3,List_I_C_Tear,(List_II_J_Pin*Area_CZ_arr Pin+List_II_J_Hole*Area_CZ_arr Hole+List_II_J_Tear*Area_CZ_arr Tear))))))*IF(Cont_Class="List II",1000/aq_Q,1) ->  | B27: =IF(Cont_Class="List II",IF(OR(CM=1,AND(CM>1,GM_opt="No")),List_II_J_Darcy*Area_Single*s_per_day,(List_II_J_Pin*Area_CZ_arr Pin+List_II_J_Hole*Area_CZ_arr Hole+List_II_J_Tear*Area_CZ_arr Tear)*s_per_day),IF(OR(CM=1,AND(CM>1,GM_opt="No")),List_I_J_Darcy_In*Area_Single*s_per_day,(List_I_J_Pin_In*Area_CZ_arr Pin+List_I_J_Hole_In*Area_CZ_arr Hole+List_I_J_Tear_In*Area_CZ_arr Tear)*s_per_day)) ->  | F27: 25.11886432 | G27: 792148505 | L27: =IF(NOT(Solution_type="a"),n*GetJ_1laysol_L(Conc_def_arr Pin/1000,thick_cl,$G27,x,R_cl,D_cl_arr Pin,Decay_cl,vel_cl_arr Pin,nsum),0) -> 0 | M27: =IF(NOT(Solution_type="a"),Get_1laysol_inf(Conc_def_arr Pin,thick_cl,$G27,x,R_cl,D_cl_arr Pin,Decay_cl,vel_cl_arr Pin,nsum),0) -> 0 | N27: =IF(NOT(Solution_type="a"),(n)*GetJ_1laysol_inf(Conc_def_arr Pin/1000,thick_cl,$G27,x,R_cl,D_cl_arr Pin,Decay_cl,vel_cl_arr Pin,nsum),0) -> 0 | P27: =IF(NOT(Solution_type="a"),n*GetJ_1laysol_L(Conc_def_arr Hole/1000,thick_cl,$G27,x,R_cl,D_cl_arr Hole,Decay_cl,vel_cl_arr Hole,nsum),0) -> 0 | Q27: =IF(NOT(Solution_type="a"),Get_1laysol_inf(Conc_def_arr Hole,thick_cl,$G27,x,R_cl,D_cl_arr Hole,Decay_cl,vel_cl_arr Hole,nsum),0) -> 0 | R27: =IF(NOT(Solution_type="a"),(n)*GetJ_1laysol_inf(Conc_def_arr Hole/1000,thick_cl,$G27,x,R_cl,D_cl_arr Hole,Decay_cl,vel_cl_arr Hole,nsum),0) -> 0 | T27: =IF(NOT(Solution_type="a"),n*GetJ_1laysol_L(Conc_def_arr Tear/1000,thick_cl,$G27,x,R_cl,D_cl_arr Tear,Decay_cl,vel_cl_arr Tear,nsum),0) -> 0 | U27: =IF(NOT(Solution_type="a"),Get_1laysol_inf(Conc_def_arr Tear,thick_cl,$G27,x,R_cl,D_cl_arr Tear,Decay_cl,vel_cl_arr Tear,nsum),0) -> 0 | V27: =IF(NOT(Solution_type="a"),(n)*GetJ_1laysol_inf(Conc_def_arr Tear/1000,thick_cl,$G27,x,R_cl,D_cl_arr Tear,Decay_cl,vel_cl_arr Tear,nsum),0) -> 0
A28: =IF(OR(CM=1,AND(CM>1,GM_opt="No")),IF(Cont_Class="List I",List_I_C_Darcy,List_II_J_Darcy*Area_Single),IF(Area_Single=0,0,IF(Defect_Choice=1,List_I_C_Pin,IF(Defect_Choice=2,List_I_C_Hole,IF(Defect_Choice=3,List_I_C_Tear,(List_II_J_Pin*Area_CZ_arr Pin+List_II_J_Hole*Area_CZ_arr Hole+List_II_J_Tear*Area_CZ_arr Tear))))))*IF(Cont_Class="List II",1000/aq_Q,1) ->  | B28: =IF(Cont_Class="List II",IF(OR(CM=1,AND(CM>1,GM_opt="No")),List_II_J_Darcy*Area_Single*s_per_day,(List_II_J_Pin*Area_CZ_arr Pin+List_II_J_Hole*Area_CZ_arr Hole+List_II_J_Tear*Area_CZ_arr Tear)*s_per_day),IF(OR(CM=1,AND(CM>1,GM_opt="No")),List_I_J_Darcy_In*Area_Single*s_per_day,(List_I_J_Pin_In*Area_CZ_arr Pin+List_I_J_Hole_In*Area_CZ_arr Hole+List_I_J_Tear_In*Area_CZ_arr Tear)*s_per_day)) ->  | F28: 31.6227766 | G28: 997255882.9 | L28: =IF(NOT(Solution_type="a"),n*GetJ_1laysol_L(Conc_def_arr Pin/1000,thick_cl,$G28,x,R_cl,D_cl_arr Pin,Decay_cl,vel_cl_arr Pin,nsum),0) -> 0 | M28: =IF(NOT(Solution_type="a"),Get_1laysol_inf(Conc_def_arr Pin,thick_cl,$G28,x,R_cl,D_cl_arr Pin,Decay_cl,vel_cl_arr Pin,nsum),0) -> 0 | N28: =IF(NOT(Solution_type="a"),(n)*GetJ_1laysol_inf(Conc_def_arr Pin/1000,thick_cl,$G28,x,R_cl,D_cl_arr Pin,Decay_cl,vel_cl_arr Pin,nsum),0) -> 0 | P28: =IF(NOT(Solution_type="a"),n*GetJ_1laysol_L(Conc_def_arr Hole/1000,thick_cl,$G28,x,R_cl,D_cl_arr Hole,Decay_cl,vel_cl_arr Hole,nsum),0) -> 0 | Q28: =IF(NOT(Solution_type="a"),Get_1laysol_inf(Conc_def_arr Hole,thick_cl,$G28,x,R_cl,D_cl_arr Hole,Decay_cl,vel_cl_arr Hole,nsum),0) -> 0 | R28: =IF(NOT(Solution_type="a"),(n)*GetJ_1laysol_inf(Conc_def_arr Hole/1000,thick_cl,$G28,x,R_cl,D_cl_arr Hole,Decay_cl,vel_cl_arr Hole,nsum),0) -> 0 | T28: =IF(NOT(Solution_type="a"),n*GetJ_1laysol_L(Conc_def_arr Tear/1000,thick_cl,$G28,x,R_cl,D_cl_arr Tear,Decay_cl,vel_cl_arr Tear,nsum),0) -> 0 | U28: =IF(NOT(Solution_type="a"),Get_1laysol_inf(Conc_def_arr Tear,thick_cl,$G28,x,R_cl,D_cl_arr Tear,Decay_cl,vel_cl_arr Tear,nsum),0) -> 0 | V28: =IF(NOT(Solution_type="a"),(n)*GetJ_1laysol_inf(Conc_def_arr Tear/1000,thick_cl,$G28,x,R_cl,D_cl_arr Tear,Decay_cl,vel_cl_arr Tear,nsum),0) -> 0
A29: =IF(OR(CM=1,AND(CM>1,GM_opt="No")),IF(Cont_Class="List I",List_I_C_Darcy,List_II_J_Darcy*Area_Single),IF(Area_Single=0,0,IF(Defect_Choice=1,List_I_C_Pin,IF(Defect_Choice=2,List_I_C_Hole,IF(Defect_Choice=3,List_I_C_Tear,(List_II_J_Pin*Area_CZ_arr Pin+List_II_J_Hole*Area_CZ_arr Hole+List_II_J_Tear*Area_CZ_arr Tear))))))*IF(Cont_Class="List II",1000/aq_Q,1) ->  | B29: =IF(Cont_Class="List II",IF(OR(CM=1,AND(CM>1,GM_opt="No")),List_II_J_Darcy*Area_Single*s_per_day,(List_II_J_Pin*Area_CZ_arr Pin+List_II_J_Hole*Area_CZ_arr Hole+List_II_J_Tear*Area_CZ_arr Tear)*s_per_day),IF(OR(CM=1,AND(CM>1,GM_opt="No")),List_I_J_Darcy_In*Area_Single*s_per_day,(List_I_J_Pin_In*Area_CZ_arr Pin+List_I_J_Hole_In*Area_CZ_arr Hole+List_I_J_Tear_In*Area_CZ_arr Tear)*s_per_day)) ->  | F29: 39.81071706 | G29: 1255470773 | L29: =IF(NOT(Solution_type="a"),n*GetJ_1laysol_L(Conc_def_arr Pin/1000,thick_cl,$G29,x,R_cl,D_cl_arr Pin,Decay_cl,vel_cl_arr Pin,nsum),0) -> 0 | M29: =IF(NOT(Solution_type="a"),Get_1laysol_inf(Conc_def_arr Pin,thick_cl,$G29,x,R_cl,D_cl_arr Pin,Decay_cl,vel_cl_arr Pin,nsum),0) -> 0 | N29: =IF(NOT(Solution_type="a"),(n)*GetJ_1laysol_inf(Conc_def_arr Pin/1000,thick_cl,$G29,x,R_cl,D_cl_arr Pin,Decay_cl,vel_cl_arr Pin,nsum),0) -> 0 | P29: =IF(NOT(Solution_type="a"),n*GetJ_1laysol_L(Conc_def_arr Hole/1000,thick_cl,$G29,x,R_cl,D_cl_arr Hole,Decay_cl,vel_cl_arr Hole,nsum),0) -> 0 | Q29: =IF(NOT(Solution_type="a"),Get_1laysol_inf(Conc_def_arr Hole,thick_cl,$G29,x,R_cl,D_cl_arr Hole,Decay_cl,vel_cl_arr Hole,nsum),0) -> 0 | R29: =IF(NOT(Solution_type="a"),(n)*GetJ_1laysol_inf(Conc_def_arr Hole/1000,thick_cl,$G29,x,R_cl,D_cl_arr Hole,Decay_cl,vel_cl_arr Hole,nsum),0) -> 0 | T29: =IF(NOT(Solution_type="a"),n*GetJ_1laysol_L(Conc_def_arr Tear/1000,thick_cl,$G29,x,R_cl,D_cl_arr Tear,Decay_cl,vel_cl_arr Tear,nsum),0) -> 0 | U29: =IF(NOT(Solution_type="a"),Get_1laysol_inf(Conc_def_arr Tear,thick_cl,$G29,x,R_cl,D_cl_arr Tear,Decay_cl,vel_cl_arr Tear,nsum),0) -> 0 | V29: =IF(NOT(Solution_type="a"),(n)*GetJ_1laysol_inf(Conc_def_arr Tear/1000,thick_cl,$G29,x,R_cl,D_cl_arr Tear,Decay_cl,vel_cl_arr Tear,nsum),0) -> 0
A30: =IF(OR(CM=1,AND(CM>1,GM_opt="No")),IF(Cont_Class="List I",List_I_C_Darcy,List_II_J_Darcy*Area_Single),IF(Area_Single=0,0,IF(Defect_Choice=1,List_I_C_Pin,IF(Defect_Choice=2,List_I_C_Hole,IF(Defect_Choice=3,List_I_C_Tear,(List_II_J_Pin*Area_CZ_arr Pin+List_II_J_Hole*Area_CZ_arr Hole+List_II_J_Tear*Area_CZ_arr Tear))))))*IF(Cont_Class="List II",1000/aq_Q,1) ->  | B30: =IF(Cont_Class="List II",IF(OR(CM=1,AND(CM>1,GM_opt="No")),List_II_J_Darcy*Area_Single*s_per_day,(List_II_J_Pin*Area_CZ_arr Pin+List_II_J_Hole*Area_CZ_arr Hole+List_II_J_Tear*Area_CZ_arr Tear)*s_per_day),IF(OR(CM=1,AND(CM>1,GM_opt="No")),List_I_J_Darcy_In*Area_Single*s_per_day,(List_I_J_Pin_In*Area_CZ_arr Pin+List_I_J_Hole_In*Area_CZ_arr Hole+List_I_J_Tear_In*Area_CZ_arr Tear)*s_per_day)) ->  | F30: 50.11872336 | G30: 1580544060 | L30: =IF(NOT(Solution_type="a"),n*GetJ_1laysol_L(Conc_def_arr Pin/1000,thick_cl,$G30,x,R_cl,D_cl_arr Pin,Decay_cl,vel_cl_arr Pin,nsum),0) -> 0 | M30: =IF(NOT(Solution_type="a"),Get_1laysol_inf(Conc_def_arr Pin,thick_cl,$G30,x,R_cl,D_cl_arr Pin,Decay_cl,vel_cl_arr Pin,nsum),0) -> 0 | N30: =IF(NOT(Solution_type="a"),(n)*GetJ_1laysol_inf(Conc_def_arr Pin/1000,thick_cl,$G30,x,R_cl,D_cl_arr Pin,Decay_cl,vel_cl_arr Pin,nsum),0) -> 0 | P30: =IF(NOT(Solution_type="a"),n*GetJ_1laysol_L(Conc_def_arr Hole/1000,thick_cl,$G30,x,R_cl,D_cl_arr Hole,Decay_cl,vel_cl_arr Hole,nsum),0) -> 0 | Q30: =IF(NOT(Solution_type="a"),Get_1laysol_inf(Conc_def_arr Hole,thick_cl,$G30,x,R_cl,D_cl_arr Hole,Decay_cl,vel_cl_arr Hole,nsum),0) -> 0 | R30: =IF(NOT(Solution_type="a"),(n)*GetJ_1laysol_inf(Conc_def_arr Hole/1000,thick_cl,$G30,x,R_cl,D_cl_arr Hole,Decay_cl,vel_cl_arr Hole,nsum),0) -> 0 | T30: =IF(NOT(Solution_type="a"),n*GetJ_1laysol_L(Conc_def_arr Tear/1000,thick_cl,$G30,x,R_cl,D_cl_arr Tear,Decay_cl,vel_cl_arr Tear,nsum),0) -> 0 | U30: =IF(NOT(Solution_type="a"),Get_1laysol_inf(Conc_def_arr Tear,thick_cl,$G30,x,R_cl,D_cl_arr Tear,Decay_cl,vel_cl_arr Tear,nsum),0) -> 0 | V30: =IF(NOT(Solution_type="a"),(n)*GetJ_1laysol_inf(Conc_def_arr Tear/1000,thick_cl,$G30,x,R_cl,D_cl_arr Tear,Decay_cl,vel_cl_arr Tear,nsum),0) -> 0
A31: =IF(OR(CM=1,AND(CM>1,GM_opt="No")),IF(Cont_Class="List I",List_I_C_Darcy,List_II_J_Darcy*Area_Single),IF(Area_Single=0,0,IF(Defect_Choice=1,List_I_C_Pin,IF(Defect_Choice=2,List_I_C_Hole,IF(Defect_Choice=3,List_I_C_Tear,(List_II_J_Pin*Area_CZ_arr Pin+List_II_J_Hole*Area_CZ_arr Hole+List_II_J_Tear*Area_CZ_arr Tear))))))*IF(Cont_Class="List II",1000/aq_Q,1) ->  | B31: =IF(Cont_Class="List II",IF(OR(CM=1,AND(CM>1,GM_opt="No")),List_II_J_Darcy*Area_Single*s_per_day,(List_II_J_Pin*Area_CZ_arr Pin+List_II_J_Hole*Area_CZ_arr Hole+List_II_J_Tear*Area_CZ_arr Tear)*s_per_day),IF(OR(CM=1,AND(CM>1,GM_opt="No")),List_I_J_Darcy_In*Area_Single*s_per_day,(List_I_J_Pin_In*Area_CZ_arr Pin+List_I_J_Hole_In*Area_CZ_arr Hole+List_I_J_Tear_In*Area_CZ_arr Tear)*s_per_day)) ->  | F31: 63.09573445 | G31: 1989787082 | L31: =IF(NOT(Solution_type="a"),n*GetJ_1laysol_L(Conc_def_arr Pin/1000,thick_cl,$G31,x,R_cl,D_cl_arr Pin,Decay_cl,vel_cl_arr Pin,nsum),0) -> 0 | M31: =IF(NOT(Solution_type="a"),Get_1laysol_inf(Conc_def_arr Pin,thick_cl,$G31,x,R_cl,D_cl_arr Pin,Decay_cl,vel_cl_arr Pin,nsum),0) -> 0 | N31: =IF(NOT(Solution_type="a"),(n)*GetJ_1laysol_inf(Conc_def_arr Pin/1000,thick_cl,$G31,x,R_cl,D_cl_arr Pin,Decay_cl,vel_cl_arr Pin,nsum),0) -> 0 | P31: =IF(NOT(Solution_type="a"),n*GetJ_1laysol_L(Conc_def_arr Hole/1000,thick_cl,$G31,x,R_cl,D_cl_arr Hole,Decay_cl,vel_cl_arr Hole,nsum),0) -> 0 | Q31: =IF(NOT(Solution_type="a"),Get_1laysol_inf(Conc_def_arr Hole,thick_cl,$G31,x,R_cl,D_cl_arr Hole,Decay_cl,vel_cl_arr Hole,nsum),0) -> 0 | R31: =IF(NOT(Solution_type="a"),(n)*GetJ_1laysol_inf(Conc_def_arr Hole/1000,thick_cl,$G31,x,R_cl,D_cl_arr Hole,Decay_cl,vel_cl_arr Hole,nsum),0) -> 0 | T31: =IF(NOT(Solution_type="a"),n*GetJ_1laysol_L(Conc_def_arr Tear/1000,thick_cl,$G31,x,R_cl,D_cl_arr Tear,Decay_cl,vel_cl_arr Tear,nsum),0) -> 0 | U31: =IF(NOT(Solution_type="a"),Get_1laysol_inf(Conc_def_arr Tear,thick_cl,$G31,x,R_cl,D_cl_arr Tear,Decay_cl,vel_cl_arr Tear,nsum),0) -> 0 | V31: =IF(NOT(Solution_type="a"),(n)*GetJ_1laysol_inf(Conc_def_arr Tear/1000,thick_cl,$G31,x,R_cl,D_cl_arr Tear,Decay_cl,vel_cl_arr Tear,nsum),0) -> 0
A32: =IF(OR(CM=1,AND(CM>1,GM_opt="No")),IF(Cont_Class="List I",List_I_C_Darcy,List_II_J_Darcy*Area_Single),IF(Area_Single=0,0,IF(Defect_Choice=1,List_I_C_Pin,IF(Defect_Choice=2,List_I_C_Hole,IF(Defect_Choice=3,List_I_C_Tear,(List_II_J_Pin*Area_CZ_arr Pin+List_II_J_Hole*Area_CZ_arr Hole+List_II_J_Tear*Area_CZ_arr Tear))))))*IF(Cont_Class="List II",1000/aq_Q,1) ->  | B32: =IF(Cont_Class="List II",IF(OR(CM=1,AND(CM>1,GM_opt="No")),List_II_J_Darcy*Area_Single*s_per_day,(List_II_J_Pin*Area_CZ_arr Pin+List_II_J_Hole*Area_CZ_arr Hole+List_II_J_Tear*Area_CZ_arr Tear)*s_per_day),IF(OR(CM=1,AND(CM>1,GM_opt="No")),List_I_J_Darcy_In*Area_Single*s_per_day,(List_I_J_Pin_In*Area_CZ_arr Pin+List_I_J_Hole_In*Area_CZ_arr Hole+List_I_J_Tear_In*Area_CZ_arr Tear)*s_per_day)) ->  | F32: 79.43282347 | G32: 2504993521 | L32: =IF(NOT(Solution_type="a"),n*GetJ_1laysol_L(Conc_def_arr Pin/1000,thick_cl,$G32,x,R_cl,D_cl_arr Pin,Decay_cl,vel_cl_arr Pin,nsum),0) -> 0 | M32: =IF(NOT(Solution_type="a"),Get_1laysol_inf(Conc_def_arr Pin,thick_cl,$G32,x,R_cl,D_cl_arr Pin,Decay_cl,vel_cl_arr Pin,nsum),0) -> 0 | N32: =IF(NOT(Solution_type="a"),(n)*GetJ_1laysol_inf(Conc_def_arr Pin/1000,thick_cl,$G32,x,R_cl,D_cl_arr Pin,Decay_cl,vel_cl_arr Pin,nsum),0) -> 0 | P32: =IF(NOT(Solution_type="a"),n*GetJ_1laysol_L(Conc_def_arr Hole/1000,thick_cl,$G32,x,R_cl,D_cl_arr Hole,Decay_cl,vel_cl_arr Hole,nsum),0) -> 0 | Q32: =IF(NOT(Solution_type="a"),Get_1laysol_inf(Conc_def_arr Hole,thick_cl,$G32,x,R_cl,D_cl_arr Hole,Decay_cl,vel_cl_arr Hole,nsum),0) -> 0 | R32: =IF(NOT(Solution_type="a"),(n)*GetJ_1laysol_inf(Conc_def_arr Hole/1000,thick_cl,$G32,x,R_cl,D_cl_arr Hole,Decay_cl,vel_cl_arr Hole,nsum),0) -> 0 | T32: =IF(NOT(Solution_type="a"),n*GetJ_1laysol_L(Conc_def_arr Tear/1000,thick_cl,$G32,x,R_cl,D_cl_arr Tear,Decay_cl,vel_cl_arr Tear,nsum),0) -> 0 | U32: =IF(NOT(Solution_type="a"),Get_1laysol_inf(Conc_def_arr Tear,thick_cl,$G32,x,R_cl,D_cl_arr Tear,Decay_cl,vel_cl_arr Tear,nsum),0) -> 0 | V32: =IF(NOT(Solution_type="a"),(n)*GetJ_1laysol_inf(Conc_def_arr Tear/1000,thick_cl,$G32,x,R_cl,D_cl_arr Tear,Decay_cl,vel_cl_arr Tear,nsum),0) -> 0
A33: =IF(OR(CM=1,AND(CM>1,GM_opt="No")),IF(Cont_Class="List I",List_I_C_Darcy,List_II_J_Darcy*Area_Single),IF(Area_Single=0,0,IF(Defect_Choice=1,List_I_C_Pin,IF(Defect_Choice=2,List_I_C_Hole,IF(Defect_Choice=3,List_I_C_Tear,(List_II_J_Pin*Area_CZ_arr Pin+List_II_J_Hole*Area_CZ_arr Hole+List_II_J_Tear*Area_CZ_arr Tear))))))*IF(Cont_Class="List II",1000/aq_Q,1) ->  | B33: =IF(Cont_Class="List II",IF(OR(CM=1,AND(CM>1,GM_opt="No")),List_II_J_Darcy*Area_Single*s_per_day,(List_II_J_Pin*Area_CZ_arr Pin+List_II_J_Hole*Area_CZ_arr Hole+List_II_J_Tear*Area_CZ_arr Tear)*s_per_day),IF(OR(CM=1,AND(CM>1,GM_opt="No")),List_I_J_Darcy_In*Area_Single*s_per_day,(List_I_J_Pin_In*Area_CZ_arr Pin+List_I_J_Hole_In*Area_CZ_arr Hole+List_I_J_Tear_In*Area_CZ_arr Tear)*s_per_day)) ->  | F33: 100 | G33: 3153600000 | L33: =IF(NOT(Solution_type="a"),n*GetJ_1laysol_L(Conc_def_arr Pin/1000,thick_cl,$G33,x,R_cl,D_cl_arr Pin,Decay_cl,vel_cl_arr Pin,nsum),0) -> 0 | M33: =IF(NOT(Solution_type="a"),Get_1laysol_inf(Conc_def_arr Pin,thick_cl,$G33,x,R_cl,D_cl_arr Pin,Decay_cl,vel_cl_arr Pin,nsum),0) -> 0 | N33: =IF(NOT(Solution_type="a"),(n)*GetJ_1laysol_inf(Conc_def_arr Pin/1000,thick_cl,$G33,x,R_cl,D_cl_arr Pin,Decay_cl,vel_cl_arr Pin,nsum),0) -> 0 | P33: =IF(NOT(Solution_type="a"),n*GetJ_1laysol_L(Conc_def_arr Hole/1000,thick_cl,$G33,x,R_cl,D_cl_arr Hole,Decay_cl,vel_cl_arr Hole,nsum),0) -> 0 | Q33: =IF(NOT(Solution_type="a"),Get_1laysol_inf(Conc_def_arr Hole,thick_cl,$G33,x,R_cl,D_cl_arr Hole,Decay_cl,vel_cl_arr Hole,nsum),0) -> 0 | R33: =IF(NOT(Solution_type="a"),(n)*GetJ_1laysol_inf(Conc_def_arr Hole/1000,thick_cl,$G33,x,R_cl,D_cl_arr Hole,Decay_cl,vel_cl_arr Hole,nsum),0) -> 0 | T33: =IF(NOT(Solution_type="a"),n*GetJ_1laysol_L(Conc_def_arr Tear/1000,thick_cl,$G33,x,R_cl,D_cl_arr Tear,Decay_cl,vel_cl_arr Tear,nsum),0) -> 0 | U33: =IF(NOT(Solution_type="a"),Get_1laysol_inf(Conc_def_arr Tear,thick_cl,$G33,x,R_cl,D_cl_arr Tear,Decay_cl,vel_cl_arr Tear,nsum),0) -> 0 | V33: =IF(NOT(Solution_type="a"),(n)*GetJ_1laysol_inf(Conc_def_arr Tear/1000,thick_cl,$G33,x,R_cl,D_cl_arr Tear,Decay_cl,vel_cl_arr Tear,nsum),0) -> 0
A34: =IF(OR(CM=1,AND(CM>1,GM_opt="No")),IF(Cont_Class="List I",List_I_C_Darcy,List_II_J_Darcy*Area_Single),IF(Area_Single=0,0,IF(Defect_Choice=1,List_I_C_Pin,IF(Defect_Choice=2,List_I_C_Hole,IF(Defect_Choice=3,List_I_C_Tear,(List_II_J_Pin*Area_CZ_arr Pin+List_II_J_Hole*Area_CZ_arr Hole+List_II_J_Tear*Area_CZ_arr Tear))))))*IF(Cont_Class="List II",1000/aq_Q,1) ->  | B34: =IF(Cont_Class="List II",IF(OR(CM=1,AND(CM>1,GM_opt="No")),List_II_J_Darcy*Area_Single*s_per_day,(List_II_J_Pin*Area_CZ_arr Pin+List_II_J_Hole*Area_CZ_arr Hole+List_II_J_Tear*Area_CZ_arr Tear)*s_per_day),IF(OR(CM=1,AND(CM>1,GM_opt="No")),List_I_J_Darcy_In*Area_Single*s_per_day,(List_I_J_Pin_In*Area_CZ_arr Pin+List_I_J_Hole_In*Area_CZ_arr Hole+List_I_J_Tear_In*Area_CZ_arr Tear)*s_per_day)) ->  | F34: 125.8925412 | G34: 3970147179 | L34: =IF(NOT(Solution_type="a"),n*GetJ_1laysol_L(Conc_def_arr Pin/1000,thick_cl,$G34,x,R_cl,D_cl_arr Pin,Decay_cl,vel_cl_arr Pin,nsum),0) -> 0 | M34: =IF(NOT(Solution_type="a"),Get_1laysol_inf(Conc_def_arr Pin,thick_cl,$G34,x,R_cl,D_cl_arr Pin,Decay_cl,vel_cl_arr Pin,nsum),0) -> 0 | N34: =IF(NOT(Solution_type="a"),(n)*GetJ_1laysol_inf(Conc_def_arr Pin/1000,thick_cl,$G34,x,R_cl,D_cl_arr Pin,Decay_cl,vel_cl_arr Pin,nsum),0) -> 0 | P34: =IF(NOT(Solution_type="a"),n*GetJ_1laysol_L(Conc_def_arr Hole/1000,thick_cl,$G34,x,R_cl,D_cl_arr Hole,Decay_cl,vel_cl_arr Hole,nsum),0) -> 0 | Q34: =IF(NOT(Solution_type="a"),Get_1laysol_inf(Conc_def_arr Hole,thick_cl,$G34,x,R_cl,D_cl_arr Hole,Decay_cl,vel_cl_arr Hole,nsum),0) -> 0 | R34: =IF(NOT(Solution_type="a"),(n)*GetJ_1laysol_inf(Conc_def_arr Hole/1000,thick_cl,$G34,x,R_cl,D_cl_arr Hole,Decay_cl,vel_cl_arr Hole,nsum),0) -> 0 | T34: =IF(NOT(Solution_type="a"),n*GetJ_1laysol_L(Conc_def_arr Tear/1000,thick_cl,$G34,x,R_cl,D_cl_arr Tear,Decay_cl,vel_cl_arr Tear,nsum),0) -> 0 | U34: =IF(NOT(Solution_type="a"),Get_1laysol_inf(Conc_def_arr Tear,thick_cl,$G34,x,R_cl,D_cl_arr Tear,Decay_cl,vel_cl_arr Tear,nsum),0) -> 0 | V34: =IF(NOT(Solution_type="a"),(n)*GetJ_1laysol_inf(Conc_def_arr Tear/1000,thick_cl,$G34,x,R_cl,D_cl_arr Tear,Decay_cl,vel_cl_arr Tear,nsum),0) -> 0
A35: =IF(OR(CM=1,AND(CM>1,GM_opt="No")),IF(Cont_Class="List I",List_I_C_Darcy,List_II_J_Darcy*Area_Single),IF(Area_Single=0,0,IF(Defect_Choice=1,List_I_C_Pin,IF(Defect_Choice=2,List_I_C_Hole,IF(Defect_Choice=3,List_I_C_Tear,(List_II_J_Pin*Area_CZ_arr Pin+List_II_J_Hole*Area_CZ_arr Hole+List_II_J_Tear*Area_CZ_arr Tear))))))*IF(Cont_Class="List II",1000/aq_Q,1) ->  | B35: =IF(Cont_Class="List II",IF(OR(CM=1,AND(CM>1,GM_opt="No")),List_II_J_Darcy*Area_Single*s_per_day,(List_II_J_Pin*Area_CZ_arr Pin+List_II_J_Hole*Area_CZ_arr Hole+List_II_J_Tear*Area_CZ_arr Tear)*s_per_day),IF(OR(CM=1,AND(CM>1,GM_opt="No")),List_I_J_Darcy_In*Area_Single*s_per_day,(List_I_J_Pin_In*Area_CZ_arr Pin+List_I_J_Hole_In*Area_CZ_arr Hole+List_I_J_Tear_In*Area_CZ_arr Tear)*s_per_day)) ->  | F35: 158.4893192 | G35: 4998119172 | L35: =IF(NOT(Solution_type="a"),n*GetJ_1laysol_L(Conc_def_arr Pin/1000,thick_cl,$G35,x,R_cl,D_cl_arr Pin,Decay_cl,vel_cl_arr Pin,nsum),0) -> 0 | M35: =IF(NOT(Solution_type="a"),Get_1laysol_inf(Conc_def_arr Pin,thick_cl,$G35,x,R_cl,D_cl_arr Pin,Decay_cl,vel_cl_arr Pin,nsum),0) -> 0 | N35: =IF(NOT(Solution_type="a"),(n)*GetJ_1laysol_inf(Conc_def_arr Pin/1000,thick_cl,$G35,x,R_cl,D_cl_arr Pin,Decay_cl,vel_cl_arr Pin,nsum),0) -> 0 | P35: =IF(NOT(Solution_type="a"),n*GetJ_1laysol_L(Conc_def_arr Hole/1000,thick_cl,$G35,x,R_cl,D_cl_arr Hole,Decay_cl,vel_cl_arr Hole,nsum),0) -> 0 | Q35: =IF(NOT(Solution_type="a"),Get_1laysol_inf(Conc_def_arr Hole,thick_cl,$G35,x,R_cl,D_cl_arr Hole,Decay_cl,vel_cl_arr Hole,nsum),0) -> 0 | R35: =IF(NOT(Solution_type="a"),(n)*GetJ_1laysol_inf(Conc_def_arr Hole/1000,thick_cl,$G35,x,R_cl,D_cl_arr Hole,Decay_cl,vel_cl_arr Hole,nsum),0) -> 0 | T35: =IF(NOT(Solution_type="a"),n*GetJ_1laysol_L(Conc_def_arr Tear/1000,thick_cl,$G35,x,R_cl,D_cl_arr Tear,Decay_cl,vel_cl_arr Tear,nsum),0) -> 0 | U35: =IF(NOT(Solution_type="a"),Get_1laysol_inf(Conc_def_arr Tear,thick_cl,$G35,x,R_cl,D_cl_arr Tear,Decay_cl,vel_cl_arr Tear,nsum),0) -> 0 | V35: =IF(NOT(Solution_type="a"),(n)*GetJ_1laysol_inf(Conc_def_arr Tear/1000,thick_cl,$G35,x,R_cl,D_cl_arr Tear,Decay_cl,vel_cl_arr Tear,nsum),0) -> 0
A36: =IF(OR(CM=1,AND(CM>1,GM_opt="No")),IF(Cont_Class="List I",List_I_C_Darcy,List_II_J_Darcy*Area_Single),IF(Area_Single=0,0,IF(Defect_Choice=1,List_I_C_Pin,IF(Defect_Choice=2,List_I_C_Hole,IF(Defect_Choice=3,List_I_C_Tear,(List_II_J_Pin*Area_CZ_arr Pin+List_II_J_Hole*Area_CZ_arr Hole+List_II_J_Tear*Area_CZ_arr Tear))))))*IF(Cont_Class="List II",1000/aq_Q,1) ->  | B36: =IF(Cont_Class="List II",IF(OR(CM=1,AND(CM>1,GM_opt="No")),List_II_J_Darcy*Area_Single*s_per_day,(List_II_J_Pin*Area_CZ_arr Pin+List_II_J_Hole*Area_CZ_arr Hole+List_II_J_Tear*Area_CZ_arr Tear)*s_per_day),IF(OR(CM=1,AND(CM>1,GM_opt="No")),List_I_J_Darcy_In*Area_Single*s_per_day,(List_I_J_Pin_In*Area_CZ_arr Pin+List_I_J_Hole_In*Area_CZ_arr Hole+List_I_J_Tear_In*Area_CZ_arr Tear)*s_per_day)) ->  | F36: 199.5262315 | G36: 6292259236 | L36: =IF(NOT(Solution_type="a"),n*GetJ_1laysol_L(Conc_def_arr Pin/1000,thick_cl,$G36,x,R_cl,D_cl_arr Pin,Decay_cl,vel_cl_arr Pin,nsum),0) -> 0 | M36: =IF(NOT(Solution_type="a"),Get_1laysol_inf(Conc_def_arr Pin,thick_cl,$G36,x,R_cl,D_cl_arr Pin,Decay_cl,vel_cl_arr Pin,nsum),0) -> 0 | N36: =IF(NOT(Solution_type="a"),(n)*GetJ_1laysol_inf(Conc_def_arr Pin/1000,thick_cl,$G36,x,R_cl,D_cl_arr Pin,Decay_cl,vel_cl_arr Pin,nsum),0) -> 0 | P36: =IF(NOT(Solution_type="a"),n*GetJ_1laysol_L(Conc_def_arr Hole/1000,thick_cl,$G36,x,R_cl,D_cl_arr Hole,Decay_cl,vel_cl_arr Hole,nsum),0) -> 0 | Q36: =IF(NOT(Solution_type="a"),Get_1laysol_inf(Conc_def_arr Hole,thick_cl,$G36,x,R_cl,D_cl_arr Hole,Decay_cl,vel_cl_arr Hole,nsum),0) -> 0 | R36: =IF(NOT(Solution_type="a"),(n)*GetJ_1laysol_inf(Conc_def_arr Hole/1000,thick_cl,$G36,x,R_cl,D_cl_arr Hole,Decay_cl,vel_cl_arr Hole,nsum),0) -> 0 | T36: =IF(NOT(Solution_type="a"),n*GetJ_1laysol_L(Conc_def_arr Tear/1000,thick_cl,$G36,x,R_cl,D_cl_arr Tear,Decay_cl,vel_cl_arr Tear,nsum),0) -> 0 | U36: =IF(NOT(Solution_type="a"),Get_1laysol_inf(Conc_def_arr Tear,thick_cl,$G36,x,R_cl,D_cl_arr Tear,Decay_cl,vel_cl_arr Tear,nsum),0) -> 0 | V36: =IF(NOT(Solution_type="a"),(n)*GetJ_1laysol_inf(Conc_def_arr Tear/1000,thick_cl,$G36,x,R_cl,D_cl_arr Tear,Decay_cl,vel_cl_arr Tear,nsum),0) -> 0
A37: =IF(OR(CM=1,AND(CM>1,GM_opt="No")),IF(Cont_Class="List I",List_I_C_Darcy,List_II_J_Darcy*Area_Single),IF(Area_Single=0,0,IF(Defect_Choice=1,List_I_C_Pin,IF(Defect_Choice=2,List_I_C_Hole,IF(Defect_Choice=3,List_I_C_Tear,(List_II_J_Pin*Area_CZ_arr Pin+List_II_J_Hole*Area_CZ_arr Hole+List_II_J_Tear*Area_CZ_arr Tear))))))*IF(Cont_Class="List II",1000/aq_Q,1) ->  | B37: =IF(Cont_Class="List II",IF(OR(CM=1,AND(CM>1,GM_opt="No")),List_II_J_Darcy*Area_Single*s_per_day,(List_II_J_Pin*Area_CZ_arr Pin+List_II_J_Hole*Area_CZ_arr Hole+List_II_J_Tear*Area_CZ_arr Tear)*s_per_day),IF(OR(CM=1,AND(CM>1,GM_opt="No")),List_I_J_Darcy_In*Area_Single*s_per_day,(List_I_J_Pin_In*Area_CZ_arr Pin+List_I_J_Hole_In*Area_CZ_arr Hole+List_I_J_Tear_In*Area_CZ_arr Tear)*s_per_day)) ->  | F37: 251.1886432 | G37: 7921485050 | L37: =IF(NOT(Solution_type="a"),n*GetJ_1laysol_L(Conc_def_arr Pin/1000,thick_cl,$G37,x,R_cl,D_cl_arr Pin,Decay_cl,vel_cl_arr Pin,nsum),0) -> 0 | M37: =IF(NOT(Solution_type="a"),Get_1laysol_inf(Conc_def_arr Pin,thick_cl,$G37,x,R_cl,D_cl_arr Pin,Decay_cl,vel_cl_arr Pin,nsum),0) -> 0 | N37: =IF(NOT(Solution_type="a"),(n)*GetJ_1laysol_inf(Conc_def_arr Pin/1000,thick_cl,$G37,x,R_cl,D_cl_arr Pin,Decay_cl,vel_cl_arr Pin,nsum),0) -> 0 | P37: =IF(NOT(Solution_type="a"),n*GetJ_1laysol_L(Conc_def_arr Hole/1000,thick_cl,$G37,x,R_cl,D_cl_arr Hole,Decay_cl,vel_cl_arr Hole,nsum),0) -> 0 | Q37: =IF(NOT(Solution_type="a"),Get_1laysol_inf(Conc_def_arr Hole,thick_cl,$G37,x,R_cl,D_cl_arr Hole,Decay_cl,vel_cl_arr Hole,nsum),0) -> 0 | R37: =IF(NOT(Solution_type="a"),(n)*GetJ_1laysol_inf(Conc_def_arr Hole/1000,thick_cl,$G37,x,R_cl,D_cl_arr Hole,Decay_cl,vel_cl_arr Hole,nsum),0) -> 0 | T37: =IF(NOT(Solution_type="a"),n*GetJ_1laysol_L(Conc_def_arr Tear/1000,thick_cl,$G37,x,R_cl,D_cl_arr Tear,Decay_cl,vel_cl_arr Tear,nsum),0) -> 0 | U37: =IF(NOT(Solution_type="a"),Get_1laysol_inf(Conc_def_arr Tear,thick_cl,$G37,x,R_cl,D_cl_arr Tear,Decay_cl,vel_cl_arr Tear,nsum),0) -> 0 | V37: =IF(NOT(Solution_type="a"),(n)*GetJ_1laysol_inf(Conc_def_arr Tear/1000,thick_cl,$G37,x,R_cl,D_cl_arr Tear,Decay_cl,vel_cl_arr Tear,nsum),0) -> 0
A38: =IF(OR(CM=1,AND(CM>1,GM_opt="No")),IF(Cont_Class="List I",List_I_C_Darcy,List_II_J_Darcy*Area_Single),IF(Area_Single=0,0,IF(Defect_Choice=1,List_I_C_Pin,IF(Defect_Choice=2,List_I_C_Hole,IF(Defect_Choice=3,List_I_C_Tear,(List_II_J_Pin*Area_CZ_arr Pin+List_II_J_Hole*Area_CZ_arr Hole+List_II_J_Tear*Area_CZ_arr Tear))))))*IF(Cont_Class="List II",1000/aq_Q,1) ->  | B38: =IF(Cont_Class="List II",IF(OR(CM=1,AND(CM>1,GM_opt="No")),List_II_J_Darcy*Area_Single*s_per_day,(List_II_J_Pin*Area_CZ_arr Pin+List_II_J_Hole*Area_CZ_arr Hole+List_II_J_Tear*Area_CZ_arr Tear)*s_per_day),IF(OR(CM=1,AND(CM>1,GM_opt="No")),List_I_J_Darcy_In*Area_Single*s_per_day,(List_I_J_Pin_In*Area_CZ_arr Pin+List_I_J_Hole_In*Area_CZ_arr Hole+List_I_J_Tear_In*Area_CZ_arr Tear)*s_per_day)) ->  | F38: 316.227766 | G38: 9972558829 | L38: =IF(NOT(Solution_type="a"),n*GetJ_1laysol_L(Conc_def_arr Pin/1000,thick_cl,$G38,x,R_cl,D_cl_arr Pin,Decay_cl,vel_cl_arr Pin,nsum),0) -> 0 | M38: =IF(NOT(Solution_type="a"),Get_1laysol_inf(Conc_def_arr Pin,thick_cl,$G38,x,R_cl,D_cl_arr Pin,Decay_cl,vel_cl_arr Pin,nsum),0) -> 0 | N38: =IF(NOT(Solution_type="a"),(n)*GetJ_1laysol_inf(Conc_def_arr Pin/1000,thick_cl,$G38,x,R_cl,D_cl_arr Pin,Decay_cl,vel_cl_arr Pin,nsum),0) -> 0 | P38: =IF(NOT(Solution_type="a"),n*GetJ_1laysol_L(Conc_def_arr Hole/1000,thick_cl,$G38,x,R_cl,D_cl_arr Hole,Decay_cl,vel_cl_arr Hole,nsum),0) -> 0 | Q38: =IF(NOT(Solution_type="a"),Get_1laysol_inf(Conc_def_arr Hole,thick_cl,$G38,x,R_cl,D_cl_arr Hole,Decay_cl,vel_cl_arr Hole,nsum),0) -> 0 | R38: =IF(NOT(Solution_type="a"),(n)*GetJ_1laysol_inf(Conc_def_arr Hole/1000,thick_cl,$G38,x,R_cl,D_cl_arr Hole,Decay_cl,vel_cl_arr Hole,nsum),0) -> 0 | T38: =IF(NOT(Solution_type="a"),n*GetJ_1laysol_L(Conc_def_arr Tear/1000,thick_cl,$G38,x,R_cl,D_cl_arr Tear,Decay_cl,vel_cl_arr Tear,nsum),0) -> 0 | U38: =IF(NOT(Solution_type="a"),Get_1laysol_inf(Conc_def_arr Tear,thick_cl,$G38,x,R_cl,D_cl_arr Tear,Decay_cl,vel_cl_arr Tear,nsum),0) -> 0 | V38: =IF(NOT(Solution_type="a"),(n)*GetJ_1laysol_inf(Conc_def_arr Tear/1000,thick_cl,$G38,x,R_cl,D_cl_arr Tear,Decay_cl,vel_cl_arr Tear,nsum),0) -> 0
A39: =IF(OR(CM=1,AND(CM>1,GM_opt="No")),IF(Cont_Class="List I",List_I_C_Darcy,List_II_J_Darcy*Area_Single),IF(Area_Single=0,0,IF(Defect_Choice=1,List_I_C_Pin,IF(Defect_Choice=2,List_I_C_Hole,IF(Defect_Choice=3,List_I_C_Tear,(List_II_J_Pin*Area_CZ_arr Pin+List_II_J_Hole*Area_CZ_arr Hole+List_II_J_Tear*Area_CZ_arr Tear))))))*IF(Cont_Class="List II",1000/aq_Q,1) ->  | B39: =IF(Cont_Class="List II",IF(OR(CM=1,AND(CM>1,GM_opt="No")),List_II_J_Darcy*Area_Single*s_per_day,(List_II_J_Pin*Area_CZ_arr Pin+List_II_J_Hole*Area_CZ_arr Hole+List_II_J_Tear*Area_CZ_arr Tear)*s_per_day),IF(OR(CM=1,AND(CM>1,GM_opt="No")),List_I_J_Darcy_In*Area_Single*s_per_day,(List_I_J_Pin_In*Area_CZ_arr Pin+List_I_J_Hole_In*Area_CZ_arr Hole+List_I_J_Tear_In*Area_CZ_arr Tear)*s_per_day)) ->  | F39: 398.1071706 | G39: 1.255470773e+10 | L39: =IF(NOT(Solution_type="a"),n*GetJ_1laysol_L(Conc_def_arr Pin/1000,thick_cl,$G39,x,R_cl,D_cl_arr Pin,Decay_cl,vel_cl_arr Pin,nsum),0) -> 0 | M39: =IF(NOT(Solution_type="a"),Get_1laysol_inf(Conc_def_arr Pin,thick_cl,$G39,x,R_cl,D_cl_arr Pin,Decay_cl,vel_cl_arr Pin,nsum),0) -> 0 | N39: =IF(NOT(Solution_type="a"),(n)*GetJ_1laysol_inf(Conc_def_arr Pin/1000,thick_cl,$G39,x,R_cl,D_cl_arr Pin,Decay_cl,vel_cl_arr Pin,nsum),0) -> 0 | P39: =IF(NOT(Solution_type="a"),n*GetJ_1laysol_L(Conc_def_arr Hole/1000,thick_cl,$G39,x,R_cl,D_cl_arr Hole,Decay_cl,vel_cl_arr Hole,nsum),0) -> 0 | Q39: =IF(NOT(Solution_type="a"),Get_1laysol_inf(Conc_def_arr Hole,thick_cl,$G39,x,R_cl,D_cl_arr Hole,Decay_cl,vel_cl_arr Hole,nsum),0) -> 0 | R39: =IF(NOT(Solution_type="a"),(n)*GetJ_1laysol_inf(Conc_def_arr Hole/1000,thick_cl,$G39,x,R_cl,D_cl_arr Hole,Decay_cl,vel_cl_arr Hole,nsum),0) -> 0 | T39: =IF(NOT(Solution_type="a"),n*GetJ_1laysol_L(Conc_def_arr Tear/1000,thick_cl,$G39,x,R_cl,D_cl_arr Tear,Decay_cl,vel_cl_arr Tear,nsum),0) -> 0 | U39: =IF(NOT(Solution_type="a"),Get_1laysol_inf(Conc_def_arr Tear,thick_cl,$G39,x,R_cl,D_cl_arr Tear,Decay_cl,vel_cl_arr Tear,nsum),0) -> 0 | V39: =IF(NOT(Solution_type="a"),(n)*GetJ_1laysol_inf(Conc_def_arr Tear/1000,thick_cl,$G39,x,R_cl,D_cl_arr Tear,Decay_cl,vel_cl_arr Tear,nsum),0) -> 0
A40: =IF(OR(CM=1,AND(CM>1,GM_opt="No")),IF(Cont_Class="List I",List_I_C_Darcy,List_II_J_Darcy*Area_Single),IF(Area_Single=0,0,IF(Defect_Choice=1,List_I_C_Pin,IF(Defect_Choice=2,List_I_C_Hole,IF(Defect_Choice=3,List_I_C_Tear,(List_II_J_Pin*Area_CZ_arr Pin+List_II_J_Hole*Area_CZ_arr Hole+List_II_J_Tear*Area_CZ_arr Tear))))))*IF(Cont_Class="List II",1000/aq_Q,1) ->  | B40: =IF(Cont_Class="List II",IF(OR(CM=1,AND(CM>1,GM_opt="No")),List_II_J_Darcy*Area_Single*s_per_day,(List_II_J_Pin*Area_CZ_arr Pin+List_II_J_Hole*Area_CZ_arr Hole+List_II_J_Tear*Area_CZ_arr Tear)*s_per_day),IF(OR(CM=1,AND(CM>1,GM_opt="No")),List_I_J_Darcy_In*Area_Single*s_per_day,(List_I_J_Pin_In*Area_CZ_arr Pin+List_I_J_Hole_In*Area_CZ_arr Hole+List_I_J_Tear_In*Area_CZ_arr Tear)*s_per_day)) ->  | F40: 501.1872336 | G40: 1.58054406e+10 | L40: =IF(NOT(Solution_type="a"),n*GetJ_1laysol_L(Conc_def_arr Pin/1000,thick_cl,$G40,x,R_cl,D_cl_arr Pin,Decay_cl,vel_cl_arr Pin,nsum),0) -> 0 | M40: =IF(NOT(Solution_type="a"),Get_1laysol_inf(Conc_def_arr Pin,thick_cl,$G40,x,R_cl,D_cl_arr Pin,Decay_cl,vel_cl_arr Pin,nsum),0) -> 0 | N40: =IF(NOT(Solution_type="a"),(n)*GetJ_1laysol_inf(Conc_def_arr Pin/1000,thick_cl,$G40,x,R_cl,D_cl_arr Pin,Decay_cl,vel_cl_arr Pin,nsum),0) -> 0 | P40: =IF(NOT(Solution_type="a"),n*GetJ_1laysol_L(Conc_def_arr Hole/1000,thick_cl,$G40,x,R_cl,D_cl_arr Hole,Decay_cl,vel_cl_arr Hole,nsum),0) -> 0 | Q40: =IF(NOT(Solution_type="a"),Get_1laysol_inf(Conc_def_arr Hole,thick_cl,$G40,x,R_cl,D_cl_arr Hole,Decay_cl,vel_cl_arr Hole,nsum),0) -> 0 | R40: =IF(NOT(Solution_type="a"),(n)*GetJ_1laysol_inf(Conc_def_arr Hole/1000,thick_cl,$G40,x,R_cl,D_cl_arr Hole,Decay_cl,vel_cl_arr Hole,nsum),0) -> 0 | T40: =IF(NOT(Solution_type="a"),n*GetJ_1laysol_L(Conc_def_arr Tear/1000,thick_cl,$G40,x,R_cl,D_cl_arr Tear,Decay_cl,vel_cl_arr Tear,nsum),0) -> 0 | U40: =IF(NOT(Solution_type="a"),Get_1laysol_inf(Conc_def_arr Tear,thick_cl,$G40,x,R_cl,D_cl_arr Tear,Decay_cl,vel_cl_arr Tear,nsum),0) -> 0 | V40: =IF(NOT(Solution_type="a"),(n)*GetJ_1laysol_inf(Conc_def_arr Tear/1000,thick_cl,$G40,x,R_cl,D_cl_arr Tear,Decay_cl,vel_cl_arr Tear,nsum),0) -> 0
A41: =IF(OR(CM=1,AND(CM>1,GM_opt="No")),IF(Cont_Class="List I",List_I_C_Darcy,List_II_J_Darcy*Area_Single),IF(Area_Single=0,0,IF(Defect_Choice=1,List_I_C_Pin,IF(Defect_Choice=2,List_I_C_Hole,IF(Defect_Choice=3,List_I_C_Tear,(List_II_J_Pin*Area_CZ_arr Pin+List_II_J_Hole*Area_CZ_arr Hole+List_II_J_Tear*Area_CZ_arr Tear))))))*IF(Cont_Class="List II",1000/aq_Q,1) ->  | B41: =IF(Cont_Class="List II",IF(OR(CM=1,AND(CM>1,GM_opt="No")),List_II_J_Darcy*Area_Single*s_per_day,(List_II_J_Pin*Area_CZ_arr Pin+List_II_J_Hole*Area_CZ_arr Hole+List_II_J_Tear*Area_CZ_arr Tear)*s_per_day),IF(OR(CM=1,AND(CM>1,GM_opt="No")),List_I_J_Darcy_In*Area_Single*s_per_day,(List_I_J_Pin_In*Area_CZ_arr Pin+List_I_J_Hole_In*Area_CZ_arr Hole+List_I_J_Tear_In*Area_CZ_arr Tear)*s_per_day)) ->  | F41: 630.9573445 | G41: 1.989787082e+10 | L41: =IF(NOT(Solution_type="a"),n*GetJ_1laysol_L(Conc_def_arr Pin/1000,thick_cl,$G41,x,R_cl,D_cl_arr Pin,Decay_cl,vel_cl_arr Pin,nsum),0) -> 0 | M41: =IF(NOT(Solution_type="a"),Get_1laysol_inf(Conc_def_arr Pin,thick_cl,$G41,x,R_cl,D_cl_arr Pin,Decay_cl,vel_cl_arr Pin,nsum),0) -> 0 | N41: =IF(NOT(Solution_type="a"),(n)*GetJ_1laysol_inf(Conc_def_arr Pin/1000,thick_cl,$G41,x,R_cl,D_cl_arr Pin,Decay_cl,vel_cl_arr Pin,nsum),0) -> 0 | P41: =IF(NOT(Solution_type="a"),n*GetJ_1laysol_L(Conc_def_arr Hole/1000,thick_cl,$G41,x,R_cl,D_cl_arr Hole,Decay_cl,vel_cl_arr Hole,nsum),0) -> 0 | Q41: =IF(NOT(Solution_type="a"),Get_1laysol_inf(Conc_def_arr Hole,thick_cl,$G41,x,R_cl,D_cl_arr Hole,Decay_cl,vel_cl_arr Hole,nsum),0) -> 0 | R41: =IF(NOT(Solution_type="a"),(n)*GetJ_1laysol_inf(Conc_def_arr Hole/1000,thick_cl,$G41,x,R_cl,D_cl_arr Hole,Decay_cl,vel_cl_arr Hole,nsum),0) -> 0 | T41: =IF(NOT(Solution_type="a"),n*GetJ_1laysol_L(Conc_def_arr Tear/1000,thick_cl,$G41,x,R_cl,D_cl_arr Tear,Decay_cl,vel_cl_arr Tear,nsum),0) -> 0 | U41: =IF(NOT(Solution_type="a"),Get_1laysol_inf(Conc_def_arr Tear,thick_cl,$G41,x,R_cl,D_cl_arr Tear,Decay_cl,vel_cl_arr Tear,nsum),0) -> 0 | V41: =IF(NOT(Solution_type="a"),(n)*GetJ_1laysol_inf(Conc_def_arr Tear/1000,thick_cl,$G41,x,R_cl,D_cl_arr Tear,Decay_cl,vel_cl_arr Tear,nsum),0) -> 0
A42: =IF(OR(CM=1,AND(CM>1,GM_opt="No")),IF(Cont_Class="List I",List_I_C_Darcy,List_II_J_Darcy*Area_Single),IF(Area_Single=0,0,IF(Defect_Choice=1,List_I_C_Pin,IF(Defect_Choice=2,List_I_C_Hole,IF(Defect_Choice=3,List_I_C_Tear,(List_II_J_Pin*Area_CZ_arr Pin+List_II_J_Hole*Area_CZ_arr Hole+List_II_J_Tear*Area_CZ_arr Tear))))))*IF(Cont_Class="List II",1000/aq_Q,1) ->  | B42: =IF(Cont_Class="List II",IF(OR(CM=1,AND(CM>1,GM_opt="No")),List_II_J_Darcy*Area_Single*s_per_day,(List_II_J_Pin*Area_CZ_arr Pin+List_II_J_Hole*Area_CZ_arr Hole+List_II_J_Tear*Area_CZ_arr Tear)*s_per_day),IF(OR(CM=1,AND(CM>1,GM_opt="No")),List_I_J_Darcy_In*Area_Single*s_per_day,(List_I_J_Pin_In*Area_CZ_arr Pin+List_I_J_Hole_In*Area_CZ_arr Hole+List_I_J_Tear_In*Area_CZ_arr Tear)*s_per_day)) ->  | F42: 794.3282347 | G42: 2.504993521e+10 | L42: =IF(NOT(Solution_type="a"),n*GetJ_1laysol_L(Conc_def_arr Pin/1000,thick_cl,$G42,x,R_cl,D_cl_arr Pin,Decay_cl,vel_cl_arr Pin,nsum),0) -> 0 | M42: =IF(NOT(Solution_type="a"),Get_1laysol_inf(Conc_def_arr Pin,thick_cl,$G42,x,R_cl,D_cl_arr Pin,Decay_cl,vel_cl_arr Pin,nsum),0) -> 0 | N42: =IF(NOT(Solution_type="a"),(n)*GetJ_1laysol_inf(Conc_def_arr Pin/1000,thick_cl,$G42,x,R_cl,D_cl_arr Pin,Decay_cl,vel_cl_arr Pin,nsum),0) -> 0 | P42: =IF(NOT(Solution_type="a"),n*GetJ_1laysol_L(Conc_def_arr Hole/1000,thick_cl,$G42,x,R_cl,D_cl_arr Hole,Decay_cl,vel_cl_arr Hole,nsum),0) -> 0 | Q42: =IF(NOT(Solution_type="a"),Get_1laysol_inf(Conc_def_arr Hole,thick_cl,$G42,x,R_cl,D_cl_arr Hole,Decay_cl,vel_cl_arr Hole,nsum),0) -> 0 | R42: =IF(NOT(Solution_type="a"),(n)*GetJ_1laysol_inf(Conc_def_arr Hole/1000,thick_cl,$G42,x,R_cl,D_cl_arr Hole,Decay_cl,vel_cl_arr Hole,nsum),0) -> 0 | T42: =IF(NOT(Solution_type="a"),n*GetJ_1laysol_L(Conc_def_arr Tear/1000,thick_cl,$G42,x,R_cl,D_cl_arr Tear,Decay_cl,vel_cl_arr Tear,nsum),0) -> 0 | U42: =IF(NOT(Solution_type="a"),Get_1laysol_inf(Conc_def_arr Tear,thick_cl,$G42,x,R_cl,D_cl_arr Tear,Decay_cl,vel_cl_arr Tear,nsum),0) -> 0 | V42: =IF(NOT(Solution_type="a"),(n)*GetJ_1laysol_inf(Conc_def_arr Tear/1000,thick_cl,$G42,x,R_cl,D_cl_arr Tear,Decay_cl,vel_cl_arr Tear,nsum),0) -> 0
A43: =IF(OR(CM=1,AND(CM>1,GM_opt="No")),IF(Cont_Class="List I",List_I_C_Darcy,List_II_J_Darcy*Area_Single),IF(Area_Single=0,0,IF(Defect_Choice=1,List_I_C_Pin,IF(Defect_Choice=2,List_I_C_Hole,IF(Defect_Choice=3,List_I_C_Tear,(List_II_J_Pin*Area_CZ_arr Pin+List_II_J_Hole*Area_CZ_arr Hole+List_II_J_Tear*Area_CZ_arr Tear))))))*IF(Cont_Class="List II",1000/aq_Q,1) ->  | B43: =IF(Cont_Class="List II",IF(OR(CM=1,AND(CM>1,GM_opt="No")),List_II_J_Darcy*Area_Single*s_per_day,(List_II_J_Pin*Area_CZ_arr Pin+List_II_J_Hole*Area_CZ_arr Hole+List_II_J_Tear*Area_CZ_arr Tear)*s_per_day),IF(OR(CM=1,AND(CM>1,GM_opt="No")),List_I_J_Darcy_In*Area_Single*s_per_day,(List_I_J_Pin_In*Area_CZ_arr Pin+List_I_J_Hole_In*Area_CZ_arr Hole+List_I_J_Tear_In*Area_CZ_arr Tear)*s_per_day)) ->  | F43: 1000 | G43: 3.1536e+10 | L43: =IF(NOT(Solution_type="a"),n*GetJ_1laysol_L(Conc_def_arr Pin/1000,thick_cl,$G43,x,R_cl,D_cl_arr Pin,Decay_cl,vel_cl_arr Pin,nsum),0) -> 0 | M43: =IF(NOT(Solution_type="a"),Get_1laysol_inf(Conc_def_arr Pin,thick_cl,$G43,x,R_cl,D_cl_arr Pin,Decay_cl,vel_cl_arr Pin,nsum),0) -> 0 | N43: =IF(NOT(Solution_type="a"),(n)*GetJ_1laysol_inf(Conc_def_arr Pin/1000,thick_cl,$G43,x,R_cl,D_cl_arr Pin,Decay_cl,vel_cl_arr Pin,nsum),0) -> 0 | P43: =IF(NOT(Solution_type="a"),n*GetJ_1laysol_L(Conc_def_arr Hole/1000,thick_cl,$G43,x,R_cl,D_cl_arr Hole,Decay_cl,vel_cl_arr Hole,nsum),0) -> 0 | Q43: =IF(NOT(Solution_type="a"),Get_1laysol_inf(Conc_def_arr Hole,thick_cl,$G43,x,R_cl,D_cl_arr Hole,Decay_cl,vel_cl_arr Hole,nsum),0) -> 0 | R43: =IF(NOT(Solution_type="a"),(n)*GetJ_1laysol_inf(Conc_def_arr Hole/1000,thick_cl,$G43,x,R_cl,D_cl_arr Hole,Decay_cl,vel_cl_arr Hole,nsum),0) -> 0 | T43: =IF(NOT(Solution_type="a"),n*GetJ_1laysol_L(Conc_def_arr Tear/1000,thick_cl,$G43,x,R_cl,D_cl_arr Tear,Decay_cl,vel_cl_arr Tear,nsum),0) -> 0 | U43: =IF(NOT(Solution_type="a"),Get_1laysol_inf(Conc_def_arr Tear,thick_cl,$G43,x,R_cl,D_cl_arr Tear,Decay_cl,vel_cl_arr Tear,nsum),0) -> 0 | V43: =IF(NOT(Solution_type="a"),(n)*GetJ_1laysol_inf(Conc_def_arr Tear/1000,thick_cl,$G43,x,R_cl,D_cl_arr Tear,Decay_cl,vel_cl_arr Tear,nsum),0) -> 0
A44: =IF(OR(CM=1,AND(CM>1,GM_opt="No")),IF(Cont_Class="List I",List_I_C_Darcy,List_II_J_Darcy*Area_Single),IF(Area_Single=0,0,IF(Defect_Choice=1,List_I_C_Pin,IF(Defect_Choice=2,List_I_C_Hole,IF(Defect_Choice=3,List_I_C_Tear,(List_II_J_Pin*Area_CZ_arr Pin+List_II_J_Hole*Area_CZ_arr Hole+List_II_J_Tear*Area_CZ_arr Tear))))))*IF(Cont_Class="List II",1000/aq_Q,1) ->  | B44: =IF(Cont_Class="List II",IF(OR(CM=1,AND(CM>1,GM_opt="No")),List_II_J_Darcy*Area_Single*s_per_day,(List_II_J_Pin*Area_CZ_arr Pin+List_II_J_Hole*Area_CZ_arr Hole+List_II_J_Tear*Area_CZ_arr Tear)*s_per_day),IF(OR(CM=1,AND(CM>1,GM_opt="No")),List_I_J_Darcy_In*Area_Single*s_per_day,(List_I_J_Pin_In*Area_CZ_arr Pin+List_I_J_Hole_In*Area_CZ_arr Hole+List_I_J_Tear_In*Area_CZ_arr Tear)*s_per_day)) ->  | F44: 1258.925412 | G44: 3.970147179e+10 | L44: =IF(NOT(Solution_type="a"),n*GetJ_1laysol_L(Conc_def_arr Pin/1000,thick_cl,$G44,x,R_cl,D_cl_arr Pin,Decay_cl,vel_cl_arr Pin,nsum),0) -> 0 | M44: =IF(NOT(Solution_type="a"),Get_1laysol_inf(Conc_def_arr Pin,thick_cl,$G44,x,R_cl,D_cl_arr Pin,Decay_cl,vel_cl_arr Pin,nsum),0) -> 0 | N44: =IF(NOT(Solution_type="a"),(n)*GetJ_1laysol_inf(Conc_def_arr Pin/1000,thick_cl,$G44,x,R_cl,D_cl_arr Pin,Decay_cl,vel_cl_arr Pin,nsum),0) -> 0 | P44: =IF(NOT(Solution_type="a"),n*GetJ_1laysol_L(Conc_def_arr Hole/1000,thick_cl,$G44,x,R_cl,D_cl_arr Hole,Decay_cl,vel_cl_arr Hole,nsum),0) -> 0 | Q44: =IF(NOT(Solution_type="a"),Get_1laysol_inf(Conc_def_arr Hole,thick_cl,$G44,x,R_cl,D_cl_arr Hole,Decay_cl,vel_cl_arr Hole,nsum),0) -> 0 | R44: =IF(NOT(Solution_type="a"),(n)*GetJ_1laysol_inf(Conc_def_arr Hole/1000,thick_cl,$G44,x,R_cl,D_cl_arr Hole,Decay_cl,vel_cl_arr Hole,nsum),0) -> 0 | T44: =IF(NOT(Solution_type="a"),n*GetJ_1laysol_L(Conc_def_arr Tear/1000,thick_cl,$G44,x,R_cl,D_cl_arr Tear,Decay_cl,vel_cl_arr Tear,nsum),0) -> 0 | U44: =IF(NOT(Solution_type="a"),Get_1laysol_inf(Conc_def_arr Tear,thick_cl,$G44,x,R_cl,D_cl_arr Tear,Decay_cl,vel_cl_arr Tear,nsum),0) -> 0 | V44: =IF(NOT(Solution_type="a"),(n)*GetJ_1laysol_inf(Conc_def_arr Tear/1000,thick_cl,$G44,x,R_cl,D_cl_arr Tear,Decay_cl,vel_cl_arr Tear,nsum),0) -> 0
A45: =IF(OR(CM=1,AND(CM>1,GM_opt="No")),IF(Cont_Class="List I",List_I_C_Darcy,List_II_J_Darcy*Area_Single),IF(Area_Single=0,0,IF(Defect_Choice=1,List_I_C_Pin,IF(Defect_Choice=2,List_I_C_Hole,IF(Defect_Choice=3,List_I_C_Tear,(List_II_J_Pin*Area_CZ_arr Pin+List_II_J_Hole*Area_CZ_arr Hole+List_II_J_Tear*Area_CZ_arr Tear))))))*IF(Cont_Class="List II",1000/aq_Q,1) ->  | B45: =IF(Cont_Class="List II",IF(OR(CM=1,AND(CM>1,GM_opt="No")),List_II_J_Darcy*Area_Single*s_per_day,(List_II_J_Pin*Area_CZ_arr Pin+List_II_J_Hole*Area_CZ_arr Hole+List_II_J_Tear*Area_CZ_arr Tear)*s_per_day),IF(OR(CM=1,AND(CM>1,GM_opt="No")),List_I_J_Darcy_In*Area_Single*s_per_day,(List_I_J_Pin_In*Area_CZ_arr Pin+List_I_J_Hole_In*Area_CZ_arr Hole+List_I_J_Tear_In*Area_CZ_arr Tear)*s_per_day)) ->  | F45: 1584.893192 | G45: 4.998119172e+10 | H45: =IF(Solution_type="a",n*GetJ_1laysol_L(Conc_def/1000,thick_cl,$G45,x,R_cl,D_cl,Decay_cl,vel_cl,nsum),0) ->  | I45: =IF(Solution_type="a",Get_1laysol_inf(Conc_def,thick_cl,$G45,x,R_cl,D_cl,Decay_cl,vel_cl,nsum),0) ->  | J45: =IF(Solution_type="a",(n)*GetJ_1laysol_inf(Conc_def/1000,thick_cl,$G45,x,R_cl,D_cl,Decay_cl,vel_cl,nsum),0) ->  | L45: =IF(NOT(Solution_type="a"),n*GetJ_1laysol_L(Conc_def_arr Pin/1000,thick_cl,$G45,x,R_cl,D_cl_arr Pin,Decay_cl,vel_cl_arr Pin,nsum),0) -> 0 | M45: =IF(NOT(Solution_type="a"),Get_1laysol_inf(Conc_def_arr Pin,thick_cl,$G45,x,R_cl,D_cl_arr Pin,Decay_cl,vel_cl_arr Pin,nsum),0) -> 0 | N45: =IF(NOT(Solution_type="a"),(n)*GetJ_1laysol_inf(Conc_def_arr Pin/1000,thick_cl,$G45,x,R_cl,D_cl_arr Pin,Decay_cl,vel_cl_arr Pin,nsum),0) -> 0 | P45: =IF(NOT(Solution_type="a"),n*GetJ_1laysol_L(Conc_def_arr Hole/1000,thick_cl,$G45,x,R_cl,D_cl_arr Hole,Decay_cl,vel_cl_arr Hole,nsum),0) -> 0 | Q45: =IF(NOT(Solution_type="a"),Get_1laysol_inf(Conc_def_arr Hole,thick_cl,$G45,x,R_cl,D_cl_arr Hole,Decay_cl,vel_cl_arr Hole,nsum),0) -> 0 | R45: =IF(NOT(Solution_type="a"),(n)*GetJ_1laysol_inf(Conc_def_arr Hole/1000,thick_cl,$G45,x,R_cl,D_cl_arr Hole,Decay_cl,vel_cl_arr Hole,nsum),0) -> 0 | T45: =IF(NOT(Solution_type="a"),n*GetJ_1laysol_L(Conc_def_arr Tear/1000,thick_cl,$G45,x,R_cl,D_cl_arr Tear,Decay_cl,vel_cl_arr Tear,nsum),0) -> 0 | U45: =IF(NOT(Solution_type="a"),Get_1laysol_inf(Conc_def_arr Tear,thick_cl,$G45,x,R_cl,D_cl_arr Tear,Decay_cl,vel_cl_arr Tear,nsum),0) -> 0 | V45: =IF(NOT(Solution_type="a"),(n)*GetJ_1laysol_inf(Conc_def_arr Tear/1000,thick_cl,$G45,x,R_cl,D_cl_arr Tear,Decay_cl,vel_cl_arr Tear,nsum),0) -> 0
A46: =IF(OR(CM=1,AND(CM>1,GM_opt="No")),IF(Cont_Class="List I",List_I_C_Darcy,List_II_J_Darcy*Area_Single),IF(Area_Single=0,0,IF(Defect_Choice=1,List_I_C_Pin,IF(Defect_Choice=2,List_I_C_Hole,IF(Defect_Choice=3,List_I_C_Tear,(List_II_J_Pin*Area_CZ_arr Pin+List_II_J_Hole*Area_CZ_arr Hole+List_II_J_Tear*Area_CZ_arr Tear))))))*IF(Cont_Class="List II",1000/aq_Q,1) ->  | B46: =IF(Cont_Class="List II",IF(OR(CM=1,AND(CM>1,GM_opt="No")),List_II_J_Darcy*Area_Single*s_per_day,(List_II_J_Pin*Area_CZ_arr Pin+List_II_J_Hole*Area_CZ_arr Hole+List_II_J_Tear*Area_CZ_arr Tear)*s_per_day),IF(OR(CM=1,AND(CM>1,GM_opt="No")),List_I_J_Darcy_In*Area_Single*s_per_day,(List_I_J_Pin_In*Area_CZ_arr Pin+List_I_J_Hole_In*Area_CZ_arr Hole+List_I_J_Tear_In*Area_CZ_arr Tear)*s_per_day)) ->  | F46: 1995.262315 | G46: 6.292259236e+10 | L46: =IF(NOT(Solution_type="a"),n*GetJ_1laysol_L(Conc_def_arr Pin/1000,thick_cl,$G46,x,R_cl,D_cl_arr Pin,Decay_cl,vel_cl_arr Pin,nsum),0) -> 0 | M46: =IF(NOT(Solution_type="a"),Get_1laysol_inf(Conc_def_arr Pin,thick_cl,$G46,x,R_cl,D_cl_arr Pin,Decay_cl,vel_cl_arr Pin,nsum),0) -> 0 | N46: =IF(NOT(Solution_type="a"),(n)*GetJ_1laysol_inf(Conc_def_arr Pin/1000,thick_cl,$G46,x,R_cl,D_cl_arr Pin,Decay_cl,vel_cl_arr Pin,nsum),0) -> 0 | P46: =IF(NOT(Solution_type="a"),n*GetJ_1laysol_L(Conc_def_arr Hole/1000,thick_cl,$G46,x,R_cl,D_cl_arr Hole,Decay_cl,vel_cl_arr Hole,nsum),0) -> 0 | Q46: =IF(NOT(Solution_type="a"),Get_1laysol_inf(Conc_def_arr Hole,thick_cl,$G46,x,R_cl,D_cl_arr Hole,Decay_cl,vel_cl_arr Hole,nsum),0) -> 0 | R46: =IF(NOT(Solution_type="a"),(n)*GetJ_1laysol_inf(Conc_def_arr Hole/1000,thick_cl,$G46,x,R_cl,D_cl_arr Hole,Decay_cl,vel_cl_arr Hole,nsum),0) -> 0 | T46: =IF(NOT(Solution_type="a"),n*GetJ_1laysol_L(Conc_def_arr Tear/1000,thick_cl,$G46,x,R_cl,D_cl_arr Tear,Decay_cl,vel_cl_arr Tear,nsum),0) -> 0 | U46: =IF(NOT(Solution_type="a"),Get_1laysol_inf(Conc_def_arr Tear,thick_cl,$G46,x,R_cl,D_cl_arr Tear,Decay_cl,vel_cl_arr Tear,nsum),0) -> 0 | V46: =IF(NOT(Solution_type="a"),(n)*GetJ_1laysol_inf(Conc_def_arr Tear/1000,thick_cl,$G46,x,R_cl,D_cl_arr Tear,Decay_cl,vel_cl_arr Tear,nsum),0) -> 0
A47: =IF(OR(CM=1,AND(CM>1,GM_opt="No")),IF(Cont_Class="List I",List_I_C_Darcy,List_II_J_Darcy*Area_Single),IF(Area_Single=0,0,IF(Defect_Choice=1,List_I_C_Pin,IF(Defect_Choice=2,List_I_C_Hole,IF(Defect_Choice=3,List_I_C_Tear,(List_II_J_Pin*Area_CZ_arr Pin+List_II_J_Hole*Area_CZ_arr Hole+List_II_J_Tear*Area_CZ_arr Tear))))))*IF(Cont_Class="List II",1000/aq_Q,1) ->  | B47: =IF(Cont_Class="List II",IF(OR(CM=1,AND(CM>1,GM_opt="No")),List_II_J_Darcy*Area_Single*s_per_day,(List_II_J_Pin*Area_CZ_arr Pin+List_II_J_Hole*Area_CZ_arr Hole+List_II_J_Tear*Area_CZ_arr Tear)*s_per_day),IF(OR(CM=1,AND(CM>1,GM_opt="No")),List_I_J_Darcy_In*Area_Single*s_per_day,(List_I_J_Pin_In*Area_CZ_arr Pin+List_I_J_Hole_In*Area_CZ_arr Hole+List_I_J_Tear_In*Area_CZ_arr Tear)*s_per_day)) ->  | F47: 2511.886432 | G47: 7.92148505e+10 | L47: =IF(NOT(Solution_type="a"),n*GetJ_1laysol_L(Conc_def_arr Pin/1000,thick_cl,$G47,x,R_cl,D_cl_arr Pin,Decay_cl,vel_cl_arr Pin,nsum),0) -> 0 | M47: =IF(NOT(Solution_type="a"),Get_1laysol_inf(Conc_def_arr Pin,thick_cl,$G47,x,R_cl,D_cl_arr Pin,Decay_cl,vel_cl_arr Pin,nsum),0) -> 0 | N47: =IF(NOT(Solution_type="a"),(n)*GetJ_1laysol_inf(Conc_def_arr Pin/1000,thick_cl,$G47,x,R_cl,D_cl_arr Pin,Decay_cl,vel_cl_arr Pin,nsum),0) -> 0 | P47: =IF(NOT(Solution_type="a"),n*GetJ_1laysol_L(Conc_def_arr Hole/1000,thick_cl,$G47,x,R_cl,D_cl_arr Hole,Decay_cl,vel_cl_arr Hole,nsum),0) -> 0 | Q47: =IF(NOT(Solution_type="a"),Get_1laysol_inf(Conc_def_arr Hole,thick_cl,$G47,x,R_cl,D_cl_arr Hole,Decay_cl,vel_cl_arr Hole,nsum),0) -> 0 | R47: =IF(NOT(Solution_type="a"),(n)*GetJ_1laysol_inf(Conc_def_arr Hole/1000,thick_cl,$G47,x,R_cl,D_cl_arr Hole,Decay_cl,vel_cl_arr Hole,nsum),0) -> 0 | T47: =IF(NOT(Solution_type="a"),n*GetJ_1laysol_L(Conc_def_arr Tear/1000,thick_cl,$G47,x,R_cl,D_cl_arr Tear,Decay_cl,vel_cl_arr Tear,nsum),0) -> 0 | U47: =IF(NOT(Solution_type="a"),Get_1laysol_inf(Conc_def_arr Tear,thick_cl,$G47,x,R_cl,D_cl_arr Tear,Decay_cl,vel_cl_arr Tear,nsum),0) -> 0 | V47: =IF(NOT(Solution_type="a"),(n)*GetJ_1laysol_inf(Conc_def_arr Tear/1000,thick_cl,$G47,x,R_cl,D_cl_arr Tear,Decay_cl,vel_cl_arr Tear,nsum),0) -> 0
A48: =IF(OR(CM=1,AND(CM>1,GM_opt="No")),IF(Cont_Class="List I",List_I_C_Darcy,List_II_J_Darcy*Area_Single),IF(Area_Single=0,0,IF(Defect_Choice=1,List_I_C_Pin,IF(Defect_Choice=2,List_I_C_Hole,IF(Defect_Choice=3,List_I_C_Tear,(List_II_J_Pin*Area_CZ_arr Pin+List_II_J_Hole*Area_CZ_arr Hole+List_II_J_Tear*Area_CZ_arr Tear))))))*IF(Cont_Class="List II",1000/aq_Q,1) ->  | B48: =IF(Cont_Class="List II",IF(OR(CM=1,AND(CM>1,GM_opt="No")),List_II_J_Darcy*Area_Single*s_per_day,(List_II_J_Pin*Area_CZ_arr Pin+List_II_J_Hole*Area_CZ_arr Hole+List_II_J_Tear*Area_CZ_arr Tear)*s_per_day),IF(OR(CM=1,AND(CM>1,GM_opt="No")),List_I_J_Darcy_In*Area_Single*s_per_day,(List_I_J_Pin_In*Area_CZ_arr Pin+List_I_J_Hole_In*Area_CZ_arr Hole+List_I_J_Tear_In*Area_CZ_arr Tear)*s_per_day)) ->  | F48: 3162.27766 | G48: 9.972558829e+10 | L48: =IF(NOT(Solution_type="a"),n*GetJ_1laysol_L(Conc_def_arr Pin/1000,thick_cl,$G48,x,R_cl,D_cl_arr Pin,Decay_cl,vel_cl_arr Pin,nsum),0) -> 0 | M48: =IF(NOT(Solution_type="a"),Get_1laysol_inf(Conc_def_arr Pin,thick_cl,$G48,x,R_cl,D_cl_arr Pin,Decay_cl,vel_cl_arr Pin,nsum),0) -> 0 | N48: =IF(NOT(Solution_type="a"),(n)*GetJ_1laysol_inf(Conc_def_arr Pin/1000,thick_cl,$G48,x,R_cl,D_cl_arr Pin,Decay_cl,vel_cl_arr Pin,nsum),0) -> 0 | P48: =IF(NOT(Solution_type="a"),n*GetJ_1laysol_L(Conc_def_arr Hole/1000,thick_cl,$G48,x,R_cl,D_cl_arr Hole,Decay_cl,vel_cl_arr Hole,nsum),0) -> 0 | Q48: =IF(NOT(Solution_type="a"),Get_1laysol_inf(Conc_def_arr Hole,thick_cl,$G48,x,R_cl,D_cl_arr Hole,Decay_cl,vel_cl_arr Hole,nsum),0) -> 0 | R48: =IF(NOT(Solution_type="a"),(n)*GetJ_1laysol_inf(Conc_def_arr Hole/1000,thick_cl,$G48,x,R_cl,D_cl_arr Hole,Decay_cl,vel_cl_arr Hole,nsum),0) -> 0 | T48: =IF(NOT(Solution_type="a"),n*GetJ_1laysol_L(Conc_def_arr Tear/1000,thick_cl,$G48,x,R_cl,D_cl_arr Tear,Decay_cl,vel_cl_arr Tear,nsum),0) -> 0 | U48: =IF(NOT(Solution_type="a"),Get_1laysol_inf(Conc_def_arr Tear,thick_cl,$G48,x,R_cl,D_cl_arr Tear,Decay_cl,vel_cl_arr Tear,nsum),0) -> 0 | V48: =IF(NOT(Solution_type="a"),(n)*GetJ_1laysol_inf(Conc_def_arr Tear/1000,thick_cl,$G48,x,R_cl,D_cl_arr Tear,Decay_cl,vel_cl_arr Tear,nsum),0) -> 0
A49: =IF(OR(CM=1,AND(CM>1,GM_opt="No")),IF(Cont_Class="List I",List_I_C_Darcy,List_II_J_Darcy*Area_Single),IF(Area_Single=0,0,IF(Defect_Choice=1,List_I_C_Pin,IF(Defect_Choice=2,List_I_C_Hole,IF(Defect_Choice=3,List_I_C_Tear,(List_II_J_Pin*Area_CZ_arr Pin+List_II_J_Hole*Area_CZ_arr Hole+List_II_J_Tear*Area_CZ_arr Tear))))))*IF(Cont_Class="List II",1000/aq_Q,1) ->  | B49: =IF(Cont_Class="List II",IF(OR(CM=1,AND(CM>1,GM_opt="No")),List_II_J_Darcy*Area_Single*s_per_day,(List_II_J_Pin*Area_CZ_arr Pin+List_II_J_Hole*Area_CZ_arr Hole+List_II_J_Tear*Area_CZ_arr Tear)*s_per_day),IF(OR(CM=1,AND(CM>1,GM_opt="No")),List_I_J_Darcy_In*Area_Single*s_per_day,(List_I_J_Pin_In*Area_CZ_arr Pin+List_I_J_Hole_In*Area_CZ_arr Hole+List_I_J_Tear_In*Area_CZ_arr Tear)*s_per_day)) ->  | F49: 3981.071706 | G49: 1.255470773e+11 | L49: =IF(NOT(Solution_type="a"),n*GetJ_1laysol_L(Conc_def_arr Pin/1000,thick_cl,$G49,x,R_cl,D_cl_arr Pin,Decay_cl,vel_cl_arr Pin,nsum),0) -> 0 | M49: =IF(NOT(Solution_type="a"),Get_1laysol_inf(Conc_def_arr Pin,thick_cl,$G49,x,R_cl,D_cl_arr Pin,Decay_cl,vel_cl_arr Pin,nsum),0) -> 0 | N49: =IF(NOT(Solution_type="a"),(n)*GetJ_1laysol_inf(Conc_def_arr Pin/1000,thick_cl,$G49,x,R_cl,D_cl_arr Pin,Decay_cl,vel_cl_arr Pin,nsum),0) -> 0 | P49: =IF(NOT(Solution_type="a"),n*GetJ_1laysol_L(Conc_def_arr Hole/1000,thick_cl,$G49,x,R_cl,D_cl_arr Hole,Decay_cl,vel_cl_arr Hole,nsum),0) -> 0 | Q49: =IF(NOT(Solution_type="a"),Get_1laysol_inf(Conc_def_arr Hole,thick_cl,$G49,x,R_cl,D_cl_arr Hole,Decay_cl,vel_cl_arr Hole,nsum),0) -> 0 | R49: =IF(NOT(Solution_type="a"),(n)*GetJ_1laysol_inf(Conc_def_arr Hole/1000,thick_cl,$G49,x,R_cl,D_cl_arr Hole,Decay_cl,vel_cl_arr Hole,nsum),0) -> 0 | T49: =IF(NOT(Solution_type="a"),n*GetJ_1laysol_L(Conc_def_arr Tear/1000,thick_cl,$G49,x,R_cl,D_cl_arr Tear,Decay_cl,vel_cl_arr Tear,nsum),0) -> 0 | U49: =IF(NOT(Solution_type="a"),Get_1laysol_inf(Conc_def_arr Tear,thick_cl,$G49,x,R_cl,D_cl_arr Tear,Decay_cl,vel_cl_arr Tear,nsum),0) -> 0 | V49: =IF(NOT(Solution_type="a"),(n)*GetJ_1laysol_inf(Conc_def_arr Tear/1000,thick_cl,$G49,x,R_cl,D_cl_arr Tear,Decay_cl,vel_cl_arr Tear,nsum),0) -> 0
A50: =IF(OR(CM=1,AND(CM>1,GM_opt="No")),IF(Cont_Class="List I",List_I_C_Darcy,List_II_J_Darcy*Area_Single),IF(Area_Single=0,0,IF(Defect_Choice=1,List_I_C_Pin,IF(Defect_Choice=2,List_I_C_Hole,IF(Defect_Choice=3,List_I_C_Tear,(List_II_J_Pin*Area_CZ_arr Pin+List_II_J_Hole*Area_CZ_arr Hole+List_II_J_Tear*Area_CZ_arr Tear))))))*IF(Cont_Class="List II",1000/aq_Q,1) ->  | B50: =IF(Cont_Class="List II",IF(OR(CM=1,AND(CM>1,GM_opt="No")),List_II_J_Darcy*Area_Single*s_per_day,(List_II_J_Pin*Area_CZ_arr Pin+List_II_J_Hole*Area_CZ_arr Hole+List_II_J_Tear*Area_CZ_arr Tear)*s_per_day),IF(OR(CM=1,AND(CM>1,GM_opt="No")),List_I_J_Darcy_In*Area_Single*s_per_day,(List_I_J_Pin_In*Area_CZ_arr Pin+List_I_J_Hole_In*Area_CZ_arr Hole+List_I_J_Tear_In*Area_CZ_arr Tear)*s_per_day)) ->  | F50: 5011.872336 | G50: 1.58054406e+11 | L50: =IF(NOT(Solution_type="a"),n*GetJ_1laysol_L(Conc_def_arr Pin/1000,thick_cl,$G50,x,R_cl,D_cl_arr Pin,Decay_cl,vel_cl_arr Pin,nsum),0) -> 0 | M50: =IF(NOT(Solution_type="a"),Get_1laysol_inf(Conc_def_arr Pin,thick_cl,$G50,x,R_cl,D_cl_arr Pin,Decay_cl,vel_cl_arr Pin,nsum),0) -> 0 | N50: =IF(NOT(Solution_type="a"),(n)*GetJ_1laysol_inf(Conc_def_arr Pin/1000,thick_cl,$G50,x,R_cl,D_cl_arr Pin,Decay_cl,vel_cl_arr Pin,nsum),0) -> 0 | P50: =IF(NOT(Solution_type="a"),n*GetJ_1laysol_L(Conc_def_arr Hole/1000,thick_cl,$G50,x,R_cl,D_cl_arr Hole,Decay_cl,vel_cl_arr Hole,nsum),0) -> 0 | Q50: =IF(NOT(Solution_type="a"),Get_1laysol_inf(Conc_def_arr Hole,thick_cl,$G50,x,R_cl,D_cl_arr Hole,Decay_cl,vel_cl_arr Hole,nsum),0) -> 0 | R50: =IF(NOT(Solution_type="a"),(n)*GetJ_1laysol_inf(Conc_def_arr Hole/1000,thick_cl,$G50,x,R_cl,D_cl_arr Hole,Decay_cl,vel_cl_arr Hole,nsum),0) -> 0 | T50: =IF(NOT(Solution_type="a"),n*GetJ_1laysol_L(Conc_def_arr Tear/1000,thick_cl,$G50,x,R_cl,D_cl_arr Tear,Decay_cl,vel_cl_arr Tear,nsum),0) -> 0 | U50: =IF(NOT(Solution_type="a"),Get_1laysol_inf(Conc_def_arr Tear,thick_cl,$G50,x,R_cl,D_cl_arr Tear,Decay_cl,vel_cl_arr Tear,nsum),0) -> 0 | V50: =IF(NOT(Solution_type="a"),(n)*GetJ_1laysol_inf(Conc_def_arr Tear/1000,thick_cl,$G50,x,R_cl,D_cl_arr Tear,Decay_cl,vel_cl_arr Tear,nsum),0) -> 0
A51: =IF(OR(CM=1,AND(CM>1,GM_opt="No")),IF(Cont_Class="List I",List_I_C_Darcy,List_II_J_Darcy*Area_Single),IF(Area_Single=0,0,IF(Defect_Choice=1,List_I_C_Pin,IF(Defect_Choice=2,List_I_C_Hole,IF(Defect_Choice=3,List_I_C_Tear,(List_II_J_Pin*Area_CZ_arr Pin+List_II_J_Hole*Area_CZ_arr Hole+List_II_J_Tear*Area_CZ_arr Tear))))))*IF(Cont_Class="List II",1000/aq_Q,1) ->  | B51: =IF(Cont_Class="List II",IF(OR(CM=1,AND(CM>1,GM_opt="No")),List_II_J_Darcy*Area_Single*s_per_day,(List_II_J_Pin*Area_CZ_arr Pin+List_II_J_Hole*Area_CZ_arr Hole+List_II_J_Tear*Area_CZ_arr Tear)*s_per_day),IF(OR(CM=1,AND(CM>1,GM_opt="No")),List_I_J_Darcy_In*Area_Single*s_per_day,(List_I_J_Pin_In*Area_CZ_arr Pin+List_I_J_Hole_In*Area_CZ_arr Hole+List_I_J_Tear_In*Area_CZ_arr Tear)*s_per_day)) ->  | F51: 6309.573445 | G51: 1.989787082e+11 | L51: =IF(NOT(Solution_type="a"),n*GetJ_1laysol_L(Conc_def_arr Pin/1000,thick_cl,$G51,x,R_cl,D_cl_arr Pin,Decay_cl,vel_cl_arr Pin,nsum),0) -> 0 | M51: =IF(NOT(Solution_type="a"),Get_1laysol_inf(Conc_def_arr Pin,thick_cl,$G51,x,R_cl,D_cl_arr Pin,Decay_cl,vel_cl_arr Pin,nsum),0) -> 0 | N51: =IF(NOT(Solution_type="a"),(n)*GetJ_1laysol_inf(Conc_def_arr Pin/1000,thick_cl,$G51,x,R_cl,D_cl_arr Pin,Decay_cl,vel_cl_arr Pin,nsum),0) -> 0 | P51: =IF(NOT(Solution_type="a"),n*GetJ_1laysol_L(Conc_def_arr Hole/1000,thick_cl,$G51,x,R_cl,D_cl_arr Hole,Decay_cl,vel_cl_arr Hole,nsum),0) -> 0 | Q51: =IF(NOT(Solution_type="a"),Get_1laysol_inf(Conc_def_arr Hole,thick_cl,$G51,x,R_cl,D_cl_arr Hole,Decay_cl,vel_cl_arr Hole,nsum),0) -> 0 | R51: =IF(NOT(Solution_type="a"),(n)*GetJ_1laysol_inf(Conc_def_arr Hole/1000,thick_cl,$G51,x,R_cl,D_cl_arr Hole,Decay_cl,vel_cl_arr Hole,nsum),0) -> 0 | T51: =IF(NOT(Solution_type="a"),n*GetJ_1laysol_L(Conc_def_arr Tear/1000,thick_cl,$G51,x,R_cl,D_cl_arr Tear,Decay_cl,vel_cl_arr Tear,nsum),0) -> 0 | U51: =IF(NOT(Solution_type="a"),Get_1laysol_inf(Conc_def_arr Tear,thick_cl,$G51,x,R_cl,D_cl_arr Tear,Decay_cl,vel_cl_arr Tear,nsum),0) -> 0 | V51: =IF(NOT(Solution_type="a"),(n)*GetJ_1laysol_inf(Conc_def_arr Tear/1000,thick_cl,$G51,x,R_cl,D_cl_arr Tear,Decay_cl,vel_cl_arr Tear,nsum),0) -> 0
A52: =IF(OR(CM=1,AND(CM>1,GM_opt="No")),IF(Cont_Class="List I",List_I_C_Darcy,List_II_J_Darcy*Area_Single),IF(Area_Single=0,0,IF(Defect_Choice=1,List_I_C_Pin,IF(Defect_Choice=2,List_I_C_Hole,IF(Defect_Choice=3,List_I_C_Tear,(List_II_J_Pin*Area_CZ_arr Pin+List_II_J_Hole*Area_CZ_arr Hole+List_II_J_Tear*Area_CZ_arr Tear))))))*IF(Cont_Class="List II",1000/aq_Q,1) ->  | B52: =IF(Cont_Class="List II",IF(OR(CM=1,AND(CM>1,GM_opt="No")),List_II_J_Darcy*Area_Single*s_per_day,(List_II_J_Pin*Area_CZ_arr Pin+List_II_J_Hole*Area_CZ_arr Hole+List_II_J_Tear*Area_CZ_arr Tear)*s_per_day),IF(OR(CM=1,AND(CM>1,GM_opt="No")),List_I_J_Darcy_In*Area_Single*s_per_day,(List_I_J_Pin_In*Area_CZ_arr Pin+List_I_J_Hole_In*Area_CZ_arr Hole+List_I_J_Tear_In*Area_CZ_arr Tear)*s_per_day)) ->  | F52: 7943.282347 | G52: 2.504993521e+11 | L52: =IF(NOT(Solution_type="a"),n*GetJ_1laysol_L(Conc_def_arr Pin/1000,thick_cl,$G52,x,R_cl,D_cl_arr Pin,Decay_cl,vel_cl_arr Pin,nsum),0) -> 0 | M52: =IF(NOT(Solution_type="a"),Get_1laysol_inf(Conc_def_arr Pin,thick_cl,$G52,x,R_cl,D_cl_arr Pin,Decay_cl,vel_cl_arr Pin,nsum),0) -> 0 | N52: =IF(NOT(Solution_type="a"),(n)*GetJ_1laysol_inf(Conc_def_arr Pin/1000,thick_cl,$G52,x,R_cl,D_cl_arr Pin,Decay_cl,vel_cl_arr Pin,nsum),0) -> 0 | P52: =IF(NOT(Solution_type="a"),n*GetJ_1laysol_L(Conc_def_arr Hole/1000,thick_cl,$G52,x,R_cl,D_cl_arr Hole,Decay_cl,vel_cl_arr Hole,nsum),0) -> 0 | Q52: =IF(NOT(Solution_type="a"),Get_1laysol_inf(Conc_def_arr Hole,thick_cl,$G52,x,R_cl,D_cl_arr Hole,Decay_cl,vel_cl_arr Hole,nsum),0) -> 0 | R52: =IF(NOT(Solution_type="a"),(n)*GetJ_1laysol_inf(Conc_def_arr Hole/1000,thick_cl,$G52,x,R_cl,D_cl_arr Hole,Decay_cl,vel_cl_arr Hole,nsum),0) -> 0 | T52: =IF(NOT(Solution_type="a"),n*GetJ_1laysol_L(Conc_def_arr Tear/1000,thick_cl,$G52,x,R_cl,D_cl_arr Tear,Decay_cl,vel_cl_arr Tear,nsum),0) -> 0 | U52: =IF(NOT(Solution_type="a"),Get_1laysol_inf(Conc_def_arr Tear,thick_cl,$G52,x,R_cl,D_cl_arr Tear,Decay_cl,vel_cl_arr Tear,nsum),0) -> 0 | V52: =IF(NOT(Solution_type="a"),(n)*GetJ_1laysol_inf(Conc_def_arr Tear/1000,thick_cl,$G52,x,R_cl,D_cl_arr Tear,Decay_cl,vel_cl_arr Tear,nsum),0) -> 0
A53: =IF(OR(CM=1,AND(CM>1,GM_opt="No")),IF(Cont_Class="List I",List_I_C_Darcy,List_II_J_Darcy*Area_Single),IF(Area_Single=0,0,IF(Defect_Choice=1,List_I_C_Pin,IF(Defect_Choice=2,List_I_C_Hole,IF(Defect_Choice=3,List_I_C_Tear,(List_II_J_Pin*Area_CZ_arr Pin+List_II_J_Hole*Area_CZ_arr Hole+List_II_J_Tear*Area_CZ_arr Tear))))))*IF(Cont_Class="List II",1000/aq_Q,1) ->  | B53: =IF(Cont_Class="List II",IF(OR(CM=1,AND(CM>1,GM_opt="No")),List_II_J_Darcy*Area_Single*s_per_day,(List_II_J_Pin*Area_CZ_arr Pin+List_II_J_Hole*Area_CZ_arr Hole+List_II_J_Tear*Area_CZ_arr Tear)*s_per_day),IF(OR(CM=1,AND(CM>1,GM_opt="No")),List_I_J_Darcy_In*Area_Single*s_per_day,(List_I_J_Pin_In*Area_CZ_arr Pin+List_I_J_Hole_In*Area_CZ_arr Hole+List_I_J_Tear_In*Area_CZ_arr Tear)*s_per_day)) ->  | F53: 10000 | G53: 3.1536e+11 | L53: =IF(NOT(Solution_type="a"),n*GetJ_1laysol_L(Conc_def_arr Pin/1000,thick_cl,$G53,x,R_cl,D_cl_arr Pin,Decay_cl,vel_cl_arr Pin,nsum),0) -> 0 | M53: =IF(NOT(Solution_type="a"),Get_1laysol_inf(Conc_def_arr Pin,thick_cl,$G53,x,R_cl,D_cl_arr Pin,Decay_cl,vel_cl_arr Pin,nsum),0) -> 0 | N53: =IF(NOT(Solution_type="a"),(n)*GetJ_1laysol_inf(Conc_def_arr Pin/1000,thick_cl,$G53,x,R_cl,D_cl_arr Pin,Decay_cl,vel_cl_arr Pin,nsum),0) -> 0 | P53: =IF(NOT(Solution_type="a"),n*GetJ_1laysol_L(Conc_def_arr Hole/1000,thick_cl,$G53,x,R_cl,D_cl_arr Hole,Decay_cl,vel_cl_arr Hole,nsum),0) -> 0 | Q53: =IF(NOT(Solution_type="a"),Get_1laysol_inf(Conc_def_arr Hole,thick_cl,$G53,x,R_cl,D_cl_arr Hole,Decay_cl,vel_cl_arr Hole,nsum),0) -> 0 | R53: =IF(NOT(Solution_type="a"),(n)*GetJ_1laysol_inf(Conc_def_arr Hole/1000,thick_cl,$G53,x,R_cl,D_cl_arr Hole,Decay_cl,vel_cl_arr Hole,nsum),0) -> 0 | T53: =IF(NOT(Solution_type="a"),n*GetJ_1laysol_L(Conc_def_arr Tear/1000,thick_cl,$G53,x,R_cl,D_cl_arr Tear,Decay_cl,vel_cl_arr Tear,nsum),0) -> 0 | U53: =IF(NOT(Solution_type="a"),Get_1laysol_inf(Conc_def_arr Tear,thick_cl,$G53,x,R_cl,D_cl_arr Tear,Decay_cl,vel_cl_arr Tear,nsum),0) -> 0 | V53: =IF(NOT(Solution_type="a"),(n)*GetJ_1laysol_inf(Conc_def_arr Tear/1000,thick_cl,$G53,x,R_cl,D_cl_arr Tear,Decay_cl,vel_cl_arr Tear,nsum),0) -> 0
A54: =IF(OR(CM=1,AND(CM>1,GM_opt="No")),IF(Cont_Class="List I",List_I_C_Darcy,List_II_J_Darcy*Area_Single),IF(Area_Single=0,0,IF(Defect_Choice=1,List_I_C_Pin,IF(Defect_Choice=2,List_I_C_Hole,IF(Defect_Choice=3,List_I_C_Tear,(List_II_J_Pin*Area_CZ_arr Pin+List_II_J_Hole*Area_CZ_arr Hole+List_II_J_Tear*Area_CZ_arr Tear))))))*IF(Cont_Class="List II",1000/aq_Q,1) ->  | B54: =IF(Cont_Class="List II",IF(OR(CM=1,AND(CM>1,GM_opt="No")),List_II_J_Darcy*Area_Single*s_per_day,(List_II_J_Pin*Area_CZ_arr Pin+List_II_J_Hole*Area_CZ_arr Hole+List_II_J_Tear*Area_CZ_arr Tear)*s_per_day),IF(OR(CM=1,AND(CM>1,GM_opt="No")),List_I_J_Darcy_In*Area_Single*s_per_day,(List_I_J_Pin_In*Area_CZ_arr Pin+List_I_J_Hole_In*Area_CZ_arr Hole+List_I_J_Tear_In*Area_CZ_arr Tear)*s_per_day)) ->  | F54: 12589.25412 | G54: 3.970147179e+11 | L54: =IF(NOT(Solution_type="a"),n*GetJ_1laysol_L(Conc_def_arr Pin/1000,thick_cl,$G54,x,R_cl,D_cl_arr Pin,Decay_cl,vel_cl_arr Pin,nsum),0) -> 0 | M54: =IF(NOT(Solution_type="a"),Get_1laysol_inf(Conc_def_arr Pin,thick_cl,$G54,x,R_cl,D_cl_arr Pin,Decay_cl,vel_cl_arr Pin,nsum),0) -> 0 | N54: =IF(NOT(Solution_type="a"),(n)*GetJ_1laysol_inf(Conc_def_arr Pin/1000,thick_cl,$G54,x,R_cl,D_cl_arr Pin,Decay_cl,vel_cl_arr Pin,nsum),0) -> 0 | P54: =IF(NOT(Solution_type="a"),n*GetJ_1laysol_L(Conc_def_arr Hole/1000,thick_cl,$G54,x,R_cl,D_cl_arr Hole,Decay_cl,vel_cl_arr Hole,nsum),0) -> 0 | Q54: =IF(NOT(Solution_type="a"),Get_1laysol_inf(Conc_def_arr Hole,thick_cl,$G54,x,R_cl,D_cl_arr Hole,Decay_cl,vel_cl_arr Hole,nsum),0) -> 0 | R54: =IF(NOT(Solution_type="a"),(n)*GetJ_1laysol_inf(Conc_def_arr Hole/1000,thick_cl,$G54,x,R_cl,D_cl_arr Hole,Decay_cl,vel_cl_arr Hole,nsum),0) -> 0 | T54: =IF(NOT(Solution_type="a"),n*GetJ_1laysol_L(Conc_def_arr Tear/1000,thick_cl,$G54,x,R_cl,D_cl_arr Tear,Decay_cl,vel_cl_arr Tear,nsum),0) -> 0 | U54: =IF(NOT(Solution_type="a"),Get_1laysol_inf(Conc_def_arr Tear,thick_cl,$G54,x,R_cl,D_cl_arr Tear,Decay_cl,vel_cl_arr Tear,nsum),0) -> 0 | V54: =IF(NOT(Solution_type="a"),(n)*GetJ_1laysol_inf(Conc_def_arr Tear/1000,thick_cl,$G54,x,R_cl,D_cl_arr Tear,Decay_cl,vel_cl_arr Tear,nsum),0) -> 0
A55: =IF(OR(CM=1,AND(CM>1,GM_opt="No")),IF(Cont_Class="List I",List_I_C_Darcy,List_II_J_Darcy*Area_Single),IF(Area_Single=0,0,IF(Defect_Choice=1,List_I_C_Pin,IF(Defect_Choice=2,List_I_C_Hole,IF(Defect_Choice=3,List_I_C_Tear,(List_II_J_Pin*Area_CZ_arr Pin+List_II_J_Hole*Area_CZ_arr Hole+List_II_J_Tear*Area_CZ_arr Tear))))))*IF(Cont_Class="List II",1000/aq_Q,1) ->  | B55: =IF(Cont_Class="List II",IF(OR(CM=1,AND(CM>1,GM_opt="No")),List_II_J_Darcy*Area_Single*s_per_day,(List_II_J_Pin*Area_CZ_arr Pin+List_II_J_Hole*Area_CZ_arr Hole+List_II_J_Tear*Area_CZ_arr Tear)*s_per_day),IF(OR(CM=1,AND(CM>1,GM_opt="No")),List_I_J_Darcy_In*Area_Single*s_per_day,(List_I_J_Pin_In*Area_CZ_arr Pin+List_I_J_Hole_In*Area_CZ_arr Hole+List_I_J_Tear_In*Area_CZ_arr Tear)*s_per_day)) ->  | F55: 15848.93192 | G55: 4.998119172e+11 | L55: =IF(NOT(Solution_type="a"),n*GetJ_1laysol_L(Conc_def_arr Pin/1000,thick_cl,$G55,x,R_cl,D_cl_arr Pin,Decay_cl,vel_cl_arr Pin,nsum),0) -> 0 | M55: =IF(NOT(Solution_type="a"),Get_1laysol_inf(Conc_def_arr Pin,thick_cl,$G55,x,R_cl,D_cl_arr Pin,Decay_cl,vel_cl_arr Pin,nsum),0) -> 0 | N55: =IF(NOT(Solution_type="a"),(n)*GetJ_1laysol_inf(Conc_def_arr Pin/1000,thick_cl,$G55,x,R_cl,D_cl_arr Pin,Decay_cl,vel_cl_arr Pin,nsum),0) -> 0 | P55: =IF(NOT(Solution_type="a"),n*GetJ_1laysol_L(Conc_def_arr Hole/1000,thick_cl,$G55,x,R_cl,D_cl_arr Hole,Decay_cl,vel_cl_arr Hole,nsum),0) -> 0 | Q55: =IF(NOT(Solution_type="a"),Get_1laysol_inf(Conc_def_arr Hole,thick_cl,$G55,x,R_cl,D_cl_arr Hole,Decay_cl,vel_cl_arr Hole,nsum),0) -> 0 | R55: =IF(NOT(Solution_type="a"),(n)*GetJ_1laysol_inf(Conc_def_arr Hole/1000,thick_cl,$G55,x,R_cl,D_cl_arr Hole,Decay_cl,vel_cl_arr Hole,nsum),0) -> 0 | T55: =IF(NOT(Solution_type="a"),n*GetJ_1laysol_L(Conc_def_arr Tear/1000,thick_cl,$G55,x,R_cl,D_cl_arr Tear,Decay_cl,vel_cl_arr Tear,nsum),0) -> 0 | U55: =IF(NOT(Solution_type="a"),Get_1laysol_inf(Conc_def_arr Tear,thick_cl,$G55,x,R_cl,D_cl_arr Tear,Decay_cl,vel_cl_arr Tear,nsum),0) -> 0 | V55: =IF(NOT(Solution_type="a"),(n)*GetJ_1laysol_inf(Conc_def_arr Tear/1000,thick_cl,$G55,x,R_cl,D_cl_arr Tear,Decay_cl,vel_cl_arr Tear,nsum),0) -> 0
A56: =IF(OR(CM=1,AND(CM>1,GM_opt="No")),IF(Cont_Class="List I",List_I_C_Darcy,List_II_J_Darcy*Area_Single),IF(Area_Single=0,0,IF(Defect_Choice=1,List_I_C_Pin,IF(Defect_Choice=2,List_I_C_Hole,IF(Defect_Choice=3,List_I_C_Tear,(List_II_J_Pin*Area_CZ_arr Pin+List_II_J_Hole*Area_CZ_arr Hole+List_II_J_Tear*Area_CZ_arr Tear))))))*IF(Cont_Class="List II",1000/aq_Q,1) ->  | B56: =IF(Cont_Class="List II",IF(OR(CM=1,AND(CM>1,GM_opt="No")),List_II_J_Darcy*Area_Single*s_per_day,(List_II_J_Pin*Area_CZ_arr Pin+List_II_J_Hole*Area_CZ_arr Hole+List_II_J_Tear*Area_CZ_arr Tear)*s_per_day),IF(OR(CM=1,AND(CM>1,GM_opt="No")),List_I_J_Darcy_In*Area_Single*s_per_day,(List_I_J_Pin_In*Area_CZ_arr Pin+List_I_J_Hole_In*Area_CZ_arr Hole+List_I_J_Tear_In*Area_CZ_arr Tear)*s_per_day)) ->  | F56: =F55*tscale -> 19952.62315 | G56: 6.292259236e+11 | L56: =IF(NOT(Solution_type="a"),n*GetJ_1laysol_L(Conc_def_arr Pin/1000,thick_cl,$G56,x,R_cl,D_cl_arr Pin,Decay_cl,vel_cl_arr Pin,nsum),0) -> 0 | M56: =IF(NOT(Solution_type="a"),Get_1laysol_inf(Conc_def_arr Pin,thick_cl,$G56,x,R_cl,D_cl_arr Pin,Decay_cl,vel_cl_arr Pin,nsum),0) -> 0 | N56: =IF(NOT(Solution_type="a"),(n)*GetJ_1laysol_inf(Conc_def_arr Pin/1000,thick_cl,$G56,x,R_cl,D_cl_arr Pin,Decay_cl,vel_cl_arr Pin,nsum),0) -> 0 | P56: =IF(NOT(Solution_type="a"),n*GetJ_1laysol_L(Conc_def_arr Hole/1000,thick_cl,$G56,x,R_cl,D_cl_arr Hole,Decay_cl,vel_cl_arr Hole,nsum),0) -> 0 | Q56: =IF(NOT(Solution_type="a"),Get_1laysol_inf(Conc_def_arr Hole,thick_cl,$G56,x,R_cl,D_cl_arr Hole,Decay_cl,vel_cl_arr Hole,nsum),0) -> 0 | R56: =IF(NOT(Solution_type="a"),(n)*GetJ_1laysol_inf(Conc_def_arr Hole/1000,thick_cl,$G56,x,R_cl,D_cl_arr Hole,Decay_cl,vel_cl_arr Hole,nsum),0) -> 0 | T56: =IF(NOT(Solution_type="a"),n*GetJ_1laysol_L(Conc_def_arr Tear/1000,thick_cl,$G56,x,R_cl,D_cl_arr Tear,Decay_cl,vel_cl_arr Tear,nsum),0) -> 0 | U56: =IF(NOT(Solution_type="a"),Get_1laysol_inf(Conc_def_arr Tear,thick_cl,$G56,x,R_cl,D_cl_arr Tear,Decay_cl,vel_cl_arr Tear,nsum),0) -> 0 | V56: =IF(NOT(Solution_type="a"),(n)*GetJ_1laysol_inf(Conc_def_arr Tear/1000,thick_cl,$G56,x,R_cl,D_cl_arr Tear,Decay_cl,vel_cl_arr Tear,nsum),0) -> 0
A57: =IF(OR(CM=1,AND(CM>1,GM_opt="No")),IF(Cont_Class="List I",List_I_C_Darcy,List_II_J_Darcy*Area_Single),IF(Area_Single=0,0,IF(Defect_Choice=1,List_I_C_Pin,IF(Defect_Choice=2,List_I_C_Hole,IF(Defect_Choice=3,List_I_C_Tear,(List_II_J_Pin*Area_CZ_arr Pin+List_II_J_Hole*Area_CZ_arr Hole+List_II_J_Tear*Area_CZ_arr Tear))))))*IF(Cont_Class="List II",1000/aq_Q,1) ->  | B57: =IF(Cont_Class="List II",IF(OR(CM=1,AND(CM>1,GM_opt="No")),List_II_J_Darcy*Area_Single*s_per_day,(List_II_J_Pin*Area_CZ_arr Pin+List_II_J_Hole*Area_CZ_arr Hole+List_II_J_Tear*Area_CZ_arr Tear)*s_per_day),IF(OR(CM=1,AND(CM>1,GM_opt="No")),List_I_J_Darcy_In*Area_Single*s_per_day,(List_I_J_Pin_In*Area_CZ_arr Pin+List_I_J_Hole_In*Area_CZ_arr Hole+List_I_J_Tear_In*Area_CZ_arr Tear)*s_per_day)) ->  | F57: 25118.86432 | G57: 7.92148505e+11 | L57: =IF(NOT(Solution_type="a"),n*GetJ_1laysol_L(Conc_def_arr Pin/1000,thick_cl,$G57,x,R_cl,D_cl_arr Pin,Decay_cl,vel_cl_arr Pin,nsum),0) -> 0 | M57: =IF(NOT(Solution_type="a"),Get_1laysol_inf(Conc_def_arr Pin,thick_cl,$G57,x,R_cl,D_cl_arr Pin,Decay_cl,vel_cl_arr Pin,nsum),0) -> 0 | N57: =IF(NOT(Solution_type="a"),(n)*GetJ_1laysol_inf(Conc_def_arr Pin/1000,thick_cl,$G57,x,R_cl,D_cl_arr Pin,Decay_cl,vel_cl_arr Pin,nsum),0) -> 0 | P57: =IF(NOT(Solution_type="a"),n*GetJ_1laysol_L(Conc_def_arr Hole/1000,thick_cl,$G57,x,R_cl,D_cl_arr Hole,Decay_cl,vel_cl_arr Hole,nsum),0) -> 0 | Q57: =IF(NOT(Solution_type="a"),Get_1laysol_inf(Conc_def_arr Hole,thick_cl,$G57,x,R_cl,D_cl_arr Hole,Decay_cl,vel_cl_arr Hole,nsum),0) -> 0 | R57: =IF(NOT(Solution_type="a"),(n)*GetJ_1laysol_inf(Conc_def_arr Hole/1000,thick_cl,$G57,x,R_cl,D_cl_arr Hole,Decay_cl,vel_cl_arr Hole,nsum),0) -> 0 | T57: =IF(NOT(Solution_type="a"),n*GetJ_1laysol_L(Conc_def_arr Tear/1000,thick_cl,$G57,x,R_cl,D_cl_arr Tear,Decay_cl,vel_cl_arr Tear,nsum),0) -> 0 | U57: =IF(NOT(Solution_type="a"),Get_1laysol_inf(Conc_def_arr Tear,thick_cl,$G57,x,R_cl,D_cl_arr Tear,Decay_cl,vel_cl_arr Tear,nsum),0) -> 0 | V57: =IF(NOT(Solution_type="a"),(n)*GetJ_1laysol_inf(Conc_def_arr Tear/1000,thick_cl,$G57,x,R_cl,D_cl_arr Tear,Decay_cl,vel_cl_arr Tear,nsum),0) -> 0
A58: =IF(OR(CM=1,AND(CM>1,GM_opt="No")),IF(Cont_Class="List I",List_I_C_Darcy,List_II_J_Darcy*Area_Single),IF(Area_Single=0,0,IF(Defect_Choice=1,List_I_C_Pin,IF(Defect_Choice=2,List_I_C_Hole,IF(Defect_Choice=3,List_I_C_Tear,(List_II_J_Pin*Area_CZ_arr Pin+List_II_J_Hole*Area_CZ_arr Hole+List_II_J_Tear*Area_CZ_arr Tear))))))*IF(Cont_Class="List II",1000/aq_Q,1) ->  | B58: =IF(Cont_Class="List II",IF(OR(CM=1,AND(CM>1,GM_opt="No")),List_II_J_Darcy*Area_Single*s_per_day,(List_II_J_Pin*Area_CZ_arr Pin+List_II_J_Hole*Area_CZ_arr Hole+List_II_J_Tear*Area_CZ_arr Tear)*s_per_day),IF(OR(CM=1,AND(CM>1,GM_opt="No")),List_I_J_Darcy_In*Area_Single*s_per_day,(List_I_J_Pin_In*Area_CZ_arr Pin+List_I_J_Hole_In*Area_CZ_arr Hole+List_I_J_Tear_In*Area_CZ_arr Tear)*s_per_day)) ->  | F58: 31622.7766 | G58: 9.972558829e+11 | L58: =IF(NOT(Solution_type="a"),n*GetJ_1laysol_L(Conc_def_arr Pin/1000,thick_cl,$G58,x,R_cl,D_cl_arr Pin,Decay_cl,vel_cl_arr Pin,nsum),0) -> 0 | M58: =IF(NOT(Solution_type="a"),Get_1laysol_inf(Conc_def_arr Pin,thick_cl,$G58,x,R_cl,D_cl_arr Pin,Decay_cl,vel_cl_arr Pin,nsum),0) -> 0 | N58: =IF(NOT(Solution_type="a"),(n)*GetJ_1laysol_inf(Conc_def_arr Pin/1000,thick_cl,$G58,x,R_cl,D_cl_arr Pin,Decay_cl,vel_cl_arr Pin,nsum),0) -> 0 | P58: =IF(NOT(Solution_type="a"),n*GetJ_1laysol_L(Conc_def_arr Hole/1000,thick_cl,$G58,x,R_cl,D_cl_arr Hole,Decay_cl,vel_cl_arr Hole,nsum),0) -> 0 | Q58: =IF(NOT(Solution_type="a"),Get_1laysol_inf(Conc_def_arr Hole,thick_cl,$G58,x,R_cl,D_cl_arr Hole,Decay_cl,vel_cl_arr Hole,nsum),0) -> 0 | R58: =IF(NOT(Solution_type="a"),(n)*GetJ_1laysol_inf(Conc_def_arr Hole/1000,thick_cl,$G58,x,R_cl,D_cl_arr Hole,Decay_cl,vel_cl_arr Hole,nsum),0) -> 0 | T58: =IF(NOT(Solution_type="a"),n*GetJ_1laysol_L(Conc_def_arr Tear/1000,thick_cl,$G58,x,R_cl,D_cl_arr Tear,Decay_cl,vel_cl_arr Tear,nsum),0) -> 0 | U58: =IF(NOT(Solution_type="a"),Get_1laysol_inf(Conc_def_arr Tear,thick_cl,$G58,x,R_cl,D_cl_arr Tear,Decay_cl,vel_cl_arr Tear,nsum),0) -> 0 | V58: =IF(NOT(Solution_type="a"),(n)*GetJ_1laysol_inf(Conc_def_arr Tear/1000,thick_cl,$G58,x,R_cl,D_cl_arr Tear,Decay_cl,vel_cl_arr Tear,nsum),0) -> 0
A59: =IF(OR(CM=1,AND(CM>1,GM_opt="No")),IF(Cont_Class="List I",List_I_C_Darcy,List_II_J_Darcy*Area_Single),IF(Area_Single=0,0,IF(Defect_Choice=1,List_I_C_Pin,IF(Defect_Choice=2,List_I_C_Hole,IF(Defect_Choice=3,List_I_C_Tear,(List_II_J_Pin*Area_CZ_arr Pin+List_II_J_Hole*Area_CZ_arr Hole+List_II_J_Tear*Area_CZ_arr Tear))))))*IF(Cont_Class="List II",1000/aq_Q,1) ->  | B59: =IF(Cont_Class="List II",IF(OR(CM=1,AND(CM>1,GM_opt="No")),List_II_J_Darcy*Area_Single*s_per_day,(List_II_J_Pin*Area_CZ_arr Pin+List_II_J_Hole*Area_CZ_arr Hole+List_II_J_Tear*Area_CZ_arr Tear)*s_per_day),IF(OR(CM=1,AND(CM>1,GM_opt="No")),List_I_J_Darcy_In*Area_Single*s_per_day,(List_I_J_Pin_In*Area_CZ_arr Pin+List_I_J_Hole_In*Area_CZ_arr Hole+List_I_J_Tear_In*Area_CZ_arr Tear)*s_per_day)) ->  | F59: 39810.71706 | G59: 1.255470773e+12 | L59: =IF(NOT(Solution_type="a"),n*GetJ_1laysol_L(Conc_def_arr Pin/1000,thick_cl,$G59,x,R_cl,D_cl_arr Pin,Decay_cl,vel_cl_arr Pin,nsum),0) -> 0 | M59: =IF(NOT(Solution_type="a"),Get_1laysol_inf(Conc_def_arr Pin,thick_cl,$G59,x,R_cl,D_cl_arr Pin,Decay_cl,vel_cl_arr Pin,nsum),0) -> 0 | N59: =IF(NOT(Solution_type="a"),(n)*GetJ_1laysol_inf(Conc_def_arr Pin/1000,thick_cl,$G59,x,R_cl,D_cl_arr Pin,Decay_cl,vel_cl_arr Pin,nsum),0) -> 0 | P59: =IF(NOT(Solution_type="a"),n*GetJ_1laysol_L(Conc_def_arr Hole/1000,thick_cl,$G59,x,R_cl,D_cl_arr Hole,Decay_cl,vel_cl_arr Hole,nsum),0) -> 0 | Q59: =IF(NOT(Solution_type="a"),Get_1laysol_inf(Conc_def_arr Hole,thick_cl,$G59,x,R_cl,D_cl_arr Hole,Decay_cl,vel_cl_arr Hole,nsum),0) -> 0 | R59: =IF(NOT(Solution_type="a"),(n)*GetJ_1laysol_inf(Conc_def_arr Hole/1000,thick_cl,$G59,x,R_cl,D_cl_arr Hole,Decay_cl,vel_cl_arr Hole,nsum),0) -> 0 | T59: =IF(NOT(Solution_type="a"),n*GetJ_1laysol_L(Conc_def_arr Tear/1000,thick_cl,$G59,x,R_cl,D_cl_arr Tear,Decay_cl,vel_cl_arr Tear,nsum),0) -> 0 | U59: =IF(NOT(Solution_type="a"),Get_1laysol_inf(Conc_def_arr Tear,thick_cl,$G59,x,R_cl,D_cl_arr Tear,Decay_cl,vel_cl_arr Tear,nsum),0) -> 0 | V59: =IF(NOT(Solution_type="a"),(n)*GetJ_1laysol_inf(Conc_def_arr Tear/1000,thick_cl,$G59,x,R_cl,D_cl_arr Tear,Decay_cl,vel_cl_arr Tear,nsum),0) -> 0
A60: =IF(OR(CM=1,AND(CM>1,GM_opt="No")),IF(Cont_Class="List I",List_I_C_Darcy,List_II_J_Darcy*Area_Single),IF(Area_Single=0,0,IF(Defect_Choice=1,List_I_C_Pin,IF(Defect_Choice=2,List_I_C_Hole,IF(Defect_Choice=3,List_I_C_Tear,(List_II_J_Pin*Area_CZ_arr Pin+List_II_J_Hole*Area_CZ_arr Hole+List_II_J_Tear*Area_CZ_arr Tear))))))*IF(Cont_Class="List II",1000/aq_Q,1) ->  | B60: =IF(Cont_Class="List II",IF(OR(CM=1,AND(CM>1,GM_opt="No")),List_II_J_Darcy*Area_Single*s_per_day,(List_II_J_Pin*Area_CZ_arr Pin+List_II_J_Hole*Area_CZ_arr Hole+List_II_J_Tear*Area_CZ_arr Tear)*s_per_day),IF(OR(CM=1,AND(CM>1,GM_opt="No")),List_I_J_Darcy_In*Area_Single*s_per_day,(List_I_J_Pin_In*Area_CZ_arr Pin+List_I_J_Hole_In*Area_CZ_arr Hole+List_I_J_Tear_In*Area_CZ_arr Tear)*s_per_day)) ->  | F60: 50118.72336 | G60: 1.58054406e+12 | L60: =IF(NOT(Solution_type="a"),n*GetJ_1laysol_L(Conc_def_arr Pin/1000,thick_cl,$G60,x,R_cl,D_cl_arr Pin,Decay_cl,vel_cl_arr Pin,nsum),0) -> 0 | M60: =IF(NOT(Solution_type="a"),Get_1laysol_inf(Conc_def_arr Pin,thick_cl,$G60,x,R_cl,D_cl_arr Pin,Decay_cl,vel_cl_arr Pin,nsum),0) -> 0 | N60: =IF(NOT(Solution_type="a"),(n)*GetJ_1laysol_inf(Conc_def_arr Pin/1000,thick_cl,$G60,x,R_cl,D_cl_arr Pin,Decay_cl,vel_cl_arr Pin,nsum),0) -> 0 | P60: =IF(NOT(Solution_type="a"),n*GetJ_1laysol_L(Conc_def_arr Hole/1000,thick_cl,$G60,x,R_cl,D_cl_arr Hole,Decay_cl,vel_cl_arr Hole,nsum),0) -> 0 | Q60: =IF(NOT(Solution_type="a"),Get_1laysol_inf(Conc_def_arr Hole,thick_cl,$G60,x,R_cl,D_cl_arr Hole,Decay_cl,vel_cl_arr Hole,nsum),0) -> 0 | R60: =IF(NOT(Solution_type="a"),(n)*GetJ_1laysol_inf(Conc_def_arr Hole/1000,thick_cl,$G60,x,R_cl,D_cl_arr Hole,Decay_cl,vel_cl_arr Hole,nsum),0) -> 0 | T60: =IF(NOT(Solution_type="a"),n*GetJ_1laysol_L(Conc_def_arr Tear/1000,thick_cl,$G60,x,R_cl,D_cl_arr Tear,Decay_cl,vel_cl_arr Tear,nsum),0) -> 0 | U60: =IF(NOT(Solution_type="a"),Get_1laysol_inf(Conc_def_arr Tear,thick_cl,$G60,x,R_cl,D_cl_arr Tear,Decay_cl,vel_cl_arr Tear,nsum),0) -> 0 | V60: =IF(NOT(Solution_type="a"),(n)*GetJ_1laysol_inf(Conc_def_arr Tear/1000,thick_cl,$G60,x,R_cl,D_cl_arr Tear,Decay_cl,vel_cl_arr Tear,nsum),0) -> 0
A61: =IF(OR(CM=1,AND(CM>1,GM_opt="No")),IF(Cont_Class="List I",List_I_C_Darcy,List_II_J_Darcy*Area_Single),IF(Area_Single=0,0,IF(Defect_Choice=1,List_I_C_Pin,IF(Defect_Choice=2,List_I_C_Hole,IF(Defect_Choice=3,List_I_C_Tear,(List_II_J_Pin*Area_CZ_arr Pin+List_II_J_Hole*Area_CZ_arr Hole+List_II_J_Tear*Area_CZ_arr Tear))))))*IF(Cont_Class="List II",1000/aq_Q,1) ->  | B61: =IF(Cont_Class="List II",IF(OR(CM=1,AND(CM>1,GM_opt="No")),List_II_J_Darcy*Area_Single*s_per_day,(List_II_J_Pin*Area_CZ_arr Pin+List_II_J_Hole*Area_CZ_arr Hole+List_II_J_Tear*Area_CZ_arr Tear)*s_per_day),IF(OR(CM=1,AND(CM>1,GM_opt="No")),List_I_J_Darcy_In*Area_Single*s_per_day,(List_I_J_Pin_In*Area_CZ_arr Pin+List_I_J_Hole_In*Area_CZ_arr Hole+List_I_J_Tear_In*Area_CZ_arr Tear)*s_per_day)) ->  | F61: 63095.73445 | G61: 1.989787082e+12 | L61: =IF(NOT(Solution_type="a"),n*GetJ_1laysol_L(Conc_def_arr Pin/1000,thick_cl,$G61,x,R_cl,D_cl_arr Pin,Decay_cl,vel_cl_arr Pin,nsum),0) -> 0 | M61: =IF(NOT(Solution_type="a"),Get_1laysol_inf(Conc_def_arr Pin,thick_cl,$G61,x,R_cl,D_cl_arr Pin,Decay_cl,vel_cl_arr Pin,nsum),0) -> 0 | N61: =IF(NOT(Solution_type="a"),(n)*GetJ_1laysol_inf(Conc_def_arr Pin/1000,thick_cl,$G61,x,R_cl,D_cl_arr Pin,Decay_cl,vel_cl_arr Pin,nsum),0) -> 0 | P61: =IF(NOT(Solution_type="a"),n*GetJ_1laysol_L(Conc_def_arr Hole/1000,thick_cl,$G61,x,R_cl,D_cl_arr Hole,Decay_cl,vel_cl_arr Hole,nsum),0) -> 0 | Q61: =IF(NOT(Solution_type="a"),Get_1laysol_inf(Conc_def_arr Hole,thick_cl,$G61,x,R_cl,D_cl_arr Hole,Decay_cl,vel_cl_arr Hole,nsum),0) -> 0 | R61: =IF(NOT(Solution_type="a"),(n)*GetJ_1laysol_inf(Conc_def_arr Hole/1000,thick_cl,$G61,x,R_cl,D_cl_arr Hole,Decay_cl,vel_cl_arr Hole,nsum),0) -> 0 | T61: =IF(NOT(Solution_type="a"),n*GetJ_1laysol_L(Conc_def_arr Tear/1000,thick_cl,$G61,x,R_cl,D_cl_arr Tear,Decay_cl,vel_cl_arr Tear,nsum),0) -> 0 | U61: =IF(NOT(Solution_type="a"),Get_1laysol_inf(Conc_def_arr Tear,thick_cl,$G61,x,R_cl,D_cl_arr Tear,Decay_cl,vel_cl_arr Tear,nsum),0) -> 0 | V61: =IF(NOT(Solution_type="a"),(n)*GetJ_1laysol_inf(Conc_def_arr Tear/1000,thick_cl,$G61,x,R_cl,D_cl_arr Tear,Decay_cl,vel_cl_arr Tear,nsum),0) -> 0
A62: =IF(OR(CM=1,AND(CM>1,GM_opt="No")),IF(Cont_Class="List I",List_I_C_Darcy,List_II_J_Darcy*Area_Single),IF(Area_Single=0,0,IF(Defect_Choice=1,List_I_C_Pin,IF(Defect_Choice=2,List_I_C_Hole,IF(Defect_Choice=3,List_I_C_Tear,(List_II_J_Pin*Area_CZ_arr Pin+List_II_J_Hole*Area_CZ_arr Hole+List_II_J_Tear*Area_CZ_arr Tear))))))*IF(Cont_Class="List II",1000/aq_Q,1) ->  | B62: =IF(Cont_Class="List II",IF(OR(CM=1,AND(CM>1,GM_opt="No")),List_II_J_Darcy*Area_Single*s_per_day,(List_II_J_Pin*Area_CZ_arr Pin+List_II_J_Hole*Area_CZ_arr Hole+List_II_J_Tear*Area_CZ_arr Tear)*s_per_day),IF(OR(CM=1,AND(CM>1,GM_opt="No")),List_I_J_Darcy_In*Area_Single*s_per_day,(List_I_J_Pin_In*Area_CZ_arr Pin+List_I_J_Hole_In*Area_CZ_arr Hole+List_I_J_Tear_In*Area_CZ_arr Tear)*s_per_day)) ->  | F62: 79432.82347 | G62: 2.504993521e+12 | L62: =IF(NOT(Solution_type="a"),n*GetJ_1laysol_L(Conc_def_arr Pin/1000,thick_cl,$G62,x,R_cl,D_cl_arr Pin,Decay_cl,vel_cl_arr Pin,nsum),0) -> 0 | M62: =IF(NOT(Solution_type="a"),Get_1laysol_inf(Conc_def_arr Pin,thick_cl,$G62,x,R_cl,D_cl_arr Pin,Decay_cl,vel_cl_arr Pin,nsum),0) -> 0 | N62: =IF(NOT(Solution_type="a"),(n)*GetJ_1laysol_inf(Conc_def_arr Pin/1000,thick_cl,$G62,x,R_cl,D_cl_arr Pin,Decay_cl,vel_cl_arr Pin,nsum),0) -> 0 | P62: =IF(NOT(Solution_type="a"),n*GetJ_1laysol_L(Conc_def_arr Hole/1000,thick_cl,$G62,x,R_cl,D_cl_arr Hole,Decay_cl,vel_cl_arr Hole,nsum),0) -> 0 | Q62: =IF(NOT(Solution_type="a"),Get_1laysol_inf(Conc_def_arr Hole,thick_cl,$G62,x,R_cl,D_cl_arr Hole,Decay_cl,vel_cl_arr Hole,nsum),0) -> 0 | R62: =IF(NOT(Solution_type="a"),(n)*GetJ_1laysol_inf(Conc_def_arr Hole/1000,thick_cl,$G62,x,R_cl,D_cl_arr Hole,Decay_cl,vel_cl_arr Hole,nsum),0) -> 0 | T62: =IF(NOT(Solution_type="a"),n*GetJ_1laysol_L(Conc_def_arr Tear/1000,thick_cl,$G62,x,R_cl,D_cl_arr Tear,Decay_cl,vel_cl_arr Tear,nsum),0) -> 0 | U62: =IF(NOT(Solution_type="a"),Get_1laysol_inf(Conc_def_arr Tear,thick_cl,$G62,x,R_cl,D_cl_arr Tear,Decay_cl,vel_cl_arr Tear,nsum),0) -> 0 | V62: =IF(NOT(Solution_type="a"),(n)*GetJ_1laysol_inf(Conc_def_arr Tear/1000,thick_cl,$G62,x,R_cl,D_cl_arr Tear,Decay_cl,vel_cl_arr Tear,nsum),0) -> 0
A63: =IF(OR(CM=1,AND(CM>1,GM_opt="No")),IF(Cont_Class="List I",List_I_C_Darcy,List_II_J_Darcy*Area_Single),IF(Area_Single=0,0,IF(Defect_Choice=1,List_I_C_Pin,IF(Defect_Choice=2,List_I_C_Hole,IF(Defect_Choice=3,List_I_C_Tear,(List_II_J_Pin*Area_CZ_arr Pin+List_II_J_Hole*Area_CZ_arr Hole+List_II_J_Tear*Area_CZ_arr Tear))))))*IF(Cont_Class="List II",1000/aq_Q,1) ->  | B63: =IF(Cont_Class="List II",IF(OR(CM=1,AND(CM>1,GM_opt="No")),List_II_J_Darcy*Area_Single*s_per_day,(List_II_J_Pin*Area_CZ_arr Pin+List_II_J_Hole*Area_CZ_arr Hole+List_II_J_Tear*Area_CZ_arr Tear)*s_per_day),IF(OR(CM=1,AND(CM>1,GM_opt="No")),List_I_J_Darcy_In*Area_Single*s_per_day,(List_I_J_Pin_In*Area_CZ_arr Pin+List_I_J_Hole_In*Area_CZ_arr Hole+List_I_J_Tear_In*Area_CZ_arr Tear)*s_per_day)) ->  | F63: =F62*tscale -> 100000 | G63: 3.1536e+12 | L63: =IF(NOT(Solution_type="a"),n*GetJ_1laysol_L(Conc_def_arr Pin/1000,thick_cl,$G63,x,R_cl,D_cl_arr Pin,Decay_cl,vel_cl_arr Pin,nsum),0) -> 0 | M63: =IF(NOT(Solution_type="a"),Get_1laysol_inf(Conc_def_arr Pin,thick_cl,$G63,x,R_cl,D_cl_arr Pin,Decay_cl,vel_cl_arr Pin,nsum),0) -> 0 | N63: =IF(NOT(Solution_type="a"),(n)*GetJ_1laysol_inf(Conc_def_arr Pin/1000,thick_cl,$G63,x,R_cl,D_cl_arr Pin,Decay_cl,vel_cl_arr Pin,nsum),0) -> 0 | P63: =IF(NOT(Solution_type="a"),n*GetJ_1laysol_L(Conc_def_arr Hole/1000,thick_cl,$G63,x,R_cl,D_cl_arr Hole,Decay_cl,vel_cl_arr Hole,nsum),0) -> 0 | Q63: =IF(NOT(Solution_type="a"),Get_1laysol_inf(Conc_def_arr Hole,thick_cl,$G63,x,R_cl,D_cl_arr Hole,Decay_cl,vel_cl_arr Hole,nsum),0) -> 0 | R63: =IF(NOT(Solution_type="a"),(n)*GetJ_1laysol_inf(Conc_def_arr Hole/1000,thick_cl,$G63,x,R_cl,D_cl_arr Hole,Decay_cl,vel_cl_arr Hole,nsum),0) -> 0 | T63: =IF(NOT(Solution_type="a"),n*GetJ_1laysol_L(Conc_def_arr Tear/1000,thick_cl,$G63,x,R_cl,D_cl_arr Tear,Decay_cl,vel_cl_arr Tear,nsum),0) -> 0 | U63: =IF(NOT(Solution_type="a"),Get_1laysol_inf(Conc_def_arr Tear,thick_cl,$G63,x,R_cl,D_cl_arr Tear,Decay_cl,vel_cl_arr Tear,nsum),0) -> 0 | V63: =IF(NOT(Solution_type="a"),(n)*GetJ_1laysol_inf(Conc_def_arr Tear/1000,thick_cl,$G63,x,R_cl,D_cl_arr Tear,Decay_cl,vel_cl_arr Tear,nsum),0) -> 0

Sheet Delamination (hidden)
A2: List I is the Max
A3: List II is combination of the fluxes
A5: Frac_Delam | B5: =Area_delam/Area_contact -> 1
A6: x_org1 | B6: =thick_cl -> 0.5
J9: Using Darcy Flow for Delam Area
A11: Concentration | J11: kg/(m2 s) | K11: mg/l | L11: kg/(m2 s)
A12: Delam Concentration output mg/l | B12: Contact Concentration | C12: Combined output | D12: Delam kg/day | E12: Contact kg/day | F12: Combined Kg/day | H12: Time years | I12: Time seconds | J12: flux boundary at l+L | K12: conc boundary at infininity | L12: flux boundary at infinity
A13: =IF(OR(GM_delam="No",Solution_type="a"),0,IF(Cont_Class="List I",List_I_C_Delam,List_II_J_Delam)*IF(Cont_Class="List II",Area_delam*1000/aq_Q,1)) -> 0 | B13: =IF(OR(GM_delam="No",Solution_type="a"),0,IF(Solution_type="b",TwoLay_sol,Single_Lay_Sol)) -> 0 | C13: =IF(OR(GM_delam="No",Solution_type="a"),0,IF(Cont_Class="List I",MAX(A13,B13),(Delam_Out*aq_Q/1000+Contact_Out*aq_Q/1000)*1000/aq_Q)) -> 0 | D13: =IF(OR(GM_delam="No",Solution_type="a"),0,IF(Cont_Class="List II",List_II_J_Delam,List_I_J_Delam_In))*Area_delam*s_per_day -> 0 | E13: =IF(OR(GM_delam="No",Solution_type="a"),0,IF(Solution_type="b",Two_Lay_Mass,Single_Lay_Mass)) -> 0 | F13: =D13+E13 -> 0 | H13: =tmin -> 1 | I13: =H13*365*24*60*60 -> 31536000 | J13: =IF(OR(GM_delam="No",Solution_type="a"),0,n*GetJ_1laysol_L(Conc_delam/1000,thick_cl,$I13,x,R_cl,Dcl_Delam,Decay_cl,vel_delam,nsum)) -> 0 | K13: =IF(OR(GM_delam="No",Solution_type="a"),0,Get_1laysol_inf(Conc_delam,thick_cl,$I13,x,R_cl,Dcl_Delam,Decay_cl,vel_delam,nsum)) -> 0 | L13: =IF(OR(GM_delam="No",Solution_type="a"),0,n*GetJ_1laysol_inf(Conc_delam/1000,thick_cl,$I13,x,R_cl,Dcl_Delam,Decay_cl,vel_delam,nsum)) -> 0
A14: =IF(OR(GM_delam="No",Solution_type="a"),0,IF(Cont_Class="List I",List_I_C_Delam,List_II_J_Delam)*IF(Cont_Class="List II",Area_delam*1000/aq_Q,1)) -> 0 | B14: =IF(OR(GM_delam="No",Solution_type="a"),0,IF(Solution_type="b",TwoLay_sol,Single_Lay_Sol)) -> 0 | C14: =IF(OR(GM_delam="No",Solution_type="a"),0,IF(Cont_Class="List I",MAX(A14,B14),(Delam_Out*aq_Q/1000+Contact_Out*aq_Q/1000)*1000/aq_Q)) -> 0 | D14: =IF(OR(GM_delam="No",Solution_type="a"),0,IF(Cont_Class="List II",List_II_J_Delam,List_I_J_Delam_In))*Area_delam*s_per_day -> 0 | E14: =IF(OR(GM_delam="No",Solution_type="a"),0,IF(Solution_type="b",Two_Lay_Mass,Single_Lay_Mass)) -> 0 | F14: =D14+E14 -> 0 | H14: =H13*tscale -> 1.258925412 | I14: 39701471.79 | J14: 0 | K14: 0 | L14: 0
A15: 0 | B15: 0 | C15: 0 | D15: 0 | E15: 0 | F15: 0 | H15: 1.584893192 | I15: 49981191.72 | J15: 0 | K15: 0 | L15: 0
A16: 0 | B16: 0 | C16: 0 | D16: 0 | E16: 0 | F16: 0 | H16: 1.995262315 | I16: 62922592.36 | J16: 0 | K16: 0 | L16: 0
A17: 0 | B17: 0 | C17: 0 | D17: 0 | E17: 0 | F17: 0 | H17: 2.511886432 | I17: 79214850.5 | J17: 0 | K17: 0 | L17: 0
A18: 0 | B18: 0 | C18: 0 | D18: 0 | E18: 0 | F18: 0 | H18: 3.16227766 | I18: 99725588.29 | J18: 0 | K18: 0 | L18: 0
A19: 0 | B19: 0 | C19: 0 | D19: 0 | E19: 0 | F19: 0 | H19: 3.981071706 | I19: 125547077.3 | J19: 0 | K19: 0 | L19: 0
A20: =IF(OR(GM_delam="No",Solution_type="a"),0,IF(Cont_Class="List I",List_I_C_Delam,List_II_J_Delam)*IF(Cont_Class="List II",Area_delam*1000/aq_Q,1)) -> 0 | B20: 0 | C20: =IF(OR(GM_delam="No",Solution_type="a"),0,IF(Cont_Class="List I",MAX(A20,B20),(Delam_Out*aq_Q/1000+Contact_Out*aq_Q/1000)*1000/aq_Q)) -> 0 | D20: 0 | E20: =IF(OR(GM_delam="No",Solution_type="a"),0,IF(Solution_type="b",Two_Lay_Mass,Single_Lay_Mass)) -> 0 | F20: =D20+E20 -> 0 | H20: 5.011872336 | I20: 158054406 | J20: 0 | K20: 0 | L20: 0
A21: 0 | B21: 0 | C21: 0 | D21: 0 | E21: 0 | F21: 0 | H21: 6.309573445 | I21: 198978708.2 | J21: 0 | K21: 0 | L21: 0
A22: 0 | B22: 0 | C22: 0 | D22: 0 | E22: 0 | F22: 0 | H22: 7.943282347 | I22: 250499352.1 | J22: 0 | K22: 0 | L22: 0
A23: 0 | B23: 0 | C23: 0 | D23: 0 | E23: 0 | F23: 0 | H23: 10 | I23: 315360000 | J23: 0 | K23: 0 | L23: 0
A24: 0 | B24: 0 | C24: 0 | D24: 0 | E24: 0 | F24: 0 | H24: 12.58925412 | I24: 397014717.9 | J24: 0 | K24: 0 | L24: 0
A25: 0 | B25: 0 | C25: 0 | D25: 0 | E25: 0 | F25: 0 | H25: 15.84893192 | I25: 499811917.2 | J25: 0 | K25: 0 | L25: 0
A26: 0 | B26: 0 | C26: 0 | D26: 0 | E26: 0 | F26: 0 | H26: 19.95262315 | I26: 629225923.6 | J26: 0 | K26: 0 | L26: 0
A27: =IF(OR(GM_delam="No",Solution_type="a"),0,IF(Cont_Class="List I",List_I_C_Delam,List_II_J_Delam)*IF(Cont_Class="List II",Area_delam*1000/aq_Q,1)) -> 0 | B27: 0 | C27: 0 | D27: 0 | E27: 0 | F27: 0 | H27: 25.11886432 | I27: 792148505 | J27: 0 | K27: 0 | L27: 0
A28: 0 | B28: 0 | C28: 0 | D28: 0 | E28: 0 | F28: 0 | H28: 31.6227766 | I28: 997255882.9 | J28: 0 | K28: 0 | L28: 0
A29: 0 | B29: 0 | C29: 0 | D29: 0 | E29: 0 | F29: 0 | H29: 39.81071706 | I29: 1255470773 | J29: 0 | K29: 0 | L29: 0
A30: 0 | B30: 0 | C30: 0 | D30: 0 | E30: 0 | F30: 0 | H30: 50.11872336 | I30: 1580544060 | J30: 0 | K30: 0 | L30: 0
A31: 0 | B31: 0 | C31: 0 | D31: 0 | E31: 0 | F31: 0 | H31: 63.09573445 | I31: 1989787082 | J31: 0 | K31: 0 | L31: 0
A32: 0 | B32: 0 | C32: 0 | D32: 0 | E32: 0 | F32: 0 | H32: 79.43282347 | I32: 2504993521 | J32: 0 | K32: 0 | L32: 0
A33: 0 | B33: 0 | C33: 0 | D33: 0 | E33: 0 | F33: 0 | H33: 100 | I33: 3153600000 | J33: 0 | K33: 0 | L33: 0
A34: 0 | B34: 0 | C34: 0 | D34: 0 | E34: 0 | F34: 0 | H34: 125.8925412 | I34: 3970147179 | J34: 0 | K34: 0 | L34: 0
A35: 0 | B35: 0 | C35: 0 | D35: 0 | E35: 0 | F35: 0 | H35: 158.4893192 | I35: 4998119172 | J35: 0 | K35: 0 | L35: 0
A36: 0 | B36: 0 | C36: 0 | D36: 0 | E36: 0 | F36: 0 | H36: 199.5262315 | I36: 6292259236 | J36: 0 | K36: 0 | L36: 0
A37: 0 | B37: 0 | C37: 0 | D37: 0 | E37: 0 | F37: 0 | H37: 251.1886432 | I37: 7921485050 | J37: 0 | K37: 0 | L37: 0
A38: 0 | B38: 0 | C38: 0 | D38: 0 | E38: 0 | F38: 0 | H38: 316.227766 | I38: 9972558829 | J38: 0 | K38: 0 | L38: 0
A39: 0 | B39: 0 | C39: 0 | D39: 0 | E39: 0 | F39: 0 | H39: 398.1071706 | I39: 1.255470773e+10 | J39: 0 | K39: 0 | L39: 0
A40: 0 | B40: 0 | C40: 0 | D40: 0 | E40: 0 | F40: 0 | H40: 501.1872336 | I40: 1.58054406e+10 | J40: 0 | K40: 0 | L40: 0
A41: 0 | B41: 0 | C41: 0 | D41: 0 | E41: 0 | F41: 0 | H41: 630.9573445 | I41: 1.989787082e+10 | J41: 0 | K41: 0 | L41: 0
A42: 0 | B42: 0 | C42: 0 | D42: 0 | E42: 0 | F42: 0 | H42: 794.3282347 | I42: 2.504993521e+10 | J42: 0 | K42: 0 | L42: 0
A43: 0 | B43: 0 | C43: 0 | D43: 0 | E43: 0 | F43: 0 | H43: 1000 | I43: 3.1536e+10 | J43: 0 | K43: 0 | L43: 0
A44: 0 | B44: 0 | C44: 0 | D44: 0 | E44: 0 | F44: 0 | H44: 1258.925412 | I44: 3.970147179e+10 | J44: 0 | K44: 0 | L44: 0
A45: 0 | B45: 0 | C45: 0 | D45: 0 | E45: 0 | F45: 0 | H45: 1584.893192 | I45: 4.998119172e+10 | J45: =IF(OR(GM_delam="No",Solution_type="a"),0,n*GetJ_1laysol_L(Conc_delam/1000,thick_cl,$I45,x,R_cl,Dcl_Delam,Decay_cl,vel_delam,nsum)) -> 0 | K45: =IF(OR(GM_delam="No",Solution_type="a"),0,Get_1laysol_inf(Conc_delam,thick_cl,$I45,x,R_cl,Dcl_Delam,Decay_cl,vel_delam,nsum)) -> 0 | L45: =IF(OR(GM_delam="No",Solution_type="a"),0,n*GetJ_1laysol_inf(Conc_delam/1000,thick_cl,$I45,x,R_cl,Dcl_Delam,Decay_cl,vel_delam,nsum)) -> 0
A46: 0 | B46: 0 | C46: 0 | D46: 0 | E46: 0 | F46: 0 | H46: 1995.262315 | I46: 6.292259236e+10 | J46: 0 | K46: 0 | L46: 0
A47: 0 | B47: 0 | C47: 0 | D47: 0 | E47: 0 | F47: 0 | H47: 2511.886432 | I47: 7.92148505e+10 | J47: 0 | K47: 0 | L47: 0
A48: 0 | B48: 0 | C48: 0 | D48: 0 | E48: 0 | F48: 0 | H48: 3162.27766 | I48: 9.972558829e+10 | J48: 0 | K48: 0 | L48: 0
A49: 0 | B49: 0 | C49: 0 | D49: 0 | E49: 0 | F49: 0 | H49: 3981.071706 | I49: 1.255470773e+11 | J49: 0 | K49: 0 | L49: 0
A50: 0 | B50: 0 | C50: 0 | D50: 0 | E50: 0 | F50: 0 | H50: 5011.872336 | I50: 1.58054406e+11 | J50: 0 | K50: 0 | L50: 0
A51: 0 | B51: 0 | C51: 0 | D51: 0 | E51: 0 | F51: 0 | H51: 6309.573445 | I51: 1.989787082e+11 | J51: 0 | K51: 0 | L51: 0
A52: 0 | B52: 0 | C52: 0 | D52: 0 | E52: 0 | F52: 0 | H52: 7943.282347 | I52: 2.504993521e+11 | J52: 0 | K52: 0 | L52: 0
A53: 0 | B53: 0 | C53: 0 | D53: 0 | E53: 0 | F53: 0 | H53: 10000 | I53: 3.1536e+11 | J53: 0 | K53: 0 | L53: 0
A54: 0 | B54: 0 | C54: 0 | D54: 0 | E54: 0 | F54: 0 | H54: 12589.25412 | I54: 3.970147179e+11 | J54: 0 | K54: 0 | L54: 0
A55: 0 | B55: 0 | C55: 0 | D55: 0 | E55: 0 | F55: 0 | H55: 15848.93192 | I55: 4.998119172e+11 | J55: 0 | K55: 0 | L55: 0
A56: 0 | B56: 0 | C56: 0 | D56: 0 | E56: 0 | F56: 0 | H56: 19952.62315 | I56: 6.292259236e+11 | J56: 0 | K56: 0 | L56: 0
A57: 0 | B57: 0 | C57: 0 | D57: 0 | E57: 0 | F57: 0 | H57: 25118.86432 | I57: 7.92148505e+11 | J57: 0 | K57: 0 | L57: 0
A58: 0 | B58: 0 | C58: 0 | D58: 0 | E58: 0 | F58: 0 | H58: 31622.7766 | I58: 9.972558829e+11 | J58: 0 | K58: 0 | L58: 0
A59: 0 | B59: 0 | C59: 0 | D59: 0 | E59: 0 | F59: 0 | H59: 39810.71706 | I59: 1.255470773e+12 | J59: 0 | K59: 0 | L59: 0
A60: 0 | B60: 0 | C60: 0 | D60: 0 | E60: 0 | F60: 0 | H60: 50118.72336 | I60: 1.58054406e+12 | J60: 0 | K60: 0 | L60: 0
A61: 0 | B61: 0 | C61: 0 | D61: 0 | E61: 0 | F61: 0 | H61: 63095.73445 | I61: 1.989787082e+12 | J61: 0 | K61: 0 | L61: 0
A62: 0 | B62: 0 | C62: 0 | D62: 0 | E62: 0 | F62: 0 | H62: 79432.82347 | I62: 2.504993521e+12 | J62: 0 | K62: 0 | L62: 0
A63: 0 | B63: =IF(OR(GM_delam="No",Solution_type="a"),0,IF(Solution_type="b",TwoLay_sol,Single_Lay_Sol)) -> 0 | C63: =IF(OR(GM_delam="No",Solution_type="a"),0,IF(Cont_Class="List I",MAX(A63,B63),(Delam_Out*aq_Q/1000+Contact_Out*aq_Q/1000)*1000/aq_Q)) -> 0 | D63: =IF(OR(GM_delam="No",Solution_type="a"),0,IF(Cont_Class="List II",List_II_J_Delam,List_I_J_Delam_In))*Area_delam*s_per_day -> 0 | E63: =IF(OR(GM_delam="No",Solution_type="a"),0,IF(Solution_type="b",Two_Lay_Mass,Single_Lay_Mass)) -> 0 | F63: 0 | H63: 100000 | I63: 3.1536e+12 | J63: 0 | K63: 0 | L63: 0

Sheet Two Layer Solutions Layer Two (hidden)
I2: Flag_sol
I8: nsum | J8: =nsum -> 12
I9: x_org | J9: =thick_cl+thick_gm -> 0.503 | L9: List II | M9: List I
A10: Area_two | B10: =Area_Flux-Area_CZ -> 18320.4
D11: Two layer sol's | F11: Single layer sol's | K11: Jkg/(s m2) | L11: mg/l | M11: Jkg/(s m2)
A12: Concentration output mg/l | B12: Flux Kg/day | D12: Concentration output mg/l | E12: Flux Kg/day | F12: Concentration mg/l | G12: Flux Kg/day | I12: Time years | J12: Time seconds | K12: flux boundary at l+L | L12: conc boundary at infininity at edge of clay | M12: flux boundary at infinity
A13: =IF(Cont_Class="List I",MAX(D13,F13),D13+F13) ->  | B13: =Twolay_Flux+Twolay_defect_flux ->  | D13: =IF(Area_two=0,0,IF(Cont_Class="List I",List_I_C_TwoLay,List_II_J_TwoLay)*IF(Cont_Class="List II",Area_two*1000/aq_Q,1)) -> 0 | E13: =IF(Cont_Class="List II",List_II_J_TwoLay*Area_two*s_per_day,List_I_J_TwoLay_In*Area_two*s_per_day) -> 0 | F13: =Single_Lay_Sol ->  | G13: =Single_Lay_Mass ->  | I13: =tmin -> 1 | J13: =I13*365*24*60*60 -> 31536000 | K13: =IF(Solution_type="b",get_Jsol2(Conc_gm/1000/Kd_gm,thick_gm,thick_cl,$J13,x_org,Kd_gm,1,R_cl,D_org*1,D_cl*n,0,Decay_cl,$J$8, 1,n),0) -> 0 | L13: =IF(Solution_type="b",get_sol2_infin(Conc_gm/Kd_gm,thick_gm,thick_cl,$J13,x_org,Kd_gm,1,R_cl,D_org*1,D_cl*n,0,Decay_cl,$J$8,1,n),0) -> 0 | M13: =IF(Solution_type="b",get_Jsol2_infin(Conc_gm/1000/Kd_gm,thick_gm,thick_cl,$J13,x_org,Kd_gm,1,R_cl,D_org*1,D_cl*n,0,Decay_cl,$J$8,1,n),0) -> 0
A14: =IF(Cont_Class="List I",MAX(D14,F14),D14+F14) ->  | B14: =Twolay_Flux+Twolay_defect_flux ->  | D14: =IF(Area_two=0,0,IF(Cont_Class="List I",List_I_C_TwoLay,List_II_J_TwoLay)*IF(Cont_Class="List II",Area_two*1000/aq_Q,1)) -> 0 | E14: =IF(Cont_Class="List II",List_II_J_TwoLay*Area_two*s_per_day,List_I_J_TwoLay_In*Area_two*s_per_day) -> 0 | F14: =Single_Lay_Sol ->  | G14: =Single_Lay_Mass ->  | I14: =I13*tscale -> 1.258925412 | J14: =I14*365*24*60*60 -> 39701471.79 | K14: 0 | L14: 0 | M14: 0
D15: 0 | E15: 0 | I15: =I14*tscale -> 1.584893192 | J15: 49981191.72 | K15: 0 | L15: 0 | M15: 0
D16: 0 | E16: 0 | I16: 1.995262315 | J16: 62922592.36 | K16: 0 | L16: 0 | M16: 0
D17: 0 | E17: 0 | I17: 2.511886432 | J17: 79214850.5 | K17: 0 | L17: 0 | M17: 0
D18: 0 | E18: 0 | I18: 3.16227766 | J18: 99725588.29 | K18: 0 | L18: 0 | M18: 0
D19: 0 | E19: 0 | F19: =Single_Lay_Sol ->  | I19: 3.981071706 | J19: 125547077.3 | K19: 0 | L19: 0 | M19: 0
B20: =Twolay_Flux+Twolay_defect_flux ->  | D20: 0 | E20: 0 | I20: 5.011872336 | J20: 158054406 | K20: 0 | L20: 0 | M20: 0
D21: 0 | E21: 0 | I21: 6.309573445 | J21: 198978708.2 | K21: 0 | L21: 0 | M21: 0
D22: 0 | E22: 0 | I22: 7.943282347 | J22: 250499352.1 | K22: 0 | L22: 0 | M22: 0
D23: 0 | E23: 0 | I23: 10 | J23: 315360000 | K23: 0 | L23: 0 | M23: 0
D24: 0 | E24: 0 | I24: 12.58925412 | J24: 397014717.9 | K24: 0 | L24: 0 | M24: 0
D25: 0 | E25: 0 | I25: 15.84893192 | J25: 499811917.2 | K25: 0 | L25: 0 | M25: 0
D26: 0 | E26: 0 | I26: 19.95262315 | J26: 629225923.6 | K26: 0 | L26: 0 | M26: 0
D27: 0 | E27: 0 | I27: 25.11886432 | J27: 792148505 | K27: 0 | L27: 0 | M27: 0
D28: 0 | E28: 0 | I28: 31.6227766 | J28: 997255882.9 | K28: 0 | L28: 0 | M28: 0
D29: 0 | E29: 0 | I29: 39.81071706 | J29: 1255470773 | K29: 0 | L29: 0 | M29: 0
D30: 0 | E30: 0 | I30: 50.11872336 | J30: 1580544060 | K30: 0 | L30: 0 | M30: 0
D31: 0 | E31: 0 | I31: 63.09573445 | J31: 1989787082 | K31: 0 | L31: 0 | M31: 0
D32: 0 | E32: 0 | I32: 79.43282347 | J32: 2504993521 | K32: 0 | L32: 0 | M32: 0
D33: 0 | E33: 0 | I33: 100 | J33: 3153600000 | K33: 0 | L33: 0 | M33: 0
D34: 0 | E34: 0 | I34: 125.8925412 | J34: 3970147179 | K34: 0 | L34: 0 | M34: 0
D35: 0 | E35: 0 | I35: 158.4893192 | J35: 4998119172 | K35: 0 | L35: 0 | M35: 0
D36: 0 | E36: 0 | I36: 199.5262315 | J36: 6292259236 | K36: 0 | L36: 0 | M36: 0
D37: 0 | E37: 0 | I37: 251.1886432 | J37: 7921485050 | K37: 0 | L37: 0 | M37: 0
D38: 0 | E38: 0 | I38: 316.227766 | J38: 9972558829 | K38: 0 | L38: 0 | M38: 0
D39: 0 | E39: 0 | I39: 398.1071706 | J39: 1.255470773e+10 | K39: 0 | L39: 0 | M39: 0
D40: 0 | E40: 0 | I40: 501.1872336 | J40: 1.58054406e+10 | K40: 0 | L40: 0 | M40: 0
D41: 0 | E41: 0 | I41: 630.9573445 | J41: 1.989787082e+10 | K41: 0 | L41: 0 | M41: 0
D42: 0 | E42: 0 | I42: 794.3282347 | J42: 2.504993521e+10 | K42: 0 | L42: 0 | M42: 0
D43: 0 | E43: 0 | I43: 1000 | J43: 3.1536e+10 | K43: 0 | L43: 0 | M43: 0
D44: 0 | E44: 0 | I44: 1258.925412 | J44: 3.970147179e+10 | K44: 0 | L44: 0 | M44: 0
D45: 0 | E45: 0 | I45: 1584.893192 | J45: 4.998119172e+10 | K45: =IF(Solution_type="b",get_Jsol2(Conc_gm/1000/Kd_gm,thick_gm,thick_cl,$J45,x_org,Kd_gm,1,R_cl,D_org*1,D_cl*n,0,Decay_cl,$J$8, 1,n),0) -> 0 | L45: =IF(Solution_type="b",get_sol2_infin(Conc_gm/Kd_gm,thick_gm,thick_cl,$J45,x_org,Kd_gm,1,R_cl,D_org*1,D_cl*n,0,Decay_cl,$J$8,1,n),0) -> 0 | M45: =IF(Solution_type="b",get_Jsol2_infin(Conc_gm/1000/Kd_gm,thick_gm,thick_cl,$J45,x_org,Kd_gm,1,R_cl,D_org*1,D_cl*n,0,Decay_cl,$J$8,1,n),0) -> 0
D46: 0 | E46: 0 | I46: 1995.262315 | J46: 6.292259236e+10 | K46: 0 | L46: 0 | M46: 0
D47: 0 | E47: 0 | I47: 2511.886432 | J47: 7.92148505e+10 | K47: 0 | L47: 0 | M47: 0
D48: 0 | E48: 0 | I48: 3162.27766 | J48: 9.972558829e+10 | K48: 0 | L48: 0 | M48: 0
D49: 0 | E49: 0 | I49: 3981.071706 | J49: 1.255470773e+11 | K49: 0 | L49: 0 | M49: 0
D50: 0 | E50: 0 | I50: 5011.872336 | J50: 1.58054406e+11 | K50: 0 | L50: 0 | M50: 0
D51: 0 | E51: 0 | I51: 6309.573445 | J51: 1.989787082e+11 | K51: 0 | L51: 0 | M51: 0
D52: 0 | E52: 0 | I52: 7943.282347 | J52: 2.504993521e+11 | K52: 0 | L52: 0 | M52: 0
D53: 0 | E53: 0 | I53: 10000 | J53: 3.1536e+11 | K53: 0 | L53: 0 | M53: 0
D54: 0 | E54: 0 | I54: 12589.25412 | J54: 3.970147179e+11 | K54: 0 | L54: 0 | M54: 0
D55: 0 | E55: 0 | I55: 15848.93192 | J55: 4.998119172e+11 | K55: 0 | L55: 0 | M55: 0
B56: =Twolay_Flux+Twolay_defect_flux ->  | D56: 0 | E56: 0 | I56: =I55*tscale -> 19952.62315 | J56: 6.292259236e+11 | K56: 0 | L56: 0 | M56: 0
D57: 0 | E57: 0 | I57: 25118.86432 | J57: 7.92148505e+11 | K57: 0 | L57: 0 | M57: 0
D58: 0 | E58: 0 | I58: 31622.7766 | J58: 9.972558829e+11 | K58: 0 | L58: 0 | M58: 0
D59: 0 | E59: 0 | I59: 39810.71706 | J59: 1.255470773e+12 | K59: 0 | L59: 0 | M59: 0
A60: =IF(Cont_Class="List I",MAX(D60,F60),D60+F60) ->  | D60: 0 | E60: 0 | I60: 50118.72336 | J60: 1.58054406e+12 | K60: 0 | L60: 0 | M60: 0
D61: 0 | E61: 0 | I61: 63095.73445 | J61: 1.989787082e+12 | K61: 0 | L61: 0 | M61: 0
D62: 0 | E62: 0 | I62: 79432.82347 | J62: 2.504993521e+12 | K62: 0 | L62: 0 | M62: 0
B63: =Twolay_Flux+Twolay_defect_flux ->  | D63: 0 | E63: =IF(Cont_Class="List II",List_II_J_TwoLay*Area_two*s_per_day,List_I_J_TwoLay_In*Area_two*s_per_day) -> 0 | G63: =Single_Lay_Mass ->  | I63: =I62*tscale -> 100000 | J63: 3.1536e+12 | K63: 0 | L63: 0 | M63: 0
